Workbook

Sheet Úvod
C2: Metóda maticového diagnostického prístupu Full version of expert system (MDPFVES) - Verzia Beta
B8: Názov obchodnej korporácie: | G8: BENEŠ a LÁT a. s.
B11: IČO: | I11: 25724304

Sheet Súvaha z VS_Aktíva
B1: Hospodársky rok obchodnej korporácie BENEŠ a LÁT a. s.
B2: 2017-2018 | F2: 2018-2019 | J2: 2019-2020 | N2: 2020-2021 | R2: 2021-2022 | V2: 2022-2023
A3: Riadok | B3: Bežné účtovné obdobie | E3: Minulé účtovné obdobie | F3: Bežné účtovné obdobie | I3: Minulé účtovné obdobie | J3: Bežné účtovné obdobie | M3: Minulé účtovné obdobie | N3: Bežné účtovné obdobie | Q3: Minulé účtovné obdobie | R3: Bežné účtovné obdobie | U3: Minulé účtovné obdobie | V3: Bežné účtovné obdobie | Y3: Minulé účtovné obdobie
B5: Brutto | C5: Korekcia | D5: Netto | E5: Netto | F5: Brutto | G5: Korekcia | H5: Netto | I5: Netto | J5: Brutto | K5: Korekcia | L5: Netto | M5: Netto | N5: Brutto | O5: Korekcia | P5: Netto | Q5: Netto | R5: Brutto | S5: Korekcia | T5: Netto | U5: Netto | V5: Brutto | W5: Korekcia | X5: Netto | Y5: Netto
A6: AKTÍVA CELKOM | B6: 1183198 | C6: -315593 | D6: =B6+C6 -> 867605 | E6: 736384 | F6: 1232879 | G6: -347522 | H6: =F6+G6 -> 885357 | I6: =D6 -> 867605 | J6: 1151765 | K6: -382313 | L6: =J6+K6 -> 769452 | M6: =H6 -> 885357 | N6: 1199628 | O6: -453676 | P6: =N6+O6 -> 745952 | Q6: =L6 -> 769452 | R6: 1241131 | S6: -488628 | T6: =R6+S6 -> 752503 | U6: =P6 -> 745952 | V6: 1239762 | W6: -521297 | X6: =V6+W6 -> 718465 | Y6: =T6 -> 752503
A7: B. Stále aktíva | B7: 764388 | C7: -302338 | D7: =B7+C7 -> 462050 | E7: 388590 | F7: 824903 | G7: -337067 | H7: =F7+G7 -> 487836 | I7: =D7 -> 462050 | J7: 828772 | K7: -373679 | L7: =J7+K7 -> 455093 | M7: =H7 -> 487836 | N7: 872159 | O7: -445103 | P7: =N7+O7 -> 427056 | Q7: =L7 -> 455093 | R7: 880539 | S7: -479656 | T7: =R7+S7 -> 400883 | U7: =P7 -> 427056 | V7: 890738 | W7: -512180 | X7: =V7+W7 -> 378558 | Y7: =T7 -> 400883
A8: I. Dlhodobý nehmotný majetok | B8: 21887 | C8: -20557 | D8: 1330 | E8: 1585 | F8: 23972 | G8: -21775 | H8: 2197 | I8: 1330 | J8: 24347 | K8: -22599 | L8: 1748 | M8: 2197 | N8: 26881 | O8: -23526 | P8: 3355 | Q8: 1748 | R8: 28005 | S8: -24624 | T8: 3381 | U8: 3355 | V8: 30053 | W8: -26205 | X8: 3848 | Y8: 3381
A9: 2 Oceniteľné práva | B9: 21513 | C9: -20512 | D9: 1001 | E9: 1503 | F9: 22855 | G9: -21679 | H9: 1176 | I9: 1001 | J9: 23505 | K9: -22454 | L9: 1051 | M9: 1176 | N9: 24301 | O9: -23255 | P9: 1046 | Q9: 1051 | R9: 24979 | S9: -23970 | T9: 1009 | U9: 1046 | V9: 26103 | W9: -25005 | X9: 1098 | Y9: 1009
A10: 1 Software | B10: 21513 | C10: -20512 | D10: 1001 | E10: 1503 | F10: 22855 | G10: -21679 | H10: 1176 | I10: 1001 | J10: 23505 | K10: -22454 | L10: 1051 | M10: 1176 | N10: 24301 | O10: -23255 | P10: 1046 | Q10: 1051 | R10: 24979 | S10: -23970 | T10: 1009 | U10: 1046 | V10: 26103 | W10: -25005 | X10: 1098 | Y10: 1009
A11: 4 Ostatný dlhodobý nehmotný majetok | B11: 196 | C11: -45 | D11: =B11+C11 -> 151 | E11: 54 | F11: 310 | G11: -96 | H11: 214 | I11: 151 | J11: 400 | K11: -145 | L11: 255 | M11: 214 | N11: 1500 | O11: -271 | P11: 1229 | Q11: 255 | R11: 1938 | S11: -654 | T11: 1284 | U11: 1229 | V11: 2388 | W11: -1200 | X11: 1188 | Y11: 1284
A12: 5 Poskytnuté zálohy na dlhodobý nehmotný majetok a nedokončený dlhodobý nehmotný majetok | B12: 178 | C12: 0 | D12: 178 | E12: 28 | F12: 807 | G12: 0 | H12: 807 | I12: 178 | J12: 442 | K12: 0 | L12: 442 | M12: 807 | N12: 1080 | P12: 1080 | Q12: 442 | R12: 1088 | S12: 0 | T12: 1088 | U12: 1080 | V12: 1562 | W12: 0 | X12: 1562 | Y12: 1088
A13: 2 Nedokončený dlhodobý nehmotný majetok | B13: 178 | C13: 0 | D13: 178 | E13: 28 | F13: 807 | G13: 0 | H13: 807 | I13: 178 | J13: 442 | K13: 0 | L13: 442 | M13: 807 | N13: 1080 | P13: 1080 | Q13: 442 | R13: 1088 | S13: 0 | T13: 1088 | U13: 1080 | V13: 1562 | W13: 0 | X13: 1562 | Y13: 1088
A14: II. Dlhodobý hmotný majetok | B14: 742171 | C14: -281781 | D14: 460390 | E14: 386675 | F14: 800484 | G14: -315292 | H14: 485192 | I14: 460390 | J14: 803978 | K14: -351080 | L14: 452898 | M14: 485192 | N14: 844831 | O14: -421577 | P14: 423254 | Q14: 452898 | R14: 852087 | S14: -455032 | T14: 397055 | U14: 423254 | V14: 860238 | W14: -485975 | X14: 374263 | Y14: 397055
A15: 1 Pozemky a stavby | B15: 320324 | C15: -55677 | D15: 264647 | E15: 268822 | F15: 346017 | G15: -61606 | H15: 284411 | I15: 264647 | J15: 346868 | K15: -68062 | L15: 278806 | M15: 284411 | N15: 346735 | O15: -66210 | P15: 280525 | Q15: 278806 | R15: 349088 | S15: -72947 | T15: 276141 | U15: 280525 | V15: 350639 | W15: -79744 | X15: 270895 | Y15: 276141
A16: 1 Pozemky | B16: 27584 | C16: 0 | D16: 27584 | E16: 27504 | F16: 27585 | H16: 27585 | I16: 27584 | J16: 27568 | K16: 0 | L16: 27568 | M16: 27585 | N16: 26955 | O16: 0 | P16: 26955 | Q16: 27568 | R16: 26855 | S16: 0 | T16: 26855 | U16: 26955 | V16: 26855 | W16: 0 | X16: 26855 | Y16: 26855
A17: 2 Stavby | B17: 292740 | C17: -55677 | D17: 237063 | E17: 241318 | F17: 318432 | G17: -61606 | H17: 256826 | I17: 237063 | J17: 319300 | K17: -68062 | L17: 251238 | M17: 256826 | N17: 319780 | O17: -66210 | P17: 253570 | Q17: 251238 | R17: 322233 | S17: -72947 | T17: 249286 | U17: 253570 | V17: 323784 | W17: -79744 | X17: 244040 | Y17: 249286
A18: 2 Hmotné hnuteľné veci a ich súbory | B18: 402916 | C18: -246531 | D18: 156385 | E18: 122625 | F18: 442231 | G18: -276453 | H18: 165778 | I18: 156385 | J18: 480378 | K18: -308050 | L18: 172328 | M18: 165778 | N18: 480295 | O18: -344497 | P18: 135798 | Q18: 172328 | R18: 487341 | S18: -371586 | T18: 115755 | U18: 135798 | V18: 495594 | W18: -395132 | X18: 100462 | Y18: 115755
A19: 3 Oceňovací rozdiel k nadobudnutému majetku | B19: -33736 | C19: 27328 | D19: -6408 | E19: -8811 | F19: -33736 | G19: 29731 | H19: -4005 | I19: -6408 | J19: -33737 | K19: 32134 | L19: -1603 | M19: -4005 | N19: 2311 | O19: -2311 | P19: 0 | Q19: -1603 | R19: 0 | S19: 0 | T19: 0 | U19: 0 | V19: 0 | W19: 0 | X19: 0 | Y19: 0
A20: 4 Ostatný dlhodobý hmotný majetok | B20: 8526 | C20: -6858 | D20: 1668 | E20: 1618 | F20: 8548 | G20: -6964 | H20: 1584 | I20: 1668 | J20: 9099 | K20: -7102 | L20: 1997 | M20: 1584 | N20: 12482 | O20: -8559 | P20: 3923 | Q20: 1997 | R20: 12507 | S20: -10499 | T20: 2008 | U20: 3923 | V20: 12507 | W20: -11099 | X20: 1408 | Y20: 2008
A21: 3 Iný dlhodobý hmotný majetok | B21: 8526 | C21: -6858 | D21: 1668 | E21: 1618 | F21: 8548 | G21: -6964 | H21: 1584 | I21: 1668 | J21: 9099 | K21: -7102 | L21: 1997 | M21: 1584 | N21: 12482 | O21: -8559 | P21: 3923 | Q21: 1997 | R21: 12507 | S21: -10499 | T21: 2008 | U21: 3923 | V21: 12507 | W21: -11099 | X21: 1408 | Y21: 2008
A22: 5 Poskytnuté zálohy na dlhodobý hmotný majetok a nedokončený dlhodobý hmotný majetok | B22: 44141 | C22: -43 | D22: 44098 | E22: 2421 | F22: 37424 | G22: 0 | H22: 37424 | I22: 44098 | J22: 1370 | K22: 0 | L22: 1370 | M22: 37424 | N22: 3008 | O22: 0 | P22: 3008 | Q22: 1370 | R22: 3151 | S22: 0 | T22: 3151 | U22: 3008 | V22: 1498 | W22: 0 | X22: 1498 | Y22: 3151
A23: 1 Poskytnuté zálohy na dlhodobý hmotný majetok | B23: 0 | C23: -43 | D23: -43 | E23: 183 | F23: 0 | G23: 0 | H23: 0 | I23: -43 | J23: 0 | K23: 0 | L23: 0 | M23: 0 | N23: 558 | O23: 0 | P23: 558 | Q23: 0 | R23: 440 | S23: 0 | T23: 440 | U23: 558 | V23: 168 | W23: 0 | X23: 168 | Y23: 440
A24: 2 Nedokončený dlhodobý hmotný majetok | B24: 44141 | C24: 0 | D24: 44141 | E24: 2238 | F24: 37424 | G24: 0 | H24: 37424 | I24: 44141 | J24: 1370 | K24: 0 | L24: 1370 | M24: 37424 | N24: 2450 | O24: 0 | P24: 2450 | Q24: 1370 | R24: 2711 | S24: 0 | T24: 2711 | U24: 2450 | V24: 1330 | W24: 0 | X24: 1330 | Y24: 2711
A25: III. Dlhodobý finančný majetok | B25: 330 | C25: 0 | D25: 330 | E25: 330 | F25: 447 | G25: 0 | H25: 447 | I25: 330 | J25: 447 | K25: 0 | L25: 447 | M25: 447 | N25: 447 | O25: 0 | P25: 447 | Q25: 447 | R25: 447 | S25: 0 | T25: 447 | U25: 447 | V25: 447 | W25: 0 | X25: 447 | Y25: 447
A26: 1 Podiely – ovládaná alebo ovládajúca osoba | B26: 0 | C26: 0 | D26: 0 | E26: 0 | F26: 117 | G26: 0 | H26: 117 | I26: 0 | J26: 117 | K26: 0 | L26: 117 | M26: 117 | N26: 117 | O26: 0 | P26: 117 | Q26: 117 | R26: 117 | S26: 0 | T26: 117 | U26: 117 | V26: 117 | W26: 0 | X26: 117 | Y26: 117
A27: 3 Podiely – podstatný vplyv | B27: 330 | C27: 0 | D27: 330 | E27: 330 | F27: 330 | G27: 0 | H27: 330 | I27: 330 | J27: 330 | K27: 0 | L27: 330 | M27: 330 | N27: 330 | O27: 0 | P27: 330 | Q27: 330 | R27: 330 | S27: 0 | T27: 330 | U27: 330 | V27: 330 | W27: 0 | X27: 330 | Y27: 330
A28: C. Obežné aktíva | B28: 416376 | C28: -13255 | D28: 403121 | E28: 345535 | F28: 405935 | G28: -10455 | H28: 395480 | I28: 403121 | J28: 320808 | K28: -8634 | L28: 312174 | M28: 395480 | N28: 324251 | O28: -8573 | P28: 315678 | Q28: 312174 | R28: 357132 | S28: -8972 | T28: 348160 | U28: 315678 | V28: 342653 | W28: -9117 | X28: 333536 | Y28: 348160
A29: I. Zásoby | B29: 182193 | C29: -5618 | D29: 176575 | E29: 145971 | F29: 192745 | G29: -4956 | H29: 187789 | I29: 176575 | J29: 147741 | K29: -6361 | L29: 141380 | M29: 187789 | N29: 148072 | O29: -6707 | P29: 141365 | Q29: 141380 | R29: 172719 | S29: -7215 | T29: 165504 | U29: 141365 | V29: 159465 | W29: -7176 | X29: 152289 | Y29: 165504
A30: 1 Materiál | B30: 46937 | C30: -1723 | D30: 45214 | E30: 39443 | F30: 45610 | G30: -1889 | H30: 43721 | I30: 45214 | J30: 44278 | K30: -1739 | L30: 42539 | M30: 43721 | N30: 37993 | O30: -1829 | P30: 36164 | Q30: 42539 | R30: 41999 | S30: -2037 | T30: 39962 | U30: 36164 | V30: 44120 | W30: -3359 | X30: 40761 | Y30: 39962
A31: 2 Nedokončená výroba a polotovary | B31: 95317 | C31: -1503 | D31: 93814 | E31: 68737 | F31: 95737 | G31: -1250 | H31: 94487 | I31: 93814 | J31: 61210 | K31: -1234 | L31: 59976 | M31: 94487 | N31: 79213 | O31: -1481 | P31: 77732 | Q31: 59976 | R31: 74554 | S31: -2133 | T31: 72421 | U31: 77732 | V31: 72410 | W31: -674 | X31: 71736 | Y31: 72421
A32: 3 Výrobky a tovar | B32: 39939 | C32: -2392 | D32: 37547 | E32: 37791 | F32: 51398 | G32: -1817 | H32: 49581 | I32: 37547 | J32: 40536 | K32: -3388 | L32: 37148 | M32: 49581 | N32: 30129 | O32: -3397 | P32: 26732 | Q32: 37148 | R32: 55789 | S32: -3045 | T32: 52744 | U32: 26732 | V32: 42935 | W32: -3143 | X32: 39792 | Y32: 52744
A33: 1 Výrobky | B33: 39911 | C33: -2392 | D33: 37519 | E33: 37755 | F33: 51377 | G33: -1817 | H33: 49560 | I33: 37519 | J33: 40521 | K33: -3388 | L33: 37133 | M33: 49560 | N33: 30113 | O33: -3397 | P33: 26716 | Q33: 37133 | R33: 55776 | S33: -3045 | T33: 52731 | U33: 26716 | V33: 42928 | W33: -3143 | X33: 39785 | Y33: 52731
A34: 2 Tovar | B34: 28 | C34: 0 | D34: 28 | E34: 36 | F34: 21 | G34: 0 | H34: 21 | I34: 28 | J34: 15 | K34: 0 | L34: 15 | M34: 21 | N34: 16 | O34: 0 | P34: 16 | Q34: 15 | R34: 13 | S34: 0 | T34: 13 | U34: 16 | V34: 7 | W34: 0 | X34: 7 | Y34: 13
A35: 5 Poskytnuté zálohy na zásoby | B35: 0 | C35: 0 | D35: 0 | E35: 0 | F35: 0 | G35: 0 | H35: 0 | I35: 0 | J35: 1717 | K35: 0 | L35: 1717 | M35: 0 | N35: 737 | O35: 0 | P35: 737 | Q35: 1717 | R35: 377 | S35: 0 | T35: 377 | U35: 737 | V35: 0 | W35: 0 | X35: 0 | Y35: 377
A36: II. Pohľadávky | B36: 228429 | C36: -7637 | D36: 220792 | E36: 193873 | F36: 207769 | G36: -5499 | H36: 202270 | I36: 220792 | J36: 172396 | K36: -2273 | L36: 170123 | M36: 202270 | N36: 151124 | O36: -1866 | P36: 149258 | Q36: 170123 | R36: 165741 | S36: -1757 | T36: 163984 | U36: 149258 | V36: 179054 | W36: -1941 | X36: 177113 | Y36: 163984
A37: 1 Dlhodobé pohľadávky | B37: 5291 | C37: 0 | D37: 5291 | E37: 4461 | F37: 9813 | G37: 0 | H37: 9813 | I37: 5291 | J37: 12774 | K37: 0 | L37: 12774 | M37: 9813 | N37: 10582 | O37: 0 | P37: 10582 | Q37: 12774 | R37: 6915 | S37: 0 | T37: 6915 | U37: 10582 | V37: 1962 | W37: 0 | X37: 1962 | Y37: 6915
A38: 4 Odložená daňová pohľadávka | B38: 5270 | C38: 0 | D38: 5270 | E38: 4461 | F38: 9792 | G38: 0 | H38: 9792 | I38: 5270 | J38: 12753 | K38: 0 | L38: 12753 | M38: 9792 | N38: 10561 | O38: 0 | P38: 10561 | Q38: 12753 | R38: 6894 | S38: 0 | T38: 6894 | U38: 10561 | V38: 1941 | W38: 0 | X38: 1941 | Y38: 6894
A39: 5 Pohľadávky – ostatné | B39: 21 | C39: 0 | D39: 21 | E39: 0 | F39: 21 | G39: 0 | H39: 21 | I39: 21 | J39: 21 | K39: 0 | L39: 21 | M39: 21 | N39: 21 | O39: 0 | P39: 21 | Q39: 21 | R39: 21 | S39: 0 | T39: 21 | U39: 21 | V39: 21 | W39: 0 | X39: 21 | Y39: 21
A40: 2 Dlhodobé poskytnuté zálohy | B40: 21 | C40: 0 | D40: 21 | E40: 0 | F40: 21 | G40: 0 | H40: 21 | I40: 21 | J40: 21 | K40: 0 | L40: 21 | M40: 21 | N40: 21 | O40: 0 | P40: 21 | Q40: 21 | R40: 21 | S40: 0 | T40: 21 | U40: 21 | V40: 21 | W40: 0 | X40: 21 | Y40: 21
A41: 2 Krátkodobé pohľadávky | B41: 223138 | C41: -7637 | D41: 215501 | E41: 189412 | F41: 197956 | G41: -5499 | H41: 192457 | I41: 215501 | J41: 159622 | K41: -2273 | L41: 157349 | M41: 192457 | N41: 140542 | O41: -1866 | P41: 138676 | Q41: 157349 | R41: 158826 | S41: -1757 | T41: 157069 | U41: 138676 | V41: 177092 | W41: -1941 | X41: 175151 | Y41: 157069
A42: 1 Pohľadávky z obchodných vzťahov | B42: 201541 | C42: -7637 | D42: 193904 | E42: 175935 | F42: 185987 | G42: -5499 | H42: 180488 | I42: 193904 | J42: 149278 | K42: -1660 | L42: 147618 | M42: 180488 | N42: 135765 | O42: -1866 | P42: 133899 | Q42: 147618 | R42: 136370 | S42: -430 | T42: 135940 | U42: 133899 | V42: 139118 | W42: -614 | X42: 138504 | Y42: 135940
A43: 4 Pohľadávky – ostatné | B43: 21597 | C43: 0 | D43: 21597 | E43: 13477 | F43: 11969 | G43: 0 | H43: 11969 | I43: 21597 | J43: 10344 | K43: -613 | L43: 9731 | M43: 11969 | N43: 4777 | O43: 0 | P43: 4777 | Q43: 9731 | R43: 22456 | S43: -1327 | T43: 21129 | U43: 4777 | V43: 37974 | W43: -1327 | X43: 36647 | Y43: 21129
A44: 3 Štát – daňové pohľadávky | B44: 10239 | C44: 0 | D44: 10239 | E44: 1553 | F44: 3080 | G44: 0 | H44: 3080 | I44: 10239 | J44: 910 | K44: 0 | L44: 910 | M44: 3080 | N44: 900 | O44: 0 | P44: 900 | Q44: 910 | R44: 0 | S44: 0 | T44: 0 | U44: 900 | V44: 0 | W44: 0 | X44: 0 | Y44: 0
A45: 4 Krátkodobé poskytnuté zálohy | B45: 6572 | C45: 0 | D45: 6572 | E45: 7206 | F45: 3239 | G45: 0 | H45: 3239 | I45: 6572 | J45: 3850 | K45: 0 | L45: 3850 | M45: 3239 | N45: 2532 | O45: 0 | P45: 2532 | Q45: 3850 | R45: 12419 | S45: 0 | T45: 12419 | U45: 2532 | V45: 17192 | W45: 0 | X45: 17192 | Y45: 12419
A46: 5 Dohadné účty aktívne | B46: 4393 | C46: 0 | D46: 4393 | E46: 2319 | F46: 2561 | G46: 0 | H46: 2561 | I46: 4393 | J46: 3244 | K46: -613 | L46: 2631 | M46: 2561 | N46: 937 | O46: 0 | P46: 937 | Q46: 2631 | R46: 2406 | S46: 0 | T46: 2406 | U46: 937 | V46: 2077 | W46: 0 | X46: 2077 | Y46: 2406
A47: 6 Iné pohľadávky | B47: 393 | C47: 0 | D47: 393 | E47: 2399 | F47: 3089 | G47: 0 | H47: 3089 | I47: 393 | J47: 2340 | K47: 0 | L47: 2340 | M47: 3089 | N47: 308 | O47: 0 | P47: 308 | Q47: 2340 | R47: 7631 | S47: -1327 | T47: 6304 | U47: 308 | V47: 18705 | W47: -1327 | X47: 17378 | Y47: 6304
A48: IV. Peňažné prostriedky | B48: 5754 | C48: 0 | D48: 5754 | E48: 5691 | F48: 5421 | G48: 0 | H48: 5421 | I48: 5754 | J48: 671 | K48: 0 | L48: 671 | M48: 5421 | N48: 25055 | O48: 0 | P48: 25055 | Q48: 671 | R48: 18672 | S48: 0 | T48: 18672 | U48: 25055 | V48: 4134 | W48: 0 | X48: 4134 | Y48: 18672
A49: 1 Peňažné prostriedky v pokladni | B49: 103 | C49: 0 | D49: 103 | E49: 165 | F49: 121 | G49: 0 | H49: 121 | I49: 103 | J49: 202 | K49: 0 | L49: 202 | M49: 121 | N49: 146 | O49: 0 | P49: 146 | Q49: 202 | R49: 130 | S49: 0 | T49: 130 | U49: 146 | V49: 156 | W49: 0 | X49: 156 | Y49: 130
A50: 2 Peňažné prostriedky na účtoch | B50: 5651 | C50: 0 | D50: 5651 | E50: 5526 | F50: 5300 | G50: 0 | H50: 5300 | I50: 5651 | J50: 469 | K50: 0 | L50: 469 | M50: 5300 | N50: 24909 | O50: 0 | P50: 24909 | Q50: 469 | R50: 18542 | S50: 0 | T50: 18542 | U50: 24909 | V50: 3978 | W50: 0 | X50: 3978 | Y50: 18542
A51: D. Časové rozlíšenie aktív | B51: 2434 | C51: 0 | D51: 2434 | E51: 2259 | F51: 2041 | G51: 0 | H51: 2041 | I51: 2434 | J51: 2185 | K51: 0 | L51: 2185 | M51: 2041 | N51: 3218 | O51: 0 | P51: 3218 | Q51: 2185 | R51: 3460 | S51: 0 | T51: 3460 | U51: 3218 | V51: 6371 | W51: 0 | X51: 6371 | Y51: 3460
A52: 1 Náklady budúcich období | B52: 2434 | C52: 0 | D52: =B52+C52 -> 2434 | E52: 2259 | F52: 2041 | G52: 0 | H52: =F52+G52 -> 2041 | I52: =D52 -> 2434 | J52: 2185 | K52: 0 | L52: =J52+K52 -> 2185 | M52: =H52 -> 2041 | N52: 3218 | O52: 0 | P52: =N52+O52 -> 3218 | Q52: =L52 -> 2185 | R52: 3460 | S52: 0 | T52: =R52+S52 -> 3460 | U52: =P52 -> 3218 | V52: 3661 | W52: 0 | X52: 3661 | Y52: =T52 -> 3460
A53: 2 Komplexné náklady budúcich období | B53: 0 | C53: 0 | D53: 0 | E53: 0 | F53: 0 | G53: 0 | H53: 0 | I53: 0 | J53: 0 | K53: 0 | L53: 0 | M53: 0 | N53: 0 | O53: 0 | P53: 0 | Q53: 0 | R53: 0 | S53: 0 | T53: 0 | U53: 0 | V53: 2710 | W53: 0 | X53: =V53+W53 -> 2710 | Y53: 0

Sheet Súvaha z VS_Pasíva
B1: Hospodársky rok obchodnej korporácie BENEŠ a LÁT a. s.
B2: 2017-2018 | D2: 2018-2019 | F2: 2019-2020 | H2: 2020-2021 | J2: 2021-2022 | L2: 2022-2023
A3: Riadok | B3: Bežné účtovné obdobie | C3: Minulé účtovné obdobie | D3: Bežné účtovné obdobie | E3: Minulé účtovné obdobie | F3: Bežné účtovné obdobie | G3: Minulé účtovné obdobie | H3: Bežné účtovné obdobie | I3: Minulé účtovné obdobie | J3: Bežné účtovné obdobie | K3: Minulé účtovné obdobie | L3: Bežné účtovné obdobie | M3: Minulé účtovné obdobie
A4: PASÍVA CELKOM | B4: 867605 | C4: 736384 | D4: 885357 | E4: =B4 -> 867605 | F4: 769452 | G4: =D4 -> 885357 | H4: 745952 | I4: =F4 -> 769452 | J4: 752503 | K4: =H4 -> 745952 | L4: 718465 | M4: =J4 -> 752503
A5: A. Vlastný kapitál | B5: 351640 | C5: 383266 | D5: 331770 | E5: =B5 -> 351640 | F5: 324678 | G5: =D5 -> 331770 | H5: 332658 | I5: =F5 -> 324678 | J5: 348038 | K5: =H5 -> 332658 | L5: 400456 | M5: =J5 -> 348038
A6: I. Základný kapitál | B6: 35000 | C6: 35000 | D6: 35000 | E6: 35000 | F6: 35000 | G6: 35000 | H6: 35000 | I6: 35000 | J6: 35000 | K6: 35000 | L6: 35000 | M6: 35000
A7: 1 Základný kapitál | B7: 35000 | C7: 35000 | D7: 35000 | E7: 35000 | F7: 35000 | G7: 35000 | H7: 35000 | I7: 35000 | J7: 35000 | K7: 35000 | L7: 35000 | M7: 35000
A8: II. Ážio a kapitálové fondy | B8: 173444 | C8: 201444 | D8: 173444 | E8: 173444 | F8: 173444 | G8: 173444 | H8: 173444 | I8: 173444 | J8: 172510 | K8: 173444 | L8: 171285 | M8: 172510
A9: 1 Ážio | B9: 42210 | C9: 42210 | D9: 42210 | E9: 42210 | F9: 42210 | G9: 42210 | H9: 42210 | I9: 42210 | J9: 42210 | K9: 42210 | L9: 42210 | M9: 42210
A10: 2 Kapitálové fondy | B10: 131234 | C10: 159234 | D10: 131234 | E10: 131234 | F10: 131234 | G10: 131234 | H10: 131234 | I10: 131234 | J10: 130300 | K10: 131234 | L10: 129075 | M10: 130300
A11: 1 Ostatné kapitálové fondy | B11: 131234 | C11: 159234 | D11: 131234 | E11: 131234 | F11: 131234 | G11: 131234 | H11: 131234 | I11: 131234 | J11: 130300 | K11: 131234 | L11: 129075 | M11: 130300
A12: III. Fondy zo zisku | B12: 93 | C12: 1 | D12: 114 | E12: 93 | F12: 103 | G12: 114 | H12: 124 | I12: 103 | J12: 262 | K12: 124 | L12: 458 | M12: 262
A13: 2 Štatutárne a ostatné fondy | B13: 93 | C13: 1 | D13: 114 | E13: 93 | F13: 103 | G13: 114 | H13: 124 | I13: 103 | J13: 262 | K13: 124 | L13: 458 | M13: 262
A14: IV. Výsledok hospodárenia minulých rokov (+/-) | B14: 145721 | C14: 123880 | D14: 142603 | E14: 145721 | F14: 122712 | G14: 142603 | H14: 114950 | I14: 122712 | J14: 123840 | K14: 114950 | L14: 140000 | M14: 123840
A15: 1 Nerozdelený zisk minulých rokov | B15: 145721 | C15: 130179 | D15: 142603 | E15: 145721 | F15: 122712 | G15: 142603 | H15: 115631 | I15: 122712 | J15: 123840 | K15: 115631 | L15: 140000 | M15: 123840
A16: 3 Iný výsledok hospodárenia minulých rokov (+/-) | B16: 0 | C16: -6299 | D16: 0 | E16: 0 | F16: 0 | G16: 0 | H16: -681 | I16: 0 | J16: 0 | K16: -681 | L16: 0 | M16: 0
A17: V. Výsledok hospodárenia bežného účtovného obdobia (+/-) | B17: -2618 | C17: 22941 | D17: -19391 | E17: -2618 | F17: -6581 | G17: -19391 | H17: 9140 | I17: -6581 | J17: 16426 | K17: 9140 | L17: 53713 | M17: 16426
A18: B. + C. Cudzie zdroje | B18: 514236 | C18: 351555 | D18: 543149 | E18: 514236 | F18: 435581 | G18: 543149 | H18: 408565 | I18: 435581 | J18: 395218 | K18: 408565 | L18: 312497 | M18: 395218
A19: B. Rezervy | B19: 6004 | C19: 6784 | D19: 5831 | E19: 6004 | F19: 5206 | G19: 5831 | H19: 4689 | I19: 5206 | J19: 2134 | K19: 4689 | L19: 1702 | M19: 2134
A20: 4 Ostatné rezervy | B20: 6004 | C20: 6784 | D20: 5831 | E20: 6004 | F20: 5206 | G20: 5831 | H20: 4689 | I20: 5206 | J20: 2134 | K20: 4689 | L20: 1702 | M20: 2134
A21: C. Záväzky | B21: 508232 | C21: 344771 | D21: 537318 | E21: 508232 | F21: 430375 | G21: 537318 | H21: 403876 | I21: 430375 | J21: 393084 | K21: 403876 | L21: 310795 | M21: 393084
A22: I. Dlhodobé záväzky | B22: 120153 | C22: 83587 | D22: 144665 | E22: 120153 | F22: 115564 | G22: 144665 | H22: 97042 | I22: 115564 | J22: 57244 | K22: 97042 | L22: 42111 | M22: 57244
A23: 1 Vydané dlhopisy | B23: 23500 | C23: 23500 | D23: 23500 | E23: 23500 | F23: 6000 | G23: 23500 | H23: 17000 | I23: 6000 | J23: 0 | K23: 17000 | L23: 0 | M23: 0
A24: 2 Ostatné dlhopisy | B24: 23500 | C24: 23500 | D24: 23500 | E24: 23500 | F24: 6000 | G24: 23500 | H24: 17000 | I24: 6000 | J24: 0 | K24: 17000 | L24: 0 | M24: 0
A25: 2 Záväzky k úverovým inštitúciám | B25: 96653 | C25: 60087 | D25: 121165 | E25: 96653 | F25: 109564 | G25: 121165 | H25: 80042 | I25: 109564 | J25: 57244 | K25: 80042 | L25: 42111 | M25: 57244
A26: II. Krátkodobé záväzky | B26: 388079 | C26: 261184 | D26: 392653 | E26: 388079 | F26: 314811 | G26: 392653 | H26: 306834 | I26: 314811 | J26: 335840 | K26: 306834 | L26: 268684 | M26: 335840
A27: 1 Vydané dlhopisy | B27: 0 | C27: 0 | D27: 0 | E27: 0 | F27: 17500 | G27: 0 | H27: 0 | I27: 17500 | J27: 17000 | K27: 0 | L27: 0 | M27: 17000
A28: 2 Ostatné dlhopisy | B28: 0 | C28: 0 | D28: 0 | E28: 0 | F28: 17500 | G28: 0 | H28: 0 | I28: 17500 | J28: 17000 | K28: 0 | L28: 0 | M28: 17000
A29: 2 Záväzky k úverovým inštitúciám | B29: 162270 | C29: 108712 | D29: 186636 | E29: 162270 | F29: 159269 | G29: 186636 | H29: 164526 | I29: 159269 | J29: 161387 | K29: 164526 | L29: 105332 | M29: 161387
A30: 3 Krátkodobé prijaté zálohy | B30: 9704 | C30: 11109 | D30: 10692 | E30: 9704 | F30: 7331 | G30: 10692 | H30: 11058 | I30: 7331 | J30: 12691 | K30: 11058 | L30: 20489 | M30: 12691
A31: 4 Záväzky z obchodných vzťahov | B31: 194759 | C31: 117703 | D31: 164539 | E31: 194759 | F31: 101510 | G31: 164539 | H31: 96033 | I31: 101510 | J31: 109395 | K31: 96033 | L31: 81253 | M31: 109395
A32: 8 Záväzky ostatné | B32: 21346 | C32: 23660 | D32: 30786 | E32: 21346 | F32: 29201 | G32: 30786 | H32: 35217 | I32: 29201 | J32: 35367 | K32: 35217 | L32: 61610 | M32: 35367
A33: 1 Záväzky k spoločníkom | B33: 0 | C33: 0 | D33: 8358 | E33: 0 | F33: 8447 | G33: 8358 | H33: 13000 | I33: 8447 | J33: 13000 | K33: 13000 | L33: 26500 | M33: 13000
A34: 3 Záväzky k zamestnancom | B34: 11550 | C34: 10698 | D34: 10775 | E34: 11550 | F34: 9873 | G34: 10775 | H34: 11549 | I34: 9873 | J34: 11257 | K34: 11549 | L34: 12728 | M34: 11257
A35: 4 Záväzky zo sociálneho zabezpečenia a zdravotného poistenia | B35: 6148 | C35: 5730 | D35: 5664 | E35: 6148 | F35: 5021 | G35: 5664 | H35: 5610 | I35: 5021 | J35: 5642 | K35: 5610 | L35: 6582 | M35: 5642
A36: 5 Štát – daňové záväzky a dotácie | B36: 947 | C36: 911 | D36: 737 | E36: 947 | F36: 545 | G36: 737 | H36: 422 | I36: 545 | J36: 890 | K36: 422 | L36: 9493 | M36: 890
A37: 6 Dohadné účty pasívne | B37: 1328 | C37: 5756 | D37: 1461 | E37: 1328 | F37: 2088 | G37: 1461 | H37: 4191 | I37: 2088 | J37: 2648 | K37: 4191 | L37: 6307 | M37: 2648
A38: 7 Iné záväzky | B38: 1373 | C38: 565 | D38: 3791 | E38: 1373 | F38: 3227 | G38: 3791 | H38: 445 | I38: 3227 | J38: 1930 | K38: 445 | L38: 0 | M38: 1930
A39: D. Časové rozlíšenie pasív | B39: 1729 | C39: 1563 | D39: 10438 | E39: 1729 | F39: 9193 | G39: 10438 | H39: 4729 | I39: 9193 | J39: 9247 | K39: 4729 | L39: 5512 | M39: 9247
A40: 1 Výdaje budúcich období | B40: 1729 | C40: 1403 | D40: 1889 | E40: 1729 | F40: 8582 | G40: 1889 | H40: 3920 | I40: 8582 | J40: 8966 | K40: 3920 | L40: 3790 | M40: 8966
A41: 2 Výnosy budúcich období | B41: 0 | C41: 160 | D41: 8549 | E41: 0 | F41: 611 | G41: 8549 | H41: 809 | I41: 611 | J41: 281 | K41: 809 | L41: 1722 | M41: 281
B44: Bilančná rovnosť
B45: =IF('Súvaha z VS_Aktíva'!D6='Súvaha z VS_Pasíva'!B4,"A=P","ERROR") -> A=P | C45: =IF('Súvaha z VS_Aktíva'!E6='Súvaha z VS_Pasíva'!C4,"A=P","ERROR") -> A=P | D45: =IF('Súvaha z VS_Aktíva'!H6='Súvaha z VS_Pasíva'!D4,"A=P","ERROR") -> A=P | E45: =IF('Súvaha z VS_Aktíva'!I6='Súvaha z VS_Pasíva'!E4,"A=P","ERROR") -> A=P | F45: =IF('Súvaha z VS_Aktíva'!L6='Súvaha z VS_Pasíva'!F4,"A=P","ERROR") -> A=P | G45: =IF('Súvaha z VS_Aktíva'!M6='Súvaha z VS_Pasíva'!G4,"A=P","ERROR") -> A=P | H45: =IF('Súvaha z VS_Aktíva'!P6='Súvaha z VS_Pasíva'!H4,"A=P","ERROR") -> A=P | I45: =IF('Súvaha z VS_Aktíva'!Q6='Súvaha z VS_Pasíva'!I4,"A=P","ERROR") -> A=P | J45: =IF('Súvaha z VS_Aktíva'!T6='Súvaha z VS_Pasíva'!J4,"A=P","ERROR") -> A=P | K45: =IF('Súvaha z VS_Aktíva'!U6='Súvaha z VS_Pasíva'!K4,"A=P","ERROR") -> A=P | L45: =IF('Súvaha z VS_Aktíva'!X6='Súvaha z VS_Pasíva'!L4,"A=P","ERROR") -> A=P | M45: =IF('Súvaha z VS_Aktíva'!Y6='Súvaha z VS_Pasíva'!M4,"A=P","ERROR") -> A=P

Sheet Súvaha pre MDP
C2: SÚVAHA k DD.MM.RRRR
C3: pre maticový diagnostický prístup
C4: AKTÍVA | D4: č. r. | E4: Bežné účtovné obdobie | F4: Minulé účtovné obdobie
C5: Aktíva (A) | D5: --
C6: Stále aktíva (SA) | D6: 3
C7: Dlhodobý hmotný majetok (DHM) | D7: 14
C8: Dlhodobý nehmotný majetok (DNM), Dlhodobý finančný majetok (DFM) | D8: 04 + 27
C9: Obežné aktíva (OA) | D9: 37 + 74
C10: Zásoby (ZÁS) | D10: 38
C11: Pohľadávky (POHĽAD) | D11: 46
C12: Peňažné prostriedky (PEŇ), Krátkodobý finančný majetok (KFM) | D12: 71 + 68
C13: Výrobné fondy (VF) | D13: 14 + 38
C14: PASÍVA | D14: č. r. | E14: Bežné účtovné obdobie | F14: Minulé účtovné obdobie
C15: Vlastný kapitál (VK) | D15: 78 + 141
C16: Cudzie zdroje (CZ) | D16: 101

Sheet Výkaz zisku a straty z VS
B3: 2017-2018 | D3: 2018-2019 | F3: 2019-2020 | H3: 2020-2021 | J3: 2021-2022 | L3: 2022-2023
A4: Riadok | B4: Bežné účtovné obdobie | C4: Minulé účtovné obdobie | D4: Bežné účtovné obdobie | E4: Minulé účtovné obdobie | F4: Bežné účtovné obdobie | G4: Minulé účtovné obdobie | H4: Bežné účtovné obdobie | I4: Minulé účtovné obdobie | J4: Bežné účtovné obdobie | K4: Minulé účtovné obdobie | L4: Bežné účtovné obdobie | M4: Minulé účtovné obdobie
A5: I. Tržby z predaju výrobkov a služieb | B5: 874877 | C5: 782966 | D5: 829883 | E5: =B5 -> 874877 | F5: 721467 | G5: =D5 -> 829883 | H5: 664714 | I5: =F5 -> 721467 | J5: 811642 | K5: =H5 -> 664714 | L5: 824881 | M5: =J5 -> 811642
A6: II. Tržby za predaj tovaru | B6: 0 | C6: 10 | D6: 0 | E6: =B6 -> 0 | F6: 0 | G6: =D6 -> 0 | H6: 0 | I6: =F6 -> 0 | J6: 0 | K6: =H6 -> 0 | L6: 0 | M6: =J6 -> 0
A7: A. Výkonová spotreba | B7: 657377 | C7: 508927 | D7: 597200 | E7: 657377 | F7: 439321 | G7: 597200 | H7: 428861 | I7: 439321 | J7: 572367 | K7: 428861 | L7: 519283 | M7: 572367
A8: 1 Náklady vynaložené na predaný tovar | B8: 8 | C8: 16 | D8: 0 | E8: 8 | F8: 0 | G8: 0 | H8: 0 | I8: 0 | J8: 0 | K8: 0 | L8: 0 | M8: 0
A9: 2 Spotreba materiálu a energie | B9: 394555 | C9: 301178 | D9: 310246 | E9: 394555 | F9: 245791 | G9: 310246 | H9: 242891 | I9: 245791 | J9: 366906 | K9: 242891 | L9: 318836 | M9: 366906
A10: 3 Služby | B10: 262814 | C10: 207733 | D10: 286954 | E10: 262814 | F10: 193530 | G10: 286954 | H10: 185970 | I10: 193530 | J10: 205461 | K10: 185970 | L10: 200447 | M10: 205461
A11: B. Zmena stavu zásob vlastnej činnosti (+/-) | B11: -24537 | C11: 6344 | D11: -11866 | E11: -24537 | F11: 45385 | G11: -11866 | H11: -7596 | I11: 45385 | J11: -21021 | K11: -7596 | L11: 12174 | M11: -21021
A12: C. Aktivácia (-) | B12: -1371 | C12: 0 | D12: -709 | E12: -1371 | F12: -1988 | G12: -709 | H12: -768 | I12: -1988 | J12: 0 | K12: -768 | L12: -783 | M12: 0
A13: D. Osobné náklady | B13: 218283 | C13: 205565 | D13: 223672 | E13: 218283 | F13: 202376 | G13: 223672 | H13: 190381 | I13: 202376 | J13: 205783 | K13: 190381 | L13: 204145 | M13: 205783
A14: 1 Mzdové náklady | B14: 159087 | C14: 149371 | D14: 162767 | E14: 159087 | F14: 147009 | G14: 162767 | H14: 138096 | I14: 147009 | J14: 147284 | K14: 138096 | L14: 145967 | M14: 147284
A15: 2 Náklady na sociálne zabezpečenie, zdravotné poistenie a ostatné náklady | B15: 59196 | C15: 56194 | D15: 60905 | E15: 59196 | F15: 55367 | G15: 60905 | H15: 52285 | I15: 55367 | J15: 58499 | K15: 52285 | L15: 58178 | M15: 58499
A16: 1 Náklady na sociálne zabezpečenie, zdravotné poistenie | B16: 55497 | C16: 52635 | D16: 56989 | E16: 55497 | F16: 51535 | G16: 56989 | H16: 48219 | I16: 51535 | J16: 51560 | K16: 48219 | L16: 51546 | M16: 51560
A17: 2 Ostatné náklady | B17: 3699 | C17: 3559 | D17: 3916 | E17: 3699 | F17: 3832 | G17: 3916 | H17: 4066 | I17: 3832 | J17: 6939 | K17: 4066 | L17: 6632 | M17: 6939
A18: E. Úpravy hodnôt v prevádzkovej oblasti | B18: 27649 | C18: 31086 | D18: 34654 | E18: 27649 | F18: 38582 | G18: 34654 | H18: 41998 | I18: 38582 | J18: 38215 | K18: 41998 | L18: 33274 | M18: 38215
A19: 1 Úpravy hodnôt dlhodobého nehmotného a hmotného majetku | B19: 32903 | C19: 29763 | D19: 37854 | E19: 32903 | F19: 40405 | G19: 37854 | H19: 42058 | I19: 40405 | J19: 37815 | K19: 42058 | L19: 33130 | M19: 37815
A20: 1 Úpravy hodnôt dlhodobého nehmotného a hmotného majetku – trvalé | B20: 33222 | C20: 30044 | D20: 37973 | E20: 33222 | F20: 40681 | G20: 37973 | H20: 42328 | I20: 40681 | J20: 38079 | K20: 42328 | L20: 33394 | M20: 38079
A21: 2 Úpravy hodnôt dlhodobého nehmotného a hmotného majetku – dočasné | B21: -319 | C21: -281 | D21: -319 | E21: -319 | F21: -276 | G21: -319 | H21: -270 | I21: -276 | J21: -264 | K21: -270 | L21: -264 | M21: -264
A22: 2 Úpravy hodnôt zásob | B22: 236 | C22: 1367 | D22: -662 | E22: 236 | F22: 1403 | G22: -662 | H22: 347 | I22: 1403 | J22: 509 | K22: 347 | L22: -40 | M22: 509
A23: 3 Úpravy hodnôt pohľadávok | B23: -5490 | C23: -44 | D23: -2138 | E23: -5490 | F23: -3226 | G23: -2138 | H23: -407 | I23: -3226 | J23: -109 | K23: -407 | L23: 184 | M23: -109
A24: III. Ostatné prevádzkové výnosy | B24: 46026 | C24: 37940 | D24: 45771 | E24: 46026 | F24: 32376 | G24: 45771 | H24: 25738 | I24: 32376 | J24: 28787 | K24: 25738 | L24: 23664 | M24: 28787
A25: 1 Tržby z predaného dlhodobého majetku | B25: 306 | C25: 765 | D25: 101 | E25: 306 | F25: 607 | G25: 101 | H25: 789 | I25: 607 | J25: 162 | K25: 789 | L25: 97 | M25: 162
A26: 2 Tržby z predaného materiálu | B26: 41391 | C26: 33669 | D26: 39328 | E26: 41391 | F26: 25150 | G26: 39328 | H26: 21048 | I26: 25150 | J26: 25375 | K26: 21048 | L26: 19190 | M26: 25375
A27: 3 Iné prevádzkové výnosy | B27: 4329 | C27: 3506 | D27: 6342 | E27: 4329 | F27: 6619 | G27: 6342 | H27: 3901 | I27: 6619 | J27: 3250 | K27: 3901 | L27: 4377 | M27: 3250
A28: F. Ostatné prevádzkové náklady | B28: 44970 | C28: 37410 | D28: 47807 | E28: 44970 | F28: 28717 | G28: 47807 | H28: 24856 | I28: 28717 | J28: 25887 | K28: 24856 | L28: 25561 | M28: 25887
A29: 1 Zostatková cena predaného dlhodobého majetku | B29: 0 | C29: 537 | D29: 0 | E29: 0 | F29: 16 | G29: 0 | H29: 614 | I29: 16 | J29: 104 | K29: 614 | L29: 0 | M29: 104
A30: 2 Zostatková cena predaného materiálu | B30: 38540 | C30: 31933 | D30: 38661 | E30: 38540 | F30: 24438 | G30: 38661 | H30: 20558 | I30: 24438 | J30: 24923 | K30: 20558 | L30: 21838 | M30: 24923
A31: 3 Dane a poplatky z prevádzkovej činnosti | B31: 798 | C31: 753 | D31: 839 | E31: 798 | F31: 763 | G31: 839 | H31: 757 | I31: 763 | J31: 699 | K31: 757 | L31: 709 | M31: 699
A32: 4 Rezervy z prevádzkovej oblasti a komplexné náklady budúcich období | B32: -780 | C32: 2123 | D32: -172 | E32: -780 | F32: -625 | G32: -172 | H32: -517 | I32: -625 | J32: -2555 | K32: -517 | L32: -191 | M32: -2555
A33: 5 Iné prevádzkové náklady | B33: 6412 | C33: 2064 | D33: 8479 | E33: 6412 | F33: 4125 | G33: 8479 | H33: 3444 | I33: 4125 | J33: 2716 | K33: 3444 | L33: 3205 | M33: 2716
A34: * Prevádzkový výsledok hospodárenia (+/-) | B34: -1468 | C34: 31584 | D34: -15304 | E34: -1468 | F34: 1450 | G34: -15304 | H34: 12720 | I34: 1450 | J34: 19198 | K34: 12720 | L34: 54891 | M34: 19198
A35: VI. Výnosové úroky a podobné výnosy | B35: 0 | C35: 0 | D35: 0 | E35: 0 | F35: 0 | G35: 0 | H35: 0 | I35: 0 | J35: 0 | K35: 0 | L35: 2 | M35: 0
A36: 2 Ostatné výnosové úroky a podobné výnosy | B36: 0 | C36: 0 | D36: 0 | E36: 0 | F36: 0 | G36: 0 | H36: 0 | I36: 0 | J36: 0 | K36: 0 | L36: 2 | M36: 0
A37: J. Nákladové úroky a podobné náklady | B37: 3260 | C37: 2619 | D37: 6817 | E37: 3260 | F37: 9203 | G37: 6817 | H37: 5219 | I37: 9203 | J37: 6334 | K37: 5219 | L37: 8737 | M37: 6334
A38: 1 Nákladové úroky a podobné náklady – ovládaná alebo ovládajúca osoba | B38: 913 | C38: 913 | D38: 918 | E38: 913 | F38: 996 | G38: 918 | H38: 999 | I38: 996 | J38: 980 | K38: 999 | L38: 1041 | M38: 980
A39: 2 Ostatné nákladové úroky a podobné náklady | B39: 2347 | C39: 1706 | D39: 5899 | E39: 2347 | F39: 8207 | G39: 5899 | H39: 4220 | I39: 8207 | J39: 5354 | K39: 4220 | L39: 7696 | M39: 5354
A40: VII. Ostatné finančné výnosy | B40: 15765 | C40: 762 | D40: 7690 | E40: 15765 | F40: 17455 | G40: 7690 | H40: 20892 | I40: 17455 | J40: 24339 | K40: 20892 | L40: 39271 | M40: 24339
A41: K. Ostatné finančné náklady | B41: 14464 | C41: 1673 | D41: 9481 | E41: 14464 | F41: 19244 | G41: 9481 | H41: 17061 | I41: 19244 | J41: 17110 | K41: 17061 | L41: 18786 | M41: 17110
A42: * Finančný výsledok hospodárenia (+/-) | B42: -1959 | C42: -3530 | D42: -8608 | E42: -1959 | F42: -10992 | G42: -8608 | H42: -1388 | I42: -10992 | J42: 895 | K42: -1388 | L42: 11750 | M42: 895
A43: ** Výsledok hospodárenia pred zdanením (+/-) | B43: -3427 | C43: 28054 | D43: -23912 | E43: -3427 | F43: -9542 | G43: -23912 | H43: 11332 | I43: -9542 | J43: 20093 | K43: 11332 | L43: 66641 | M43: 20093
A44: L. Daň z príjmu | B44: -809 | C44: 5113 | D44: -4521 | E44: -809 | F44: -2961 | G44: -4521 | H44: 2192 | I44: -2961 | J44: 3667 | K44: 2192 | L44: 12928 | M44: 3667
A45: 1 Daň z príjmu splatná | B45: 0 | C45: 0 | D45: 0 | E45: 0 | F45: 0 | G45: 0 | H45: 0 | I45: 0 | J45: 0 | K45: 0 | L45: 7975 | M45: 0
A46: 2 Daň z príjmu odložená (+/-) | B46: -809 | C46: 5113 | D46: -4521 | E46: -809 | F46: -2961 | G46: -4521 | H46: 2192 | I46: -2961 | J46: 3667 | K46: 2192 | L46: 4953 | M46: 3667
A47: ** Výsledok hospodárenia po zdanení (+/-) | B47: -2618 | C47: 22941 | D47: -19391 | E47: -2618 | F47: -6581 | G47: -19391 | H47: 9140 | I47: -6581 | J47: 16426 | K47: 9140 | L47: 53713 | M47: 16426
A48: * Čistý obrat za účtovné obdobie = I. + II. + III.1IV. + V.+ VI. + VII. | B48: 936668 | C48: 821678 | D48: 883344 | E48: 936668 | F48: 771298 | G48: 883344 | H48: 711344 | I48: 771298 | J48: 864768 | K48: 711344 | L48: 887818 | M48: 864768

Sheet Výkaz zisku a straty pre MDP
C2: VÝKAZ ZISKU A STRATY k DD.MM.RRRR
C3: pre maticový diagnostický prístup
C4: Text | D4: č. r. | E4: Bežné účtovné obdobie | F4: Minulé účtovné obdobie
C5: Spotreba materiálu (MAT) | D5: 3
C6: Spotreba energie (EN) | D6: --
C7: Odpisy (ODP) | D7: 14
C8: Mzdové náklady (MZDY) | D8: 9
C9: Finančné náklady (FN) | D9: 24, 34, 38, 42, 43, 47, 50
C10: Celkové náklady (CN) | D10: 03, 14, 09, 24, 34, 38, 42, 43, 47, 50
C12: Výnosy/výkony celkom (V) | D12: 07, 08, 56
C14: Vlastné výkony (VV) Pridaná hodnota (PH) | D14: 07, 08, 56, 03
C15: Čistá výroba (ČV) | D15: 07, 08, 56, 03, 14
C16: Hrubý zisk pre metódu maticového diagnostického prístupu (HZMDP) | D16: 07, 08,56, 03,09
C17: Čistý zisk pre metódu maticového diagnostického prístupu (ČZMDP) | D17: 07, 08, 56, 03, 09, 24, 34, 38, 42, 43, 47, 50

Sheet AbUkazovatele pre MDP z výkazov (hidden)
B1: Norma růstu (%) | C1: 1.4.2017 - 31.3.2018 | D1: 1.4.2018 - 31.3.2019 | E1: 1.4.2019 - 31.3.2020 | F1: 1.4.2020 - 31.3.2021 | G1: 1.4.2021 - 31.3.2022 | H1: 1.4.2022 - 31.3.2023
A2: 1. A | B2: 2.6 | C2: 867605 | D2: 885357 | E2: 769452 | F2: 745952 | G2: 752503 | H2: 718465
A3: 2. VK | B3: 3 | C3: 353369 | D3: =331770+10438 -> 342208 | E3: 333871 | F3: 337387 | G3: 357285 | H3: 405968
A4: 3. CZ | B4: 1.5 | C4: 514236 | D4: 543149 | E4: 435581 | F4: 408565 | G4: 395218 | H4: 312497
A5: 4. SA | B5: 2.9 | C5: 462050 | D5: 487836 | E5: 455093 | F5: 427056 | G5: 400883 | H5: 378558
A6: 5. DHM | B6: 3 | C6: 460390 | D6: 485192 | E6: 452898 | F6: 423254 | G6: 397055 | H6: 374263
A7: 6. DNM, DFM | B7: 2.2 | C7: 1660 | D7: 2644 | E7: 2195 | F7: 3802 | G7: 3828 | H7: 4295
A8: 7. OA | B8: 2 | C8: 405555 | D8: 397521 | E8: 314359 | F8: 318896 | G8: 351620 | H8: 339907
A9: 8. ZÁS | B9: 1 | C9: 176575 | D9: 187789 | E9: 141380 | F9: 141365 | G9: 165504 | H9: 152289
A10: 9. POHLED | B10: 2.5 | C10: 220792 | D10: 202270 | E10: 170123 | F10: 149258 | G10: 163984 | H10: 177113
A11: 10. PEN, KFM | B11: 2.5 | C11: 5754 | D11: 5421 | E11: 671 | F11: 25055 | G11: 18672 | H11: 4134
A12: 11. VF | B12: 2.8 | C12: =C6+C9 -> 636965 | D12: 672981 | E12: 594278 | F12: 564619 | G12: 562559 | H12: 526552
A13: 12. MAT | B13: 1 | C13: 657377 | D13: 597200 | E13: 439321 | F13: 428861 | G13: 572367 | H13: 519283
A14: 13. EN | B14: 1 | C14: 21147 | D14: 23619 | E14: 21645 | F14: 20034 | G14: 40041 | H14: 42515
A15: 14. ODP | B15: 4 | C15: 27649 | D15: 34854 | E15: 38582 | F15: 41998 | G15: 38215 | H15: 33274
A16: 15. MZDY | B16: 3 | C16: 218283 | D16: 223672 | E16: 202376 | F16: 190381 | G16: 205783 | H16: 204145
A17: 16. FN | B17: 3.5 | C17: 61885 | D17: 59584 | E17: 54203 | F17: 49328 | G17: 52998 | H17: 66012
A18: 17. CN | B18: 2.6 | C18: =C13+C14+C15+C16+C17 -> 986341 | D18: 938929 | E18: 756127 | F18: 730602 | G18: 909404 | H18: 865229
A19: 18. V | B19: 3 | C19: 962576 | D19: 895919 | E19: 727901 | F19: 719708 | G19: 885789 | H19: 876427
A20: 19. VV (PH) | B20: 4 | C20: =C19-C13 -> 305199 | D20: 298719 | E20: 288580 | F20: 290847 | G20: 313422 | H20: 357144
A21: 20. ČV | B21: 4 | C21: =C20-C15 -> 277550 | D21: =D20-D15 -> 263865 | E21: 249998 | F21: 248849 | G21: 275207 | H21: 323870
A22: 21. HZMDP | B22: 5 | C22: =C21-C16 -> 59267 | D22: 40193 | E22: 47622 | F22: 58468 | G22: 69424 | H22: 119725
A23: 22. ČZMDP | B23: 8 | C23: =C22-C17 -> -2618 | D23: -19391 | E23: -6581 | F23: 9140 | G23: 16426 | H23: 53713

Sheet 1. tabuľka (hidden)
D1: Tabuľka 1 Normy rastu absolútnych a podielových ukazovateľov
D3: A | E3: KJ | F3: D | G3: ZPI | H3: ZP | I3: I | J3: OP | K3: ZÁS | L3: POHL | M3: PEN | N3: VF | O3: MAT | P3: EN | Q3: ODP | R3: MZDY | S3: FN | T3: VN | U3: V | V3: VV | W3: ČV | X3: HZ | Y3: ČZ
D4: 2.6 | E4: 3 | F4: 1.5 | G4: 2.9 | H4: 3 | I4: 2.2 | J4: 2 | K4: 1 | L4: 2.5 | M4: 2.5 | N4: 2.8 | O4: 1 | P4: 1 | Q4: 4 | R4: 3 | S4: 3.5 | T4: 2.6 | U4: 3 | V4: 4 | W4: 4 | X4: 5 | Y4: 8
B5: A | C5: 2.6 | E5: 0.4 | F5: -1.1 | G5: 0.3 | H5: 0.4 | I5: -0.4 | J5: -0.6 | K5: -1.6 | L5: -0.1 | M5: -0.1 | N5: 0.2 | U5: 0.4 | V5: 1.4 | W5: 1.4 | X5: 2.3 | Y5: 5.3
B6: KJ | C6: 3 | I6: (2) | U6: 0 | V6: 1 | W6: 1 | X6: 1.9 | Y6: 4.9
B7: D | C7: 1.5 | U7: 1.5 | V7: 2.5 | W7: 2.5 | X7: 3.4 | Y7: 6.4
B8: ZPI | C8: 2.9 | P8: Pôvodná varianta | T8: (1a) | U8: 0.1 | V8: 1.1 | W8: 1.1 | X8: 2 | Y8: 5 | Z8: (1b)
B9: ZP | C9: 3 | U9: 0 | V9: 1 | W9: 1 | X9: 1.9 | Y9: 4.9
B10: I | C10: 2.2 | L10: (3) | U10: 0.8 | V10: 1.8 | W10: 1.8 | X10: 2.7 | Y10: 5.7
B11: OP | C11: 2 | K11: -1 | L11: 0 | M11: 0 | U11: 1 | V11: 2 | W11: 2 | X11: 2.9 | Y11: 5.9
B12: ZÁS | C12: 1 | F12: (4) | U12: 2 | V12: 3 | W12: 3 | X12: 4 | Y12: 6.9
B13: POHL | C13: 2.5 | F13: -1
B14: PEN | C14: 2.5 | V14: (13) | Y14: (14)
B15: VF | C15: 2.8 | U15: 0.2 | V15: 1.2 | W15: 1.2 | X15: 2.1 | Y15: 5.1
B16: MAT | C16: 1
B17: EN | C17: 1
B18: ODP | C18: 4 | W18: (7) | X18: (8)
B19: MZDY | C19: 3 | U19: 0 | V19: 1 | W19: 1 | X19: 1.9 | Y19: 4.9
B20: FN | C20: 3.5 | Q20: (10)
B21: VN | C21: 2.6 | O21: -1.6 | P21: -1.6 | Q21: 1.4 | R21: 0.4 | S21: 0.9 | Y21: 5.3 | Z21: (11)
B22: V | C22: 3 | O22: -1.9 | P22: -1.9 | Q22: 1 | R22: 0 | S22: 0.5 | T22: -0.4 | X22: 1.9 | Y22: 4.9
B23: VV | C23: 4 | O23: -2.9 | P23: -2.9 | Q23: 0 | R23: -1 | S23: -0.5 | T23: -1.3 | U23: (12) | X23: 1 | Y23: 3.8 | Z23: (5)
B24: ČV | C24: 4 | O24: -2.9 | P24: -2.9 | Q24: 0 | R24: -1 | S24: -0.5 | T24: -1.3 | X24: 1 | Y24: 3.8
B25: HZ | C25: 5 | Q25: (9) | Y25: 2.9 | Z25: (6)
B26: ČZ | C26: 8
A28: *štýl orámovania hrubej čiary - 1.
D31: Tabuľka 1 Normy rastu absolútnych a podielových ukazovateľov
D33: A | E33: VK | F33: CZ | G33: SA | H33: DHM | I33: DNM, DFM | J33: OA | K33: ZÁS | L33: POHĽAD | M33: PEŇ, KFM | N33: VF | O33: MAT | P33: EN | Q33: ODP | R33: MZDY | S33: FN | T33: CN | U33: V | V33: VV (PH) | W33: ČV | X33: HZMDP | Y33: ČZMDP
D34: 2.6 | E34: 3 | F34: 1.5 | G34: 2.9 | H34: 3 | I34: 2.2 | J34: 2 | K34: 1 | L34: 2.5 | M34: 2.5 | N34: 2.8 | O34: 1 | P34: 1 | Q34: 4 | R34: 3 | S34: 3.5 | T34: 2.6 | U34: 3 | V34: 4 | W34: 4 | X34: 5 | Y34: 8
B35: A | C35: 2.6 | E35: 0.4 | F35: -1.1 | G35: 0.3 | H35: 0.4 | I35: -0.4 | J35: -0.6 | K35: -1.6 | L35: -0.1 | M35: -0.1 | N35: 0.2 | U35: 0.4 | V35: 1.4 | W35: 1.4 | X35: 2.3 | Y35: 5.3
B36: VK | C36: 3 | I36: (2) | U36: 0 | V36: 1 | W36: 1 | X36: 1.9 | Y36: 4.9
B37: CZ | C37: 1.5 | U37: 1.5 | V37: 2.5 | W37: 2.5 | X37: 3.4 | Y37: 6.4
B38: SA | C38: 2.9 | P38: Pôvodná varianta | T38: (1a) | U38: 0.1 | V38: 1.1 | W38: 1.1 | X38: 2 | Y38: 5 | Z38: (1b)
B39: DHM | C39: 3 | U39: 0 | V39: 1 | W39: 1 | X39: 1.9 | Y39: 4.9
B40: DNM, DFM | C40: 2.2 | L40: (3) | U40: 0.8 | V40: 1.8 | W40: 1.8 | X40: 2.7 | Y40: 5.7
B41: OA | C41: 2 | K41: -1 | L41: 0.5 | M41: 0.5 | U41: 1 | V41: 2 | W41: 2 | X41: 2.9 | Y41: 5.9
B42: ZÁS | C42: 1 | F42: (4) | U42: 2 | V42: 3 | W42: 3 | X42: 4 | Y42: 6.9
B43: POHĽAD | C43: 2.5 | F43: -1
B44: PEŇ, KFM | C44: 2.5 | V44: (13) | Y44: (14)
B45: VF | C45: 2.8 | U45: 0.2 | V45: 1.2 | W45: 1.2 | X45: 2.1 | Y45: 5.1
B46: MAT | C46: 1
B47: EN | C47: 1
B48: ODP | C48: 4 | W48: (7) | X48: (8)
B49: MZDY | C49: 3 | U49: 0 | V49: 1 | W49: 1 | X49: 1.9 | Y49: 4.9
B50: FN | C50: 3.5 | Q50: (10)
B51: CN | C51: 2.6 | O51: -1.6 | P51: -1.6 | Q51: 1.4 | R51: 0.4 | S51: 0.9 | Y51: 5.3 | Z51: (11)
B52: V | C52: 3 | O52: -1.9 | P52: -1.9 | Q52: 1 | R52: 0 | S52: 0.5 | T52: -0.4 | X52: 2 | Y52: 4.9
B53: VV (PH) | C53: 4 | O53: -2.9 | P53: -2.9 | Q53: 0 | R53: -1 | S53: -0.5 | T53: -1.3 | U53: (12) | X53: 1 | Y53: 3.8 | Z53: (5)
B54: ČV | C54: 4 | O54: -2.9 | P54: -2.9 | Q54: 0 | R54: -1 | S54: -0.5 | T54: -1.3 | X54: 1 | Y54: 3.8
B55: HZMDP | C55: 5 | Q55: (9) | Y55: 2.9 | Z55: (6)
B56: ČZMDP | C56: 8

Sheet 2. tabuľka (hidden)
B1: Tabuľka 2 Príklad 1 variácií s opakovaním pre 7 prvkov, ich transformáciu a výber vhodných variácií
K3: 1 | L3: 2 | N3: 3 | Q3: 4
B4: 1 | C4: 1 | D4: 1 | E4: 1 | F4: 1 | G4: 1 | H4: 1 | K4: 1 | L4: 1 | M4: 1 | N4: 1 | O4: 1 | P4: 1 | Q4: 1
B5: 1 | C5: 1 | D5: 1 | E5: 1 | F5: 1 | G5: 1 | H5: 1 | J5: → | K5: 1 | L5: 1 | M5: 1 | N5: 1 | O5: 1 | P5: 1 | Q5: 1
B6: 1 | C6: 2 | D6: 3 | E6: 4 | F6: 5 | G6: 6 | H6: 7 | K6: 1 | L6: 2 | M6: 3 | N6: -1 | O6: -2 | P6: -3 | Q6: 0
K8: 5 | L8: 6 | M8: 7 | N8: 8 | Q8: 9
B9: 1 | C9: 1 | D9: 1 | E9: 1 | F9: 1 | G9: 1 | H9: 1 | K9: 1 | L9: 1 | M9: 1 | N9: 1 | O9: 1 | P9: 1 | Q9: 1
B10: 2 | C10: 2 | D10: 2 | E10: 2 | F10: 2 | G10: 2 | H10: 2 | J10: → | K10: 2 | L10: 2 | M10: 2 | N10: 2 | O10: 2 | P10: 2 | Q10: 2
B11: 1 | C11: 2 | D11: 3 | E11: 4 | F11: 5 | G11: 6 | H11: 7 | K11: 1 | L11: 2 | M11: 3 | N11: -1 | O11: -2 | P11: -3 | Q11: 0
L13: 10
B14: 1 | C14: 1 | D14: 1 | E14: 1 | F14: 1 | G14: 1 | H14: 1 | K14: 1 | L14: 1 | M14: 1 | N14: 1 | O14: 1 | P14: 1 | Q14: 1
B15: 3 | C15: 3 | D15: 3 | E15: 3 | F15: 3 | G15: 3 | H15: 3 | J15: → | K15: 3 | L15: 3 | M15: 3 | N15: 3 | O15: 3 | P15: 3 | Q15: 3
B16: 1 | C16: 2 | D16: 3 | E16: 4 | F16: 5 | G16: 6 | H16: 7 | K16: 1 | L16: 2 | M16: 3 | N16: -1 | O16: -2 | P16: -3 | Q16: 0
K18: 11 | L18: 12 | N18: 13 | O18: 14 | Q18: 15
B19: 1 | C19: 1 | D19: 1 | E19: 1 | F19: 1 | G19: 1 | H19: 1 | K19: 1 | L19: 1 | M19: 1 | N19: 1 | O19: 1 | P19: 1 | Q19: 1
B20: 4 | C20: 4 | D20: 4 | E20: 4 | F20: 4 | G20: 4 | H20: 4 | J20: → | K20: -1 | L20: -1 | M20: -1 | N20: -1 | O20: -1 | P20: -1 | Q20: -1
B21: 1 | C21: 2 | D21: 3 | E21: 4 | F21: 5 | G21: 6 | H21: 7 | K21: 1 | L21: 2 | M21: 3 | N21: -1 | O21: -2 | P21: -3 | Q21: 0
N23: 16
B24: 1 | C24: 1 | D24: 1 | E24: 1 | F24: 1 | G24: 1 | H24: 1 | K24: 1 | L24: 1 | M24: 1 | N24: 1 | O24: 1 | P24: 1 | Q24: 1
B25: 5 | C25: 5 | D25: 5 | E25: 5 | F25: 5 | G25: 5 | H25: 5 | J25: → | K25: -2 | L25: -2 | M25: -2 | N25: -2 | O25: -2 | P25: -2 | Q25: -2
B26: 1 | C26: 2 | D26: 3 | E26: 4 | F26: 5 | G26: 6 | H26: 7 | K26: 1 | L26: 2 | M26: 3 | N26: -1 | O26: -2 | P26: -3 | Q26: 0
B29: 1 | C29: 1 | D29: 1 | E29: 1 | F29: 1 | G29: 1 | H29: 1 | K29: 1 | L29: 1 | M29: 1 | N29: 1 | O29: 1 | P29: 1 | Q29: 1
B30: 6 | C30: 6 | D30: 6 | E30: 6 | F30: 6 | G30: 6 | H30: 6 | J30: → | K30: -3 | L30: -3 | M30: -3 | N30: -3 | O30: -3 | P30: -3 | Q30: -3
B31: 1 | C31: 2 | D31: 3 | E31: 4 | F31: 5 | G31: 6 | H31: 7 | K31: 1 | L31: 2 | M31: 3 | N31: -1 | O31: -2 | P31: -3 | Q31: 0
K33: 17 | L33: 18 | N33: 19 | Q33: 20
B34: 1 | C34: 1 | D34: 1 | E34: 1 | F34: 1 | G34: 1 | H34: 1 | K34: 1 | L34: 1 | M34: 1 | N34: 1 | O34: 1 | P34: 1 | Q34: 1
B35: 7 | C35: 7 | D35: 7 | E35: 7 | F35: 7 | G35: 7 | H35: 7 | J35: → | K35: 0 | L35: 0 | M35: 0 | N35: 0 | O35: 0 | P35: 0 | Q35: 0
B36: 1 | C36: 2 | D36: 3 | E36: 4 | F36: 5 | G36: 6 | H36: 7 | K36: 1 | L36: 2 | M36: 3 | N36: -1 | O36: -2 | P36: -3 | Q36: 0

Sheet 3. tabuľka (hidden)
C2: Tabuľka 3 Štandardizovaná tabuľka pre rozpis trojpodielových skupín či podskupín
B4: SKUPINA ČI PODSKUPINA: 57 variácií
B5: UK.: | C5: NORMA | E5: 1 | F5: 2 | G5: 3 | H5: 4 | I5: 5 | J5: 6 | K5: 7 | L5: 8 | M5: 9 | N5: 10 | O5: 11 | P5: 12 | Q5: 13 | R5: 14 | S5: 15 | T5: 16 | U5: 17 | V5: 18 | W5: 19 | X5: 20
E6: 1 | F6: 1 | G6: 1 | H6: 2 | I6: 2 | J6: 3 | K6: 3 | L6: -1 | M6: -1 | N6: -1 | O6: -2 | P6: -2 | Q6: -3 | R6: -3 | S6: 1 | T6: 1 | U6: 2 | V6: 2 | W6: 2 | X6: 1
E7: 1 | F7: 2 | G7: 3 | H7: 1 | I7: 3 | J7: 1 | K7: 2 | L7: -1 | M7: -2 | N7: -3 | O7: -1 | P7: -3 | Q7: -1 | R7: -2 | S7: 1 | T7: 2 | U7: 1 | V7: 2 | W7: 1 | X7: 2
E8: 1 | F8: 3 | G8: 2 | H8: 3 | I8: 1 | J8: 2 | K8: 1 | L8: -1 | M8: -3 | N8: -2 | O8: -3 | P8: -1 | Q8: -2 | R8: -1 | S8: 2 | T8: 1 | U8: 1 | V8: 1 | W8: 2 | X8: 2
B9: UK.: | C9: NORMA | E9: 21 | F9: 22 | G9: 23 | H9: 24 | I9: 25 | J9: 26 | K9: 27 | L9: 28 | M9: 29 | N9: 30 | O9: 31 | P9: 32 | Q9: 33 | R9: 34 | S9: 35 | T9: 36 | U9: 37 | V9: 38 | W9: 39
E10: -1 | F10: -1 | G10: -2 | H10: -2 | I10: -2 | J10: -1 | K10: 0 | L10: 0 | M10: 0 | N10: 1 | O10: 0 | P10: 1 | Q10: 1 | R10: 0 | S10: 0 | T10: 1 | U10: 2 | V10: 1 | W10: 2
E11: -1 | F11: -2 | G11: -1 | H11: -2 | I11: -1 | J11: -2 | K11: 0 | L11: 0 | M11: 1 | N11: 0 | O11: 1 | P11: 0 | Q11: 1 | R11: 1 | S11: 2 | T11: 0 | U11: 0 | V11: 2 | W11: 1
E12: -2 | F12: -1 | G12: -1 | H12: -1 | I12: -2 | J12: -2 | K12: 0 | L12: 1 | M12: 0 | N12: 0 | O12: 1 | P12: 1 | Q12: 0 | R12: 2 | S12: 1 | T12: 2 | U12: 1 | V12: 0 | W12: 0
B13: UK.: | C13: NORMA | E13: 40 | F13: 41 | G13: 42 | H13: 43 | I13: 44 | J13: 45 | K13: 46 | L13: 47 | M13: 48 | N13: 49 | O13: 50 | P13: 51 | Q13: 52 | R13: 53 | S13: 54 | T13: 55 | U13: 56 | V13: 57
E14: 0 | F14: 0 | G14: -1 | H14: 0 | I14: -1 | J14: -1 | K14: 0 | L14: 0 | M14: -1 | N14: -2 | O14: -1 | P14: -2 | Q14: 0 | R14: 0 | S14: -1 | T14: 1 | U14: -1 | V14: 1
E15: 0 | F15: -1 | G15: 0 | H15: -1 | I15: 0 | J15: -1 | K15: -1 | L15: -2 | M15: 0 | N15: 0 | O15: -2 | P15: -1 | Q15: -1 | R15: 1 | S15: 0 | T15: 0 | U15: 1 | V15: -1
E16: -1 | F16: 0 | G16: 0 | H16: -1 | I16: -1 | J16: 0 | K16: -2 | L16: -1 | M16: -2 | N16: -1 | O16: 0 | P16: 0 | Q16: 1 | R16: -1 | S16: 1 | T16: -1 | U16: 0 | V16: 0

Sheet 4. tabuľka (hidden)
C2: Tabuľka 4 Príklad II - Skupina 2 b. Štruktúra aktív
C4: Norma | E4: N | F4: N | G4: N | H4: N | I4: N | J4: N | K4: N | L4: DP | M4: DP | N4: SP | O4: SP | P4: SP | Q4: SP | R4: SP | S4: N | T4: N | U4: N | V4: N | W4: N | X4: N
B5: ZP/A | C5: 0.4 | D5: 1 | E5: 1 | F5: 1 | G5: 1 | H5: 2 | I5: 2 | J5: 3 | K5: 3 | L5: -1 | M5: -1 | N5: -1 | O5: -2 | P5: -2 | Q5: -3 | R5: -3 | S5: 1 | T5: 1 | U5: 2 | V5: 2 | W5: 2 | X5: 1
B6: I/A | C6: -0.4 | D6: -1 | E6: 1 | F6: 2 | G6: 3 | H6: 1 | I6: 3 | J6: 1 | K6: 2 | L6: -1 | M6: -2 | N6: -3 | O6: -1 | P6: -3 | Q6: -1 | R6: -2 | S6: 1 | T6: 2 | U6: 1 | V6: 2 | W6: 1 | X6: 2
B7: OP/A | C7: -0.6 | D7: -2 | E7: 1 | F7: 3 | G7: 2 | H7: 3 | I7: 1 | J7: 2 | K7: 1 | L7: -1 | M7: -3 | N7: -2 | O7: -3 | P7: =-1 -> -1 | Q7: -2 | R7: -1 | S7: 2 | T7: 1 | U7: 1 | V7: 1 | W7: 2 | X7: 2
C9: Norma | E9: DP | F9: DP | G9: DP | H9: SP | I9: SP | J9: SP | K9: N | L9: N | M9: N | N9: VN | O9: N | P9: SP | Q9: SP | R9: SP | S9: SP | T9: DN | U9: DN | V9: DN
B10: ZP/A | C10: 0.4 | D10: 1 | E10: -1 | F10: -1 | G10: -2 | H10: -2 | I10: -2 | J10: -1 | K10: -1 | L10: 1 | M10: 1 | N10: -1 | O10: -1 | P10: 1 | Q10: 2 | R10: 1 | S10: 2 | T10: -1 | U10: -1 | V10: 1
B11: I/A | C11: -0.4 | D11: -1 | E11: -1 | F11: -2 | G11: -1 | H11: -2 | I11: -1 | J11: -2 | K11: 1 | L11: -1 | M11: 1 | N11: 1 | O11: 2 | P11: -1 | Q11: -1 | R11: 2 | S11: 1 | T11: -1 | U11: 1 | V11: -1
B12: OP/A | C12: -0.6 | D12: -2 | E12: -2 | F12: -1 | G12: -1 | H12: -1 | I12: -2 | J12: -2 | K12: 1 | L12: 1 | M12: -1 | N12: 2 | O12: 1 | P12: 2 | Q12: 1 | R12: -1 | S12: -1 | T12: 1 | U12: -1 | V12: -1
C14: Norma | E14: DN | F14: DN | G14: DN | H14: DN | I14: VP | J14: P | K14: S | L14: N | M14: N | N14: DP | O14: N | P14: SN | Q14: SN | R14: N | S14: N | T14: DN | U14: DN | V14: DN | W14: DN
B15: ZP/A | C15: 0.4 | D15: 1 | E15: -1 | F15: -2 | G15: -1 | H15: -2 | I15: 1 | J15: 1 | K15: 0 | L15: 0 | M15: 0 | N15: 1 | O15: 0 | P15: 1 | Q15: 1 | R15: 0 | S15: 0 | T15: 1 | U15: 2 | V15: 1 | W15: 2
B16: I/A | C16: -0.4 | D16: -1 | E16: -2 | F16: -1 | G16: 1 | H16: 1 | I16: -1 | J16: -2 | K16: 0 | L16: 0 | M16: 1 | N16: 0 | O16: 1 | P16: 0 | Q16: 1 | R16: 1 | S16: 2 | T16: 0 | U16: 0 | V16: 2 | W16: 1
B17: OP/A | C17: -0.6 | D17: -2 | E17: 1 | F17: 1 | G17: -2 | H17: -1 | I17: -2 | J17: -1 | K17: 0 | L17: 1 | M17: 0 | N17: 0 | O17: 1 | P17: 1 | Q17: 0 | R17: 2 | S17: 1 | T17: 2 | U17: 1 | V17: 0 | W17: 0
C19: Norma | E19: DP | F19: DP | G19: DP | H19: P | I19: DP | J19: DP | K19: P | L19: DP | M19: DN | N19: DN | O19: DN | P19: DN | Q19: DP | R19: DP | S19: DN | T19: P | U19: DN | V19: P
B20: ZP/A | C20: 0.4 | D20: 1 | E20: 0 | F20: 0 | G20: -1 | H20: 0 | I20: -1 | J20: -1 | K20: 0 | L20: 0 | M20: -1 | N20: -2 | O20: -1 | P20: -2 | Q20: 0 | R20: 0 | S20: -1 | T20: 1 | U20: -1 | V20: 1
B21: I/A | C21: -0.4 | D21: -1 | E21: 0 | F21: -1 | G21: 0 | H21: -1 | I21: 0 | J21: -1 | K21: -1 | L21: -2 | M21: 0 | N21: 0 | O21: -2 | P21: -1 | Q21: -1 | R21: 1 | S21: 0 | T21: 0 | U21: 1 | V21: -1
B22: OP/A | C22: -0.6 | D22: -2 | E22: -1 | F22: 0 | G22: 0 | H22: -1 | I22: -1 | J22: 0 | K22: -2 | L22: -1 | M22: -2 | N22: -1 | O22: 0 | P22: 0 | Q22: 1 | R22: -1 | S22: 1 | T22: -1 | U22: 0 | V22: 0
C25: Norma | E25: N | F25: N | G25: N | H25: N | I25: N | J25: N | K25: N | L25: DP | M25: DP | N25: SP | O25: SP | P25: SP | Q25: SP | R25: SP | S25: N | T25: N | U25: N | V25: N | W25: N | X25: N
B26: SA/A | C26: 0.4 | D26: 1 | E26: 1 | F26: 1 | G26: 1 | H26: 2 | I26: 2 | J26: 3 | K26: 3 | L26: -1 | M26: -1 | N26: -1 | O26: -2 | P26: -2 | Q26: -3 | R26: -3 | S26: 1 | T26: 1 | U26: 2 | V26: 2 | W26: 2 | X26: 1
B27: DNM, DFM/A | C27: -0.4 | D27: -1 | E27: 1 | F27: 2 | G27: 3 | H27: 1 | I27: 3 | J27: 1 | K27: 2 | L27: -1 | M27: -2 | N27: -3 | O27: -1 | P27: -3 | Q27: -1 | R27: -2 | S27: 1 | T27: 2 | U27: 1 | V27: 2 | W27: 1 | X27: 2
B28: OA/A | C28: -0.6 | D28: -2 | E28: 1 | F28: 3 | G28: 2 | H28: 3 | I28: 1 | J28: 2 | K28: 1 | L28: -1 | M28: -3 | N28: -2 | O28: -3 | P28: =-1 -> -1 | Q28: -2 | R28: -1 | S28: 2 | T28: 1 | U28: 1 | V28: 1 | W28: 2 | X28: 2
C30: Norma | E30: DP | F30: DP | G30: DP | H30: SP | I30: SP | J30: SP | K30: N | L30: N | M30: N | N30: VN | O30: N | P30: SP | Q30: SP | R30: SP | S30: SP | T30: DN | U30: DN | V30: DN
B31: SA/A | C31: 0.4 | D31: 1 | E31: -1 | F31: -1 | G31: -2 | H31: -2 | I31: -2 | J31: -1 | K31: -1 | L31: 1 | M31: 1 | N31: -1 | O31: -1 | P31: 1 | Q31: 2 | R31: 1 | S31: 2 | T31: -1 | U31: -1 | V31: 1
B32: DNM, DFM/A | C32: -0.4 | D32: -1 | E32: -1 | F32: -2 | G32: -1 | H32: -2 | I32: -1 | J32: -2 | K32: 1 | L32: -1 | M32: 1 | N32: 1 | O32: 2 | P32: -1 | Q32: -1 | R32: 2 | S32: 1 | T32: -1 | U32: 1 | V32: -1
B33: OA/A | C33: -0.6 | D33: -2 | E33: -2 | F33: -1 | G33: -1 | H33: -1 | I33: -2 | J33: -2 | K33: 1 | L33: 1 | M33: -1 | N33: 2 | O33: 1 | P33: 2 | Q33: 1 | R33: -1 | S33: -1 | T33: 1 | U33: -1 | V33: -1
C35: Norma | E35: DN | F35: DN | G35: DN | H35: DN | I35: VP | J35: P | K35: S | L35: N | M35: N | N35: DP | O35: N | P35: SN | Q35: SN | R35: N | S35: N | T35: DN | U35: DN | V35: DN | W35: DN
B36: SA/A | C36: 0.4 | D36: 1 | E36: -1 | F36: -2 | G36: -1 | H36: -2 | I36: 1 | J36: 1 | K36: 0 | L36: 0 | M36: 0 | N36: 1 | O36: 0 | P36: 1 | Q36: 1 | R36: 0 | S36: 0 | T36: 1 | U36: 2 | V36: 1 | W36: 2
B37: DNM, DFM/A | C37: -0.4 | D37: -1 | E37: -2 | F37: -1 | G37: 1 | H37: 1 | I37: -1 | J37: -2 | K37: 0 | L37: 0 | M37: 1 | N37: 0 | O37: 1 | P37: 0 | Q37: 1 | R37: 1 | S37: 2 | T37: 0 | U37: 0 | V37: 2 | W37: 1
B38: OA/A | C38: -0.6 | D38: -2 | E38: 1 | F38: 1 | G38: -2 | H38: -1 | I38: -2 | J38: -1 | K38: 0 | L38: 1 | M38: 0 | N38: 0 | O38: 1 | P38: 1 | Q38: 0 | R38: 2 | S38: 1 | T38: 2 | U38: 1 | V38: 0 | W38: 0
C40: Norma | E40: DP | F40: DP | G40: DP | H40: P | I40: DP | J40: DP | K40: P | L40: DP | M40: DN | N40: DN | O40: DN | P40: DN | Q40: DP | R40: DP | S40: DN | T40: P | U40: DN | V40: P
B41: SA/A | C41: 0.4 | D41: 1 | E41: 0 | F41: 0 | G41: -1 | H41: 0 | I41: -1 | J41: -1 | K41: 0 | L41: 0 | M41: -1 | N41: -2 | O41: -1 | P41: -2 | Q41: 0 | R41: 0 | S41: -1 | T41: 1 | U41: -1 | V41: 1
B42: DNM, DFM/A | C42: -0.4 | D42: -1 | E42: 0 | F42: -1 | G42: 0 | H42: -1 | I42: 0 | J42: -1 | K42: -1 | L42: -2 | M42: 0 | N42: 0 | O42: -2 | P42: -1 | Q42: -1 | R42: 1 | S42: 0 | T42: 0 | U42: 1 | V42: -1
B43: OA/A | C43: -0.6 | D43: -2 | E43: -1 | F43: 0 | G43: 0 | H43: -1 | I43: -1 | J43: 0 | K43: -2 | L43: -1 | M43: -2 | N43: -1 | O43: 0 | P43: 0 | Q43: 1 | R43: -1 | S43: 1 | T43: -1 | U43: 0 | V43: 0
C47: Norma | E47: N | F47: N | G47: N | I47: LEN PRE WORD DO TEÓRIE
B48: ZP/A | C48: 0.4 | D48: 1 | E48: 1 | F48: 1 | G48: 1
B49: I/A | C49: -0.4 | D49: -1 | E49: 1 | F49: 2 | G49: 3
B50: OP/A | C50: -0.6 | D50: -2 | E50: 1 | F50: 3 | G50: 2
C52: Norma | E52: N | F52: N | G52: N
B53: SA/A | C53: 0.4 | D53: 1 | E53: 1 | F53: 1 | G53: 1
B54: DNM, DFM/A | C54: -0.4 | D54: -1 | E54: 1 | F54: 2 | G54: 3
B55: OA/A | C55: -0.6 | D55: -2 | E55: 1 | F55: 3 | G55: 2
C57: Norma | E57: ... | F57: VP | G57: ...
B58: ZP/A | C58: 0.4 | D58: 1 | E58: ... | F58: 1 | G58: ...
B59: I/A | C59: -0.4 | D59: -1 | E59: ... | F59: -1 | G59: ...
B60: OP/A | C60: -0.6 | D60: -2 | E60: ... | F60: -2 | G60: ...
C62: Norma | E62: ... | F62: VP | G62: ...
B63: SA/A | C63: 0.4 | D63: 1 | E63: ... | F63: 1 | G63: ...
B64: DNM, DFM/A | C64: -0.4 | D64: -1 | E64: ... | F64: -1 | G64: ...
B65: OA/A | C65: -0.6 | D65: -2 | E65: ... | F65: -2 | G65: ...
C67: Norma | E67: ... | F67: VN | G67: ...
B68: ZP/A | C68: 0.4 | D68: 1 | E68: ... | F68: -1 | G68: ...
B69: I/A | C69: -0.4 | D69: -1 | E69: ... | F69: 1 | G69: ...
B70: OP/A | C70: -0.6 | D70: -2 | E70: ... | F70: 2 | G70: ...
C72: Norma | E72: ... | F72: VN | G72: ...
B73: SA/A | C73: 0.4 | D73: 1 | E73: ... | F73: -1 | G73: ...
B74: DNM, DFM/A | C74: -0.4 | D74: -1 | E74: ... | F74: 1 | G74: ...
B75: OA/A | C75: -0.6 | D75: -2 | E75: ... | F75: 2 | G75: ...

Sheet Úplná verzia MDP - 1. časť
B5: UKAZ. | C5: N | D5: 6 | E5: 5 | F5: 4 | G5: 3 | H5: 2 | I5: 1 | J5: 5/6 | K5: 4/5 | L5: 3/4 | M5: 2/3 | N5: 1/2 | O5: Ø | P5: Medián | Q5: 1/6 | R5: N 1/6
B6: 1. A | C6: 2.6 | D6: 867605 | E6: 885367 | F6: 769452 | G6: 745952 | H6: 752503 | I6: 718465 | J6: =(E6-D6)/ABS(D6)*100 -> 2.047245002 | K6: =(F6-E6)/ABS(E6)*100 -> -13.09231087 | L6: -3.054121635 | M6: 0.8782066406 | N6: -4.523304226 | O6: =AVERAGE(J6:N6) -> -3.548857018 | P6: =MEDIAN(J6:N6) -> -3.054121635 | Q6: =(I6-D6)/ABS(D6)*100 -> -17.18985022 | R6: =(((POWER(1+C6/100,6-1))))*100-100 -> 13.69380568
B7: 2. VK | C7: 3 | D7: 353369 | E7: =331770+10438 -> 342208 | F7: 333645 | G7: 337387 | H7: 357285 | I7: 405968 | J7: =(E7-D7)/ABS(D7)*100 -> -3.15845476 | K7: -2.502279316 | L7: 1.121551349 | M7: 5.897678334 | N7: 13.62581692 | O7: =AVERAGE(J7:N7) -> 2.996862507 | P7: =MEDIAN(J7:N7) -> 1.121551349 | Q7: =(I7-D7)/ABS(D7)*100 -> 14.88500689 | R7: =(((POWER(1+C7/100,6-1))))*100-100 -> 15.92740743
B8: 3. CZ | C8: 1.5 | D8: 514236 | E8: 543149 | F8: 435581 | G8: 408565 | H8: 395218 | I8: 312497 | J8: 5.622515732 | K8: -19.80451036 | L8: -6.202290734 | M8: -3.266799652 | N8: -20.93047381 | O8: -8.916311767 | P8: -6.202290734 | Q8: -39.23082009 | R8: =(((POWER(1+C8/100,6-1))))*100-100 -> 7.728400388
B9: 4. SA | C9: 2.9 | D9: 462050 | E9: 487836 | F9: 455093 | G9: 427056 | H9: 400883 | I9: 378558 | J9: 5.580781301 | K9: -6.711886782 | L9: -6.160718798 | M9: -6.128704432 | N9: -5.568956528 | O9: -3.797897048 | P9: -6.128704432 | Q9: -18.06990585 | R9: 15.36574469
B10: 5. DHM | C10: 3 | D10: 460390 | E10: 485192 | F10: 452898 | G10: 423254 | H10: 397055 | I10: 374263 | J10: 5.387171746 | K10: -6.655921779 | L10: -6.545403159 | M10: -6.189900155 | N10: -5.740262684 | O10: -3.948863206 | P10: -6.189900155 | Q10: -18.70740025 | R10: 15.92740743
B11: 6. DNM, DFM | C11: 2.2 | D11: 1660 | E11: 2644 | F11: 2195 | G11: 3802 | H11: 3828 | I11: 4295 | J11: 59.27710843 | K11: -16.98184569 | L11: 73.2118451 | M11: 0.6838506049 | N11: 12.19958203 | O11: 25.6781081 | P11: 12.19958203 | Q11: 158.7349398 | R11: 11.49476564
B12: 7. OA | C12: 2 | D12: 405555 | E12: 397521 | F12: 314359 | G12: 318896 | H12: 351620 | I12: 339907 | J12: -1.980989015 | K12: -20.92015265 | L12: 1.443254368 | M12: 10.2616527 | N12: -3.331152949 | O12: -2.905477508 | P12: -1.980989015 | Q12: -16.18720026 | R12: 10.40808032
B13: 8. ZÁS | C13: 1 | D13: 176575 | E13: 187789 | F13: 141380 | G13: 141365 | H13: 165504 | I13: 152289 | J13: 6.350842418 | K13: -24.71337512 | L13: -0.01060970434 | M13: 17.07565522 | N13: -7.984701276 | O13: -1.856437692 | P13: -0.01060970434 | Q13: -13.75392893 | R13: 5.10100501
B14: 9. POHĽAD | C14: 2.5 | D14: 220792 | E14: 202270 | F14: 170123 | G14: 149258 | H14: 163984 | I14: 177113 | J14: -8.388890902 | K14: -15.89311317 | L14: -12.26465557 | M14: 9.866137828 | N14: 8.006268904 | O14: -3.734850581 | P14: -8.388890902 | Q14: -19.78287257 | R14: 13.14082129
B15: 10. PEŇ, KFM | C15: 2.5 | D15: 5754 | E15: 5421 | F15: 671 | G15: 25055 | H15: 18672 | I15: 4134 | J15: -5.787278415 | K15: -87.62220992 | L15: 3633.979136 | M15: -25.4759529 | N15: -77.85989717 | O15: 687.4467594 | P15: -25.4759529 | Q15: -28.15432742 | R15: 13.14082129
B16: 11. VF | C16: 2.8 | D16: =D10+D13 -> 636965 | E16: 672981 | F16: 594278 | G16: 564619 | H16: 562559 | I16: 526552 | J16: 5.654313816 | K16: -11.6946838 | L16: -4.990761899 | M16: -0.3648478 | N16: -6.400573095 | O16: -3.559310556 | P16: -4.990761899 | Q16: -17.33423344 | R16: 14.80626105
B17: 12. MAT | C17: 1 | D17: 657377 | E17: 597200 | F17: 439321 | G17: 428861 | H17: 572367 | I17: 519283 | J17: -9.154107917 | K17: -26.43653717 | L17: -2.380946961 | M17: 33.46212409 | N17: -9.274469003 | O17: -2.756787393 | P17: -9.154107917 | Q17: -21.00681953 | R17: 5.10100501
B18: 13. EN | C18: 1 | D18: 21147 | E18: 23619 | F18: 21645 | G18: 20034 | H18: 40041 | I18: 42515 | J18: 11.68960136 | K18: -8.35767814 | L18: -7.442827443 | M18: 99.86522911 | N18: 6.178666866 | O18: 20.38659835 | P18: 6.178666866 | Q18: 101.0450655 | R18: 5.10100501
B19: 14. ODP | C19: 4 | D19: 27649 | E19: 34854 | F19: 38582 | G19: 41998 | H19: 38215 | I19: 33274 | J19: 26.05880864 | K19: 10.69604636 | L19: 8.85386968 | M19: -9.007571789 | N19: -12.92947795 | O19: 4.734334988 | P19: 8.85386968 | Q19: 20.34431625 | R19: 21.66529024
B20: 15. MZDY | C20: 3 | D20: 218283 | E20: 223672 | F20: 202376 | G20: 190381 | H20: 205783 | I20: 204145 | J20: 2.468813421 | K20: -9.521084445 | L20: -5.927086216 | M20: 8.090093024 | N20: -0.7959841192 | O20: -1.137049667 | P20: -0.7959841192 | Q20: -6.476912998 | R20: 15.92740743
B21: 16. FN | C21: 3.5 | D21: 61885 | E21: 59584 | F21: 54203 | G21: 49328 | H21: 52998 | I21: 66012 | J21: -3.71818696 | K21: -9.030947905 | L21: -8.993967124 | M21: 7.439993513 | N21: 24.55564361 | O21: 2.050507027 | P21: -3.71818696 | Q21: 6.668821201 | R21: 18.76863056
B22: 17. CN | C22: 2.6 | D22: =D17+D18+D19+D20+D21 -> 986341 | E22: 938929 | F22: 756127 | G22: 730602 | H22: 909404 | I22: 865229 | J22: -4.806856858 | K22: -19.46920374 | L22: -3.37575566 | M22: 24.47324261 | N22: -4.85757705 | O22: -1.607230139 | P22: -4.806856858 | Q22: -12.27891774 | R22: 13.69380568
B23: 18. V | C23: 3 | D23: 962576 | E23: 895919 | F23: 727901 | G23: 719708 | H23: 885789 | I23: 876427 | J23: -6.924855804 | K23: -18.7537043 | L23: -1.125565152 | M23: 23.07616422 | N23: -1.056910844 | O23: -0.956974375 | P23: -1.125565152 | Q23: -8.949838766 | R23: 15.92740743
B24: 19. VV (PH) | C24: 4 | D24: =D23-D17 -> 305199 | E24: 298719 | F24: 288580 | G24: 290847 | H24: 313422 | I24: 357144 | J24: -2.12320486 | K24: -3.394159729 | L24: 0.7855707256 | M24: 7.761812912 | N24: 13.94988227 | O24: 3.395980263 | P24: 0.7855707256 | Q24: 17.02004266 | R24: 21.66529024
B25: 20. ČV | C25: 4 | D25: =D24-D19 -> 277550 | E25: =E24-E19 -> 263865 | F25: 249998 | G25: 248849 | H25: 275207 | I25: 323870 | J25: -4.930643127 | K25: -5.255338904 | L25: -0.4596036768 | M25: 10.59196541 | N25: 17.68232639 | O25: 3.525741219 | P25: -0.4596036768 | Q25: 16.68888489 | R25: 21.66529024
B26: 21. HZMDP | C26: 5 | D26: =D25-D20 -> 59267 | E26: 40193 | F26: 47622 | G26: 58468 | H26: 69424 | I26: 119725 | J26: -32.18317107 | K26: 18.48331799 | L26: 22.77518794 | M26: 18.73845522 | N26: 72.45477068 | O26: 20.05371215 | P26: 18.73845522 | Q26: 102.00955 | R26: 27.62815625
B27: 22. ČZMDP | C27: 8 | D27: =D26-D21 -> -2618 | E27: -19391 | F27: =F26-F21 -> -6581 | G27: 9140 | H27: 16426 | I27: 53713 | J27: -640.6799083 | K27: 66.06157496 | L27: 238.884668 | M27: 79.71553611 | N27: 226.9998782 | O27: =AVERAGE(J27:N27) -> -5.803650208 | P27: 79.71553611 | Q27: 2151.680672 | R27: 46.93280768

Sheet Úplná verzia MDP - 2. časť
C5: UKAZ. | D5: 6 | E5: 5 | F5: 4 | G5: 3 | H5: 2 | I5: 1 | J5: Ø | K5: 5/6 | L5: 4/5 | M5: 3/4 | N5: 2/3 | O5: 1/2 | P5: Ø | Q5: Medián | R5: 1/6 | S5: Np
B6: 1a) Produktivita (výkonov, vlastných výkonov (pridanej hodnoty) a čistej výroby) | C6: 1. V/A | D6: 1.109463408 | E6: 1.011918221 | F6: 0.9459992306 | G6: 0.9648181116 | H6: 1.177123546 | I6: 1.219860397 | J6: 1.071530486 | K6: -8.792104878 | L6: -6.514260685 | M6: 1.989312506 | N6: 22.00471075 | O6: 3.630617245 | P6: 2.463654988 | Q6: =MEDIAN(K6:O6) -> 1.989312506 | R6: 9.950484905 | S6: 0.4
C7: 2. V/VK | D7: 2.723996729 | E7: 2.618053932 | F7: 2.181663145 | G7: 2.133182369 | H7: 2.479222469 | I7: 2.158857348 | J7: 2.382495999 | K7: -3.88924096 | L7: -16.66851786 | M7: -2.222193461 | N7: 16.22177762 | O7: -12.92199974 | P7: -3.896034879 | Q7: =MEDIAN(K7:O7) -> -3.88924096 | R7: -20.7466982 | S7: 0
C8: 3. V/CZ | D8: 1.871856502 | E8: 1.649490287 | F8: 1.671103652 | G8: 1.761550794 | H8: 2.241266845 | I8: 2.804593324 | J8: 1.999976901 | K8: -11.87944772 | L8: 1.310305695 | M8: 5.412419579 | N8: 27.2325983 | O8: 25.13428868 | P8: 9.442032907 | Q8: 5.412419579 | R8: 49.82950464 | S8: 1.5
C9: 4. V/SA | D9: 2.083272373 | E9: 1.83651678 | F9: 1.599455496 | G9: 1.685277809 | H9: 2.209594819 | I9: 2.315172312 | J9: 1.954881598 | K9: -11.84461504 | L9: -12.90820138 | M9: 5.365720604 | N9: 31.1116071 | O9: 4.778138119 | P9: 3.30052988 | Q9: 4.778138119 | R9: 11.13152277 | S9: 0.1
C10: 5. V/DHM | D10: 2.090783901 | E10: 1.846524675 | F10: 1.607207362 | G10: 1.700416298 | H10: 2.230897483 | I10: 2.341740968 | J10: 1.969595115 | K10: -11.68266246 | L10: -12.96041779 | M10: 5.799434367 | N10: 31.19713594 | O10: 4.968560249 | P10: 3.464410063 | Q10: 4.968560249 | R10: 12.0030132 | S10: 0
C11: 6. V/OA | D11: 2.37347832 | E11: 2.25376521 | F11: 2.315508702 | G11: 2.256873714 | H11: 2.519165576 | I11: 2.578431748 | J11: 2.382870545 | K11: -5.043783587 | L11: 2.739570727 | M11: -2.532272389 | N11: 11.62191134 | O11: 2.352611182 | P11: 1.827607455 | Q11: 2.352611182 | R11: 8.635150613 | S11: 1
C12: 7. V/ZÁS | D12: 5.451371938 | E12: 4.770881149 | F12: 5.148542934 | G12: 5.091132883 | H12: 5.352070041 | I12: 5.755024985 | J12: 5.261503988 | K12: -12.48292719 | L12: 7.915975554 | M12: -1.115073754 | N12: 5.125326006 | O12: 7.528954997 | P12: 1.394451123 | Q12: 5.125326006 | R12: 5.570213344 | S12: 2
C13: 8. VV (PH)/A | D13: 0.3517718317 | E13: 0.3373956789 | F13: 0.3750461367 | G13: 0.3899004225 | H13: 0.4165059807 | I13: 0.4970931082 | J13: 0.3946188598 | K13: -4.086783393 | L13: 11.15914051 | M13: 3.9606556 | N13: 6.823680258 | O13: 19.34837223 | P13: 7.441013041 | Q13: 6.823680258 | R13: 41.31123174 | S13: 1.4
C14: 9. VV (PH)/VK | D14: 0.8636835716 | E14: 0.8729164719 | F14: 0.8649312892 | G14: 0.8620575185 | H14: 0.8772324615 | I14: 0.8797343633 | J14: 0.8700926127 | K14: 1.069014231 | L14: -0.9147705269 | M14: -0.3322542222 | N14: 1.760316758 | O14: 0.2852039715 | P14: 0.3735020423 | Q14: 0.2852039715 | R14: 1.858411143 | S14: 1
C15: 10. VV (PH)/CZ | D15: 0.5934998717 | E15: 0.5499761576 | F15: 0.6625174193 | G15: 0.7118744875 | H15: 0.7930357423 | I15: 1.142871772 | J15: 0.7422959083 | K15: -7.333399075 | L15: 20.46293465 | M15: 7.44992763 | N15: 11.40106243 | O15: 44.11352611 | P15: 15.21881035 | Q15: 11.40106243 | R15: 92.56478833 | S15: 2.5
C16: 11. VV (PH)/SA | D16: 0.6605324099 | E16: 0.612334883 | F16: 0.6341121485 | G16: 0.681051197 | H16: 0.7818291122 | I16: 0.9434327104 | J16: 0.7188820769 | K16: -7.296769417 | L16: 3.556430652 | M16: 7.402326014 | N16: 14.79740666 | O16: 20.6699387 | P16: 7.825866521 | Q16: 7.402326014 | R16: 42.82913242 | S16: 1.1
C17: 12. VV (PH)/DHM | D17: 0.6629140511 | E17: 0.6156717341 | F17: 0.6371854148 | G17: 0.687168934 | H17: 0.7893667124 | I17: 0.9542594379 | J17: 0.7244277141 | K17: -7.126461865 | L17: 3.494342772 | M17: 7.844422995 | N17: 14.87229316 | O17: 20.88924233 | P17: 7.99476788 | Q17: 7.844422995 | R17: 43.94919466 | S17: 1
C18: 13. VV (PH)/OA | D18: 0.7525465103 | E18: 0.7514546401 | F18: 0.9179950312 | G18: 0.9120434248 | H18: 0.8913656789 | I18: 1.05071093 | J18: 0.8793527025 | K18: -0.1450900629 | L18: 22.16240105 | M18: -0.6483266402 | N18: -2.267188754 | O18: 17.87652977 | P18: 7.395665071 | Q18: -0.1450900629 | R18: 39.62072979 | S18: 2
C19: 14. VV (PH)/ZÁS | D19: 1.728438341 | E19: 1.590716176 | F19: 2.041165653 | G19: 2.057418739 | H19: 1.893742749 | I19: 2.345172665 | J19: 1.94277572 | K19: -7.968011428 | L19: 28.3174009 | M19: 0.7962649113 | N19: -7.95540481 | O19: 23.83797461 | P19: 7.405644835 | Q19: 0.7962649113 | R19: 35.68159245 | S19: 3
C20: 15. ČV/A | D20: 0.3199036428 | E20: 0.298028953 | F20: 0.3249039576 | G20: 0.3335992128 | H20: 0.36572213 | I20: 0.4507804834 | J20: 0.3488230633 | K20: -6.837899572 | L20: 9.017581812 | M20: 2.676254011 | N20: 9.629194542 | O20: 23.25764464 | P20: 7.548555087 | Q20: 9.017581812 | R20: 40.91133176 | S20: 1.4
C21: 16. ČV/VK | D21: 0.785439583 | E21: 0.7710661352 | F21: 0.7492934107 | G21: 0.7375773222 | H21: 0.7702730313 | I21: 0.7977722382 | J21: 0.7685702868 | K21: -1.829987701 | L21: -2.823716872 | M21: -1.563618245 | N21: 4.432851738 | O21: 3.570059674 | P21: 0.3571177189 | Q21: -1.563618245 | R21: 1.570159626 | S21: 1
C22: 17. ČV/CZ | D22: 0.5397327297 | E22: 0.4858059207 | F22: 0.5739414713 | G22: 0.6090805625 | H22: 0.6963422719 | I22: 1.036393949 | J22: 0.6568828176 | K22: -9.991391311 | L22: 18.14213184 | M22: 6.122417169 | N22: 14.32679267 | O22: 48.83398456 | P22: 15.48678699 | Q22: 14.32679267 | R22: 92.0198447 | S22: 2.5
C23: 18. ČV/SA | D23: 0.6006925657 | E23: 0.5408887413 | F23: 0.5493338724 | G23: 0.5827081226 | H23: 0.6865020467 | I23: 0.8555360077 | J23: 0.6359435594 | K23: -9.955812316 | L23: 1.561343484 | M23: 6.075403656 | N23: 17.81233522 | O23: 24.6224992 | P23: 8.023153849 | Q23: 6.075403656 | R23: 42.4249369 | S23: 1.1
C24: 19. ČV/DHM | D24: 0.6028584461 | E24: 0.5438362545 | F24: 0.5519962552 | G24: 0.5879424648 | H24: 0.6931206004 | I24: 0.8653540425 | J24: 0.6408513439 | K24: -9.790389762 | L24: 1.500451771 | M24: 6.512038667 | N24: 17.88918847 | O24: 24.84898616 | P24: 8.19205506 | Q24: 6.512038667 | R24: 43.54182944 | S24: 1
C25: 20. ČV/OA | D25: 0.6843708005 | E25: 0.6637762533 | F25: 0.795262741 | G25: 0.7803453163 | H25: 0.7826830101 | I25: 0.9528194477 | J25: 0.7765429282 | K25: -3.009267368 | L25: 19.80885683 | M25: -1.875785686 | N25: 0.2995716995 | O25: 21.73759177 | P25: 7.392193449 | Q25: 0.2995716995 | R25: 39.2256138 | S25: 2
C26: 21. ČV/ZÁS | D26: 1.57185332 | E26: 1.405114251 | F26: 1.768269911 | G26: 1.760329643 | H26: 1.662841986 | I26: 2.126680194 | J26: 1.715848217 | K26: -10.60780083 | L26: 25.84527629 | M26: -0.4490416145 | N26: -5.538034186 | O26: 27.89430456 | P26: 7.428940845 | Q26: -0.4490416145 | R26: 35.29762392 | S26: 3
B27: 1b) Rentabilita (hrubého zisku a čistého zisku pre metódu MDP) | C27: 22. HZMDP/A | D27: 0.06831104016 | E27: 0.04539699356 | F27: 0.06189080021 | G27: 0.07838037836 | H27: 0.09225743951 | I27: 0.1666399894 | J27: 0.0854794402 | K27: -33.54369447 | L27: 36.33237655 | M27: 26.6430198 | N27: 17.70476417 | O27: 80.62498842 | P27: 25.55229089 | Q27: 26.6430198 | R27: 143.9429835 | S27: 2.3
C28: 23. HZMDP/VK | D28: 0.1677198622 | E28: 0.117451959 | F28: 0.1427325451 | G28: 0.1732965408 | H28: 0.1943098647 | I28: 0.2949124069 | J28: 0.1817371964 | K28: -29.97134777 | L28: 21.52419273 | M28: 21.41347349 | N28: 12.12564533 | O28: 51.77428453 | P28: 15.37324966 | Q28: 21.41347349 | R28: 75.83630403 | S28: 1.9
C29: 24. HZMDP/CZ | D29: 0.11525253 | E29: 0.07399995213 | F29: 0.1093298376 | G29: 0.1431057482 | H29: 0.1756600155 | I29: 0.383123678 | J29: 0.1667452936 | K29: -35.79320805 | L29: 47.74311938 | M29: 30.89358887 | N29: 22.74839951 | O29: 118.1052284 | P29: 36.73942562 | Q29: 30.89358887 | R29: 232.4210567 | S29: 3.4
C30: 25. HZMDP/SA | D30: 0.1282696678 | E30: 0.08239039349 | F30: 0.1046423478 | G30: 0.1369094451 | H30: 0.1731777102 | I30: 0.3162659355 | J30: 0.1569425833 | K30: -35.76782811 | L30: 27.00794764 | M30: 30.83560143 | N30: 26.49069612 | O30: 82.62508212 | P30: 26.23829984 | Q30: 27.00794764 | R30: 146.5633075 | S30: 2
C31: 26. HZMDP/DHM | D31: 0.1287321619 | E31: 0.08283937081 | F31: 0.1051495039 | G31: 0.1381392733 | H31: 0.1748473133 | I31: 0.3198953677 | J31: 0.1582671652 | K31: -35.64982549 | L31: 26.93179926 | M31: 31.3741561 | N31: 26.57321058 | O31: 82.95698205 | P31: 26.4372645 | Q31: 26.93179926 | R31: 148.4968504 | S31: 1.9
C32: 27. HZMDP/OA | D32: 0.1461380084 | E32: 0.1011091238 | F32: 0.1514892209 | G32: 0.1833450404 | H32: 0.1974404186 | I32: 0.3522286978 | J32: 0.188625085 | K32: -30.8125758 | L32: 49.82744903 | M32: 21.0284397 | N32: 7.68789721 | O32: 78.39746304 | P32: 25.22573464 | Q32: 21.0284397 | R32: 141.024701 | S32: 2.9
C33: 28. HZMDP/ZÁS | D33: 0.3356477418 | E33: 0.2140327708 | F33: 0.3368368935 | G33: 0.4135960103 | H33: 0.4194702243 | I33: 0.7861697168 | J33: 0.4176255596 | K33: -36.23291797 | L33: 57.37631774 | M33: 22.7882154 | N33: 1.420278197 | O33: 87.41967159 | P33: 26.55431299 | Q33: 22.7882154 | R33: 134.2246406 | S33: 4
C34: 29. ČZMDP/A | D34: -0.003017502204 | E34: -0.02190165208 | F34: -0.008552840203 | G34: 0.01225279911 | H34: 0.0218284844 | I34: 0.07476077471 | J34: 0.01256167729 | K34: 625.8205827 | L34: -60.94888107 | M34: -243.2600027 | N34: 78.15100217 | O34: 242.4918255 | P34: 128.4509053 | Q34: 78.15100217 | R34: -2577.571503 | S34: 5.3
C35: 30. ČZMDP/VK | D35: -0.007408686104 | E35: -0.05666436787 | F35: -0.01972455754 | G35: 0.0270905518 | H35: 0.04597450215 | I35: 0.1323084578 | J35: 0.02026265004 | K35: 664.836937 | L35: -65.19054517 | M35: -237.3442813 | N35: 69.70677633 | O35: 187.7866026 | P35: 123.9590979 | Q35: 69.70677633 | R35: -1885.855899 | S35: 4.9
C36: 31. ČZMDP/CZ | D36: -0.00509104769 | E36: -0.03570106914 | F36: -0.01510855616 | G36: 0.02237098136 | H36: 0.04156187218 | I36: 0.1718832501 | J36: 0.02998590511 | K36: 601.2519094 | L36: -57.68038178 | M36: -248.0682941 | N36: 85.78475173 | O36: 313.5599314 | P36: 138.9695833 | Q36: 85.78475173 | R36: -3476.18621 | S36: 6.4
C37: 32. ČZMDP/SA | D37: -0.005666053457 | E37: -0.03974901401 | F37: -0.01446078054 | G37: 0.02140234536 | H37: 0.04097454868 | I37: 0.1418884292 | J37: 0.02406491255 | K37: 601.5291033 | L37: -63.61977548 | M37: -248.002698 | N37: 91.44887158 | O37: 246.2843004 | P37: 125.5279604 | Q37: 91.44887158 | R37: -2604.184444 | S37: 5
C38: 33. ČZMDP/DHM | D38: -0.005686483199 | E38: -0.03996562186 | F38: -0.01453086567 | G38: 0.02159459804 | H38: 0.04136958356 | I38: 0.1435167249 | J38: 0.02438298929 | K38: 602.8179009 | L38: -63.64158746 | M38: -248.6119171 | N38: 91.57376061 | O38: 246.913632 | P38: 125.8103578 | Q38: 91.57376061 | R38: -2623.822191 | S38: 4.9
C39: 34. ČZMDP/OA | D39: -0.006455351309 | E39: -0.04877981289 | F39: -0.02093466387 | G39: 0.02866138177 | H39: 0.04671520391 | I39: 0.1580226356 | J39: 0.02620489887 | K39: 655.6492367 | L39: -57.08334528 | M39: -236.9087268 | N39: 62.990062 | O39: 238.2681062 | P39: 132.5830666 | Q39: 62.990062 | R39: -2547.93239 | S39: 5.9
C40: 35. ČZMDP/ZÁS | D40: -0.01482656095 | E40: -0.1032595093 | F40: -0.04654830952 | G40: 0.06465532487 | H40: 0.09924835654 | I40: 0.3527043976 | J40: 0.05866228319 | K40: 596.4494982 | L40: -54.92104329 | M40: -238.8994048 | N40: 53.50376282 | O40: 255.3755547 | P40: 122.3016735 | Q40: 53.50376282 | R40: -2478.868564 | S40: 6.9
B41: 2) Štruktúra aktív | C41: 36. VK/A | D41: 0.4072924891 | E41: 0.3865154224 | F41: 0.4336137927 | G41: 0.4522904959 | H41: 0.4747954493 | I41: 0.5650490977 | J41: 0.4532594579 | K41: -5.101264382 | L41: 12.18537929 | M41: 4.307220745 | N41: 4.975774114 | O41: 19.00895397 | P41: 7.075212748 | Q41: 4.975774114 | R41: 38.73300217 | S41: 0.4
C42: 37. CZ/A | D42: 0.5927075109 | E42: 0.6134732828 | F42: 0.5660924918 | G42: 0.5477095041 | H42: 0.5252045507 | I42: 0.4349509023 | J42: 0.5466897071 | K42: 3.503544589 | L42: -7.723366666 | M42: -3.247347027 | N42: -4.108921472 | O42: -17.1844757 | P42: -5.752113256 | Q42: -4.108921472 | R42: -26.61626616 | S42: -1.1
C43: 38. SA/A | D43: 0.5325580189 | E43: 0.5509986254 | F43: 0.5914507988 | G43: 0.5724979623 | H43: 0.5327327599 | I43: 0.5268983179 | J43: 0.5511894139 | K43: 3.462647422 | L43: 7.341610569 | M43: -3.204465436 | N43: -6.945911616 | O43: -1.095191129 | P43: -0.08826203775 | Q43: -1.095191129 | R43: -1.062738851 | S43: 0.3
C44: 39. DHM/A | D44: 0.5306447058 | E44: 0.5480122932 | F44: 0.5885981192 | G44: 0.5674011196 | H44: 0.527645737 | I44: 0.5209202954 | J44: 0.5472037117 | K44: 3.272922011 | L44: 7.406006485 | M44: -3.60126865 | N44: -7.006574592 | O44: -1.274613086 | P44: -0.2407055661 | Q44: -1.274613086 | R44: -1.832565249 | S44: 0.4
C45: 40. DNM, DFM/A | D45: 0.001913313086 | E45: 0.002986332222 | F45: 0.002852679569 | G45: 0.005096842692 | H45: 0.005087022909 | I45: 0.00597802259 | J45: 0.003985702178 | K45: 56.08173296 | L45: -4.475478355 | M45: 78.66860152 | N45: -0.1926640472 | O45: 17.51514976 | P45: 29.51946837 | Q45: 17.51514976 | R45: 212.4435114 | S45: -0.4
C46: 41. OA/A | D46: 0.4674419811 | E46: 0.4489900798 | F46: 0.4085492012 | G46: 0.4275020377 | H46: 0.4672672401 | I46: 0.4731016821 | J46: 0.4488087037 | K46: -3.947420645 | L46: -9.007076189 | M46: 4.639058492 | N46: 9.30175741 | O46: 1.248630639 | P46: 0.4469899414 | Q46: 1.248630639 | R46: 1.210781488 | S46: -0.6
C47: 42. ZÁS/A | D47: 0.203520035 | E47: 0.2121030036 | F47: 0.183741156 | G47: 0.1895095127 | H47: 0.2199379936 | I47: 0.2119643963 | J47: 0.2034626829 | K47: 4.217259776 | L47: -13.37173311 | M47: 3.139392805 | N47: 16.05643986 | O47: -3.625384207 | P47: 1.283195023 | Q47: 3.139392805 | R47: 4.149154788 | S47: -1.6
C48: 43. POHĽAD/A | D48: 0.2544844716 | E48: 0.2284589328 | F48: 0.2210963127 | G48: 0.2000906225 | H48: 0.2179180681 | I48: 0.2465158358 | J48: 0.2280940406 | K48: -10.22676889 | L48: -3.222732443 | M48: -9.500696774 | N48: 8.909685736 | O48: 13.12317422 | P48: -0.1834676291 | Q48: -3.222732443 | R48: -3.131285664 | S48: -0.1
C49: 44. PEN, KFM/A | D49: 0.006632050299 | E49: 0.006122884634 | F49: 0.0008720491987 | G49: 0.03358795204 | H49: 0.02481319011 | I49: 0.005753933734 | J49: 0.01296367667 | K49: -7.677349268 | L49: -85.7575432 | M49: 3751.612053 | N49: -26.12473043 | O49: -76.81098759 | P49: 711.0482884 | Q49: -26.12473043 | R49: -13.24049918 | S49: -0.1
C50: 45. VF/A | D50: 0.7341647409 | E50: 0.7601152968 | F50: 0.7723392752 | G50: 0.7569106323 | H50: 0.7475837306 | I50: 0.7328846917 | J50: 0.7506663946 | K50: 3.534704748 | L50: 1.608174241 | M50: -1.997650955 | N50: -1.23223289 | O50: -1.966206365 | P50: -0.0106422441 | Q50: -1.23223289 | R50: -0.1743544911 | S50: 0.2
B51: 3) Štruktúra obežných aktív | C51: 46. ZÁS/OA | D51: 0.4353910074 | E51: 0.4724002002 | F51: 0.4497405832 | G51: 0.4432949927 | H51: 0.4706899494 | I51: 0.4480313733 | J51: 0.4532580177 | K51: 8.500219855 | L51: -4.796699284 | M51: -1.433179645 | N51: 6.17984798 | O51: -4.81390693 | P51: 0.7272563952 | Q51: -1.433179645 | R51: 2.90322163 | S51: -1
C52: 47. POHLED/OA | D52: 0.5444193759 | E52: 0.5088284644 | F52: 0.5411742625 | G52: 0.4680460087 | H52: 0.4663671008 | I52: 0.5210631143 | J52: 0.5083163878 | K52: -6.537407205 | L52: 6.356916014 | M52: -13.51288464 | N52: -0.3587057365 | O52: 11.7281029 | P52: -0.4647957344 | Q52: -0.3587057365 | R52: -4.290123134 | S52: 0.5
C53: 48. PEN, KFM/OA | D53: 0.01418796464 | E53: 0.0136370154 | F53: 0.002134502273 | G53: 0.07856793437 | H53: 0.05310278141 | I53: 0.01216215024 | J53: 0.02896539139 | K53: -3.883215472 | L53: -84.34773145 | M53: 3580.855035 | N53: -32.41163608 | O53: -77.09696194 | P53: 676.6230979 | Q53: -32.41163608 | R53: -14.27840044 | S53: 0.5
B54: 4) | C54: 49. CZ/POHLED | D54: 2.329051777 | E54: 2.685267217 | F54: 2.56038866 | G54: 2.737307213 | H54: 2.410100985 | I54: 1.764393353 | J54: 2.414418201 | K54: 15.29444057 | L54: -4.650507641 | M54: 6.909831926 | N54: -11.95358073 | O54: -26.79172516 | P54: -4.238308208 | Q54: -4.650507641 | R54: -24.24413357 | S54: -1
B55: 5) Diferencovaná výkonová rentabilita | C55: 50. HZMDP/V | D55: 0.06157124217 | E55: 0.04486231456 | F55: 0.06542373207 | G55: 0.08123850228 | H55: 0.07837532415 | I55: 0.1366057869 | J55: 0.07801281702 | K55: -27.13755159 | L55: 45.83227083 | M55: 24.17283409 | N55: -3.524410292 | O55: 74.29693388 | P55: 22.72801538 | Q55: 24.17283409 | R55: 121.8662189 | S55: 1.9
C56: 51. HZMDP/VV (PH) | D56: 0.1941913309 | E56: 0.1345512003 | F56: 0.165021831 | G56: 0.2010266566 | H56: 0.2215032767 | I56: 0.3352289273 | J56: 0.2085872038 | K56: -30.71204586 | L56: 22.64612332 | M56: 21.81821967 | N56: 10.18602232 | O56: 51.34264929 | P56: 15.05619374 | Q56: 21.81821967 | R56: 72.62816301 | S56: 1
C57: 52. HZMDP/ČV | D57: 0.2135362998 | E57: 0.1523241051 | F57: 0.1904895239 | G57: 0.234953727 | H57: 0.2522610253 | I57: 0.3696699293 | J57: 0.2355391017 | K57: -28.66594331 | L57: 25.05540325 | M57: 23.34207264 | N57: 7.366258285 | O57: 46.54262536 | P57: 14.72808325 | Q57: 23.34207264 | R57: 73.11807393 | S57: 1
C58: 53. ČZMDP/V | D58: -0.002719785243 | E58: -0.0216436977 | F58: -0.00904106465 | G58: 0.01269959484 | H58: 0.0185439196 | I58: 0.06128633645 | J58: 0.009854217216 | K58: 695.7870114 | L58: -58.22772626 | M58: -240.465701 | N58: 46.0197734 | O58: 230.4928935 | P58: 134.7212502 | Q58: 46.0197734 | R58: -2353.352047 | S58: 4.9
C59: 54. ČZMDP/VV (PH) | D59: -0.008578009758 | E59: -0.0649138488 | F59: -0.02280476818 | G59: 0.03142545737 | H59: 0.05240857374 | I59: 0.1503959187 | J59: 0.02298888719 | K59: 656.7472017 | L59: -64.86917877 | M59: -237.8021348 | N59: 66.77107711 | O59: 186.968158 | P59: 121.5630247 | Q59: 66.77107711 | R59: -1853.27288 | S59: 3.8
C60: 55. ČZMDP/ČV | D60: -0.009432534678 | E60: -0.07348833684 | F60: -0.02632421059 | G60: 0.03672910078 | H60: 0.05968598182 | I60: 0.1658474079 | J60: 0.0255029014 | K60: 679.0942662 | L60: -64.17906334 | M60: -239.5259343 | N60: 62.50324826 | O60: 177.8665992 | P60: 123.1518232 | Q60: 62.50324826 | R60: -1858.248589 | S60: 3.8
B61: 6) | C61: 56. ČZMDP/HZMDP | D61: -0.0441729799 | E61: -0.4824471923 | F61: -0.1381924321 | G61: 0.1563248273 | H61: 0.2366040562 | I61: 0.4486364586 | J61: 0.02945878963 | K61: 992.1771484 | L61: -71.35594646 | M61: -213.1211202 | N61: 51.35411335 | O61: 89.61486362 | P61: 169.7338117 | Q61: 51.35411335 | R61: -1115.635485 | S61: 2.9
B62: 7) Mzdová produktivita | C62: 57. V/MZDY | D62: 4.40976164 | E62: 4.005503595 | F62: 3.596775309 | G62: 3.780356233 | H62: 4.304480934 | I62: 4.293159274 | J62: 4.065006164 | K62: -9.167344591 | L62: -10.20416723 | M62: 5.104042035 | N62: 13.86442622 | O62: -0.2630203253 | P62: -0.1332127784 | Q62: -0.2630203253 | R62: -2.644187491 | S62: 0
C63: 58. VV (PH)/MZDY | D63: 1.398180344 | E63: 1.335522551 | F63: 1.4259596 | G63: 1.527710223 | H63: 1.523070419 | I63: 1.749462392 | J63: 1.493317588 | K63: -4.481381337 | L63: 6.771660203 | M63: 7.135589482 | N63: -0.3037097137 | O63: 14.86418292 | P63: 4.797268311 | Q63: 6.771660203 | R63: 25.12423019 | S63: 1
C64: 59. ČV/MZDY | D64: 1.271514502 | E64: 1.179696162 | F64: 1.235314464 | G64: 1.307110478 | H64: 1.337365088 | I64: 1.586470401 | J64: 1.319578516 | K64: -7.221179109 | L64: 4.714629386 | M64: 5.811962571 | N64: 2.314617663 | O64: 18.62657509 | P64: 4.849321121 | Q64: 4.714629386 | R64: 24.77013818 | S64: 1
B65: 8) Mzdová rentabilita | C65: 60. HZMDP/MZDY | D65: 0.2715145018 | E65: 0.1796961622 | F65: 0.2353144642 | G65: 0.3071104785 | H65: 0.3373650885 | I65: 0.5864704009 | J65: 0.319578516 | K65: -33.81710331 | L65: 30.95130204 | M65: 30.51066774 | N65: 9.851376663 | O65: 73.83849752 | P65: 22.26694813 | Q65: 30.51066774 | R65: 115.9996601 | S65: 1.9
C66: 61. ČZMDP/MZDY | D66: -0.01199360463 | E66: -0.08669390894 | F66: -0.0325186781 | G66: 0.04800899249 | H66: 0.07982194836 | I66: 0.2631120037 | J66: 0.04328945882 | K66: 622.8344738 | L66: -62.49023893 | M66: -247.6351294 | N66: 66.26457715 | O66: 229.62363 | P66: 121.7194625 | Q66: 66.26457715 | R66: -2293.769194 | S66: 4.9
B67: 9) Nákladová štruktúra výnosov | C67: 62. MAT/V | D67: 0.6829351656 | E67: 0.666578117 | F67: 0.6035449876 | G67: 0.595881941 | H67: 0.6461662992 | I67: 0.5925000029 | J67: 0.6312677522 | K67: -2.395110029 | L67: -9.456225432 | M67: -1.269672804 | N67: 8.438644424 | O67: -8.305338179 | P67: -2.597540404 | Q67: -2.395110029 | R67: -13.24213005 | S67: -1.9
C68: 63. MAT/VV (PH) | D68: 2.153929076 | E68: 1.999203265 | F68: 1.522354287 | G68: 1.474524406 | H68: 1.82618642 | I68: 1.453987747 | J68: 1.7383642 | K68: -7.183421818 | L68: -23.85195075 | M68: -3.14183634 | N68: 23.84918227 | O68: -20.38119813 | P68: -6.141844953 | Q68: -7.183421818 | R68: -32.49602489 | S68: -2.9
C69: 64. MAT/ČV | D69: 2.368499369 | E69: 2.26327857 | F69: 1.757298058 | G69: 1.723378434 | H69: 2.079769047 | I69: 1.603368636 | J69: 1.965932019 | K69: -4.442509057 | L69: -22.35608637 | M69: -1.930214622 | N69: 20.67976512 | O69: -22.90640933 | P69: -6.191090854 | Q69: -4.442509057 | R69: -32.30445166 | S69: -2.9
C70: 65. EN/V | D70: 0.02196917438 | E70: 0.02636287432 | F70: 0.02973618665 | G70: 0.02783628916 | H70: 0.04520376749 | I70: 0.04850945943 | J70: 0.03326962524 | K70: 19.99938579 | L70: 12.79569249 | M70: -6.389176636 | N70: 62.39149991 | O70: 7.312868208 | P70: 19.22205395 | Q70: 12.79569249 | R70: 120.8069297 | S70: -1.9
C71: 66. EN/VV )PH) | D71: 0.06928921785 | E71: 0.07906761873 | F71: 0.07500519787 | G71: 0.06888157691 | H71: 0.1277542738 | I71: 0.1190416191 | J71: 0.08983991737 | K71: 14.11244228 | L71: -5.137907188 | M71: -8.164262115 | N71: 85.4694383 | O71: -6.819853822 | P71: 15.89197149 | Q71: =MEDIAN(K71:O71) -> -5.137907188 | R71: 71.80395847 | S71: -2.9
C72: 67. EN/ČV | D72: 0.07619167718 | E72: 0.08951168211 | F72: 0.08658069265 | G72: 0.08050665263 | H72: 0.145494119 | I72: 0.1312718066 | J72: 0.1015927717 | K72: 17.48223091 | L72: -3.274421166 | M72: -7.015467111 | N72: 80.72310079 | O72: -9.77518025 | P72: 15.62805263 | Q72: -3.274421166 | R72: 72.29153033 | S72: -2.9
C73: 68. ODP/V | D73: 0.02872396569 | E73: 0.03890307048 | F73: 0.05300446077 | G73: 0.05835422143 | H73: 0.04314232848 | I73: 0.03796551224 | J73: 0.04334892652 | K73: 35.43767214 | L73: 36.24749954 | M73: 10.09303856 | N73: -26.06819624 | O73: -11.99938996 | P73: 8.742124807 | Q73: 10.09303856 | R73: 32.17364431 | S73: 1
C74: 69. ODP/VV (PH) | D74: 0.09059335057 | E74: 0.116678216 | F74: 0.1336960288 | G74: 0.1443989451 | H74: 0.1219282629 | I74: 0.09316690187 | J74: 0.1167436175 | K74: 28.79335542 | L74: 14.58525287 | M74: 8.005410791 | N74: -15.56152801 | O74: -23.58875647 | P74: 2.446746921 | Q74: 8.005410791 | R74: 2.84077284 | S74: 0
C75: 70. ODP/ČV | D75: 0.09961808683 | E75: 0.1320902734 | F75: 0.1543292346 | G75: 0.1687690125 | H75: 0.1388591133 | I75: 0.1027387532 | J75: 0.132734079 | K75: 32.59667761 | L75: 16.83618379 | M75: 9.356476065 | N75: -17.72238799 | O75: -26.01223589 | P75: 3.010942714 | Q75: 9.356476065 | R75: 3.1326303 | S75: 0
C76: 71. MZDY/V | D76: 0.2267696265 | E76: 0.249656498 | F76: 0.2780268196 | G76: 0.2645253353 | H76: 0.2323160482 | I76: 0.232928698 | J76: 0.2473705042 | K76: 10.09256478 | L76: 11.36374252 | M76: -4.856180539 | N76: -12.17625792 | O76: 0.2637139466 | P76: 0.9375165576 | Q76: 0.2637139466 | R76: 2.716003722 | S76: 0
C77: 72. MZDY/VV (PH) | D77: 0.7152153185 | E77: 0.7487705837 | F77: 0.7012821401 | G77: 0.6545743982 | H77: 0.6565684604 | I77: 0.5716041709 | J77: 0.6746691786 | K77: 4.691631223 | L77: -6.342188732 | M77: -6.660335297 | N77: 0.3046349195 | O77: -12.94065961 | P77: -4.189383499 | Q77: -6.342188732 | R77: -20.07942838 | S77: -1
C78: 73. MZDY/ČV | D78: 0.7864637002 | E78: 0.8476758949 | F78: 0.8095104761 | G78: 0.765046273 | H78: 0.7477389747 | I78: 0.6303300707 | J78: 0.7644608983 | K78: 7.783219317 | L78: -4.502359807 | M78: -5.492727316 | N78: -2.262255106 | O78: -15.70185692 | P78: -4.035195967 | Q78: -4.502359807 | R78: -19.85261742 | S78: -1
C79: 74. FN/V | D79: 0.06429102741 | E79: 0.06650601226 | F79: 0.07446479672 | G79: 0.06853890745 | H79: 0.05983140454 | I79: 0.07531945045 | J79: 0.06815859981 | K79: 3.445247248 | L79: 11.967015 | M79: -7.957974155 | N79: -12.70446703 | O79: 25.88614796 | P79: 4.127193803 | Q79: 3.445247248 | R79: 17.15390698 | S79: 0.5
C80: 75. FN/VV (PH) | D80: 0.2027693407 | E80: 0.1994650491 | F80: 0.1878265992 | G80: 0.1696011993 | H80: 0.169094703 | I80: 0.1848330085 | J80: 0.1855983166 | K80: -1.629581452 | L80: -5.834831684 | M80: -9.703311475 | N80: -0.2986395555 | O80: 9.307391224 | P80: -1.631794589 | Q80: -1.629581452 | R80: -8.845682521 | S80: -0.5
C81: 76. FN/ČV | D81: 0.2229688344 | E81: 0.225812442 | F81: 0.2168137345 | G81: 0.1982246262 | H81: 0.1925750435 | I81: 0.2038225214 | J81: 0.2100362003 | K81: 1.275338561 | L81: -3.985036157 | M81: -8.573768803 | N81: -2.85009122 | O81: 5.84056878 | P81: -1.658597768 | Q81: -2.85009122 | R81: -8.586990693 | S81: -0.5
B82: 10) Štruktúra nákladov | C82: 77. MAT/CN | D82: 0.6664804566 | E82: 0.6360438329 | F82: 0.5810148295 | G82: 0.5869967506 | H82: 0.6293869391 | I82: 0.6001682791 | J82: 0.616681848 | K82: -4.566769113 | L82: -8.651762749 | M82: 1.029564273 | N82: 7.221537167 | O82: -4.642400115 | P82: -1.921966108 | Q82: -4.566769113 | R82: -9.949605687 | S82: -1.6
C83: 78. EN/CN | D83: 0.02143984687 | E83: 0.02515525668 | F83: 0.02862614349 | G83: 0.0274212225 | H83: 0.04402993609 | I83: 0.04913728042 | J83: 0.03263494767 | K83: 17.32946058 | L83: 13.79785885 | M83: -4.209162835 | N83: 60.56882983 | O83: 11.5997087 | P83: 19.81733903 | Q83: 13.79785885 | R83: 129.1867135 | S83: -1.6
C84: 79. ODP/CN | D84: 0.02803188755 | E84: 0.03712101767 | F84: 0.05102581974 | G84: 0.05748410215 | H84: 0.04202202761 | I84: 0.03845687096 | J84: 0.04235695428 | K84: 32.42425292 | L84: 37.45803035 | M84: 12.65689106 | N84: -26.89800129 | O84: -8.484018646 | P84: 9.431430879 | Q84: 12.65689106 | R84: 37.18973039 | S84: 1.4
C85: 80. MZDY/CN | D85: 0.2213058161 | E85: 0.2382203553 | F85: 0.2676481596 | G85: 0.2605810003 | H85: 0.226283368 | I85: 0.2359433167 | J85: 0.2416636694 | K85: 7.643061295 | L85: 12.35318631 | M85: -2.640466244 | N85: -13.16198505 | O85: 4.268961001 | P85: 1.692551461 | Q85: 4.268961001 | R85: 6.614150885 | S85: 0.4
C86: 81. FN/CN | D86: 0.06274199288 | E86: 0.06345953741 | F86: 0.07168504762 | G86: 0.0675169244 | H86: 0.05827772915 | I86: 0.07629425274 | J86: 0.0666625807 | K86: 1.143643189 | L86: 12.96181873 | M86: -5.814494594 | N86: -13.68426558 | O86: 30.91493757 | P86: 5.104327863 | Q86: 1.143643189 | R86: 21.59998309 | S86: 0.9
B87: 11) | C87: 82. ČZMDP/CN | D87: -0.002654254462 | E87: -0.02065225379 | F87: -0.008703564348 | G87: 0.01251023129 | H87: 0.01806237932 | I87: 0.06207951883 | J87: 0.01010700947 | K87: 678.0811557 | L87: -57.85658826 | M87: -243.7368736 | N87: 44.38085835 | O87: 243.6951342 | P87: 132.9127373 | Q87: 44.38085835 | R87: -2438.868399 | S87: 5.3
B88: 12) Ukazovatele nákladovosti | C88: 83. CN/V | D88: 1.02468896 | E88: 1.048006572 | F88: 1.038777251 | G88: 1.015136694 | H88: 1.026659848 | I88: 0.987223123 | J88: 1.023415408 | K88: 2.275579548 | L88: -0.8806548515 | M88: -2.275806189 | N88: 1.135133192 | O88: -3.841264952 | P88: -0.7174026505 | Q88: -0.8806548515 | R88: -3.656313098 | S88: -0.4
C89: 84. CN/VV (PH) | D89: 3.231796303 | E89: 3.143184732 | F89: 2.620164253 | G89: 2.511980526 | H89: 2.90153212 | I89: 2.422633448 | J89: 2.80521523 | K89: -2.741867461 | L89: -16.6398263 | M89: -4.128891027 | N89: 15.50774736 | O89: -16.50502742 | P89: -4.901572969 | Q89: -4.128891027 | R89: -25.03755744 | S89: -1.3
C90: 85. CN/ČV | D90: 3.553741668 | E90: 3.558368863 | F90: 3.024532196 | G90: 2.935924999 | H90: 3.304436297 | I90: 2.671531787 | J90: 3.174755968 | K90: 0.1302062764 | L90: -15.0022858 | M90: -2.929616609 | N90: 12.55179538 | O90: -19.1531763 | P90: -4.88061541 | Q90: -2.929616609 | R90: -24.82481742 | S90: -1.3
B91: 13) Produktivita VF | C91: 86. V/VF | D91: 1.511191353 | E91: 1.331269382 | F91: 1.224849313 | G91: 1.274679031 | H91: 1.574570845 | I91: 1.664464288 | J91: 1.430170702 | K91: -11.90596878 | L91: -7.993879416 | M91: 4.068232547 | N91: 23.52684921 | O91: 5.709075822 | P91: 2.680861877 | Q91: 4.068232547 | R91: 10.14252334 | S91: 0.2
C92: 87. VV (PH)/VF | D92: 0.4791456359 | E92: 0.4438743441 | F92: 0.4855976496 | G92: 0.515120816 | H92: 0.5571362293 | I92: 0.6782691928 | J92: 0.526523978 | K92: -7.361288333 | L92: 9.399801089 | M92: 6.079758917 | N92: 8.156419228 | O92: 21.74207261 | P92: 7.603352703 | Q92: 8.156419228 | R92: 41.55804455 | S92: 1.2
C93: 88. ČV/VF | D93: 0.4357382274 | E93: 0.3920838776 | F93: 0.4206751722 | G93: 0.4407379135 | H93: 0.4892055767 | I93: 0.6150769535 | J93: 0.4655862868 | K93: -10.01848061 | L93: 7.292137297 | M93: 4.769176464 | N93: 10.99693529 | O93: 25.72975101 | P93: 7.753903889 | Q93: 7.292137297 | R93: 41.1574461 | S93: 1.2
B94: 14) Rentabilita VF | C94: 89. HZMDP/VF | D94: 0.09304592874 | E94: 0.05972382578 | F94: 0.08013421328 | G94: 0.1035530154 | H94: 0.1234075004 | I94: 0.2273754539 | J94: 0.1145399896 | K94: -35.81253195 | L94: 34.17461495 | M94: 29.22447374 | N94: 19.17325623 | O94: 84.24767799 | P94: 26.20149819 | Q94: 29.22447374 | R94: 144.3690519 | S94: 2.1
C95: 90. ČZMDP/VF | D95: -0.00411011594 | E95: -0.02881359206 | F95: -0.01107394183 | G95: 0.01618790724 | H95: 0.02919871516 | I95: 0.1020089184 | J95: 0.01723298183 | K95: 601.0408582 | L95: -61.56695145 | M95: -246.1801723 | N95: 80.37362531 | O95: 249.3609833 | P95: 124.6056686 | Q95: 80.37362531 | R95: -2581.898805 | S95: 5.1

Sheet Manažérsky modul rýchlej INFO
K3: Legenda:
C4: Ukazovatele | D4: Ø | E4: Medián | F4: Np | M4: nepriaznivý vývoj danej oblasti
B5: 1a) Produktivita (V, VV (PH) a ČV) | C5: 1. V/A | D5: 2.463654988 | E5: 1.989312506 | F5: 0.4 | M5: priaznivý vývoj danej oblasti
C6: 2. V/VK | D6: -3.896034879 | E6: -3.88924096 | F6: 0
C7: 3. V/CZ | D7: 9.442032907 | E7: 5.412419579 | F7: 1.5
C8: 4. V/SA | D8: 3.30052988 | E8: 4.778138119 | F8: 0.1
C9: 5. V/DHM | D9: 3.464410063 | E9: 4.968560249 | F9: 0
C10: 6. V/OA | D10: 1.827607455 | E10: 2.352611182 | F10: 1
C11: 7. V/ZÁS | D11: 1.394451123 | E11: 5.125326006 | F11: 2
C12: 8. VV (PH)/A | D12: 7.441013041 | E12: 6.823680258 | F12: 1.4
C13: 9. VV (PH)/VK | D13: 0.3735020423 | E13: 0.2852039715 | F13: 1
C14: 10. VV (PH)/CZ | D14: 15.21881035 | E14: 11.40106243 | F14: 2.5
C15: 11. VV (PH)/SA | D15: 7.825866521 | E15: 7.402326014 | F15: 1.1
C16: 12. VV (PH)/DHM | D16: 7.99476788 | E16: 7.844422995 | F16: 1
C17: 13. VV (PH)/OA | D17: 7.395665071 | E17: -0.1450900629 | F17: 2
C18: 14. VV (PH)/ZÁS | D18: 7.405644835 | E18: 0.7962649113 | F18: 3
C19: 15. ČV/A | D19: 7.548555087 | E19: 9.017581812 | F19: 1.4
C20: 16. ČV/VK | D20: 0.3571177189 | E20: -1.563618245 | F20: 1
C21: 17. ČV/CZ | D21: 15.48678699 | E21: 14.32679267 | F21: 2.5
C22: 18. ČV/SA | D22: 8.023153849 | E22: 6.075403656 | F22: 1.1
C23: 19. ČV/DHM | D23: 8.19205506 | E23: 6.512038667 | F23: 1
C24: 20. ČV/OA | D24: 7.392193449 | E24: 0.2995716995 | F24: 2
C25: 21. ČV/ZÁS | D25: 7.428940845 | E25: -0.4490416145 | F25: 3
B26: 1b) Rentabilita HZMDP a ČZMDP | C26: 22. HZMDP/A | D26: 25.55229089 | E26: 26.6430198 | F26: 2.3
C27: 23. HZMDP/VK | D27: 15.37324966 | E27: 21.41347349 | F27: 1.9
C28: 24. HZMDP/CZ | D28: 36.73942562 | E28: 30.89358887 | F28: 3.4
C29: 25. HZMDP/SA | D29: 26.23829984 | E29: 27.00794764 | F29: 2
C30: 26. HZMDP/DHM | D30: 26.4372645 | E30: 26.93179926 | F30: 1.9
C31: 27. HZMDP/OA | D31: 25.22573464 | E31: 21.0284397 | F31: 2.9
C32: 28. HZMDP/ZÁS | D32: 26.55431299 | E32: 22.7882154 | F32: 4
C33: 29. ČZMDP/A | D33: 128.4509053 | E33: 78.15100217 | F33: 5.3
C34: 30. ČZMDP/VK | D34: 123.9590979 | E34: 69.70677633 | F34: 4.9
C35: 31. ČZMDP/CZ | D35: 138.9695833 | E35: 85.78475173 | F35: 6.4
C36: 32. ČZMDP/SA | D36: 125.5279604 | E36: 91.44887158 | F36: 5
C37: 33. ČZMDP/DHM | D37: 125.8103578 | E37: 91.57376061 | F37: 4.9
C38: 34. ČZMDP/OA | D38: 132.5830666 | E38: 62.990062 | F38: 5.9
C39: 35. ČZMDP/ZÁS | D39: 122.3016735 | E39: 53.50376282 | F39: 6.9
B40: 2) Štruktúra aktív | C40: 36. VK/A | D40: 7.075212748 | E40: 4.975774114 | F40: 0.4
C41: 37. CZ/A | D41: -5.752113256 | E41: -4.108921472 | F41: -1.1
C42: 38. SA/A | D42: -0.08826203775 | E42: -1.095191129 | F42: 0.3
C43: 39. DHM/A | D43: -0.2407055661 | E43: -1.274613086 | F43: 0.4
C44: 40. DNM, DFM/A | D44: 29.51946837 | E44: 17.51514976 | F44: -0.4
C45: 41. OA/A | D45: 0.4469899414 | E45: 1.248630639 | F45: -0.6
C46: 42. ZÁS/A | D46: 1.283195023 | E46: 3.139392805 | F46: -1.6
C47: 43. POHĽAD/A | D47: -0.1834676291 | E47: -3.222732443 | F47: -0.1
C48: 44. PEŇ, KFM/A | D48: 711.0482884 | E48: -26.12473043 | F48: -0.1
C49: 45. VF/A | D49: -0.0106422441 | E49: -1.23223289 | F49: 0.2
B50: 3) Štruk. OA | C50: 46. ZÁS/OA | D50: 0.7272563952 | E50: -1.433179645 | F50: -1
C51: 47. POHĽAD/OA | D51: -0.4647957344 | E51: -0.3587057365 | F51: 0.5
C52: 48. PEŇ, KFM/OA | D52: 676.6230979 | E52: -32.41163608 | F52: 0.5
B53: 4) | C53: 49. CZ/POHĽAD | D53: -4.238308208 | E53: -4.650507641 | F53: -1
B54: 5) Dif. výkon. rentab. | C54: 50. HZMDP/V | D54: 22.72801538 | E54: 24.17283409 | F54: 1.9
C55: 51. HZMDP/VV (PH) | D55: 15.05619374 | E55: 21.81821967 | F55: 1
C56: 52. HZMDP/ČV | D56: 14.72808325 | E56: 23.34207264 | F56: 1
C57: 53. ČZMDP/V | D57: 134.7212502 | E57: 46.0197734 | F57: 4.9
C58: 54. ČZMDP/VV (PH) | D58: 121.5630247 | E58: 66.77107711 | F58: 3.8
C59: 55. ČZMDP/ČV | D59: 123.1518232 | E59: 62.50324826 | F59: 3.8
B60: 6) | C60: 56. ČZMDP/HZMDP | D60: 169.7338117 | E60: 51.35411335 | F60: 2.9
B61: 7) M. p. | C61: 57. V/MZDY | D61: -0.1332127784 | E61: -0.2630203253 | F61: 0
C62: 58. VV (PH)/MZDY | D62: 4.797268311 | E62: 6.771660203 | F62: 1
C63: 59. ČV/MZDY | D63: 4.849321121 | E63: 4.714629386 | F63: 1
B64: 8) | C64: 60. HZMDP/MZDY | D64: 22.26694813 | E64: 30.51066774 | F64: 1.9
C65: 61. ČZMDP/MZDY | D65: 121.7194625 | E65: 66.26457715 | F65: 4.9
B66: 9) Nákladová štruktúra výnosov | C66: 62. MAT/V | D66: -2.597540404 | E66: -2.395110029 | F66: -1.9
C67: 63. MAT/VV (PH) | D67: -6.141844953 | E67: -7.183421818 | F67: -2.9
C68: 64. MAT/ČV | D68: -6.191090854 | E68: -4.442509057 | F68: -2.9
C69: 65. EN/V | D69: 19.22205395 | E69: 12.79569249 | F69: -1.9
C70: 66. EN/VV )PH) | D70: 15.89197149 | E70: -5.137907188 | F70: -2.9
C71: 67. EN/ČV | D71: 15.62805263 | E71: -3.274421166 | F71: -2.9
C72: 68. ODP/V | D72: 8.742124807 | E72: 10.09303856 | F72: 1
C73: 69. ODP/VV (PH) | D73: 2.446746921 | E73: 8.005410791 | F73: 0
C74: 70. ODP/ČV | D74: 3.010942714 | E74: 9.356476065 | F74: 0
C75: 71. MZDY/V | D75: 0.9375165576 | E75: 0.2637139466 | F75: 0
C76: 72. MZDY/VV (PH) | D76: -4.189383499 | E76: -6.342188732 | F76: -1
C77: 73. MZDY/ČV | D77: -4.035195967 | E77: -4.502359807 | F77: -1
C78: 74. FN/V | D78: 4.127193803 | E78: 3.445247248 | F78: 0.5
C79: 75. FN/VV (PH) | D79: -1.631794589 | E79: -1.629581452 | F79: -0.5
C80: 76. FN/ČV | D80: -1.658597768 | E80: -2.85009122 | F80: -0.5
B81: 10) Š. N | C81: 77. MAT/CN | D81: -1.921966108 | E81: -4.566769113 | F81: -1.6
C82: 78. EN/CN | D82: 19.81733903 | E82: 13.79785885 | F82: -1.6
C83: 79. ODP/CN | D83: 9.431430879 | E83: 12.65689106 | F83: 1.4
C84: 80. MZDY/CN | D84: 1.692551461 | E84: 4.268961001 | F84: 0.4
C85: 81. FN/CN | D85: 5.104327863 | E85: 1.143643189 | F85: 0.9
B86: 11) | C86: 82. ČZMDP/CN | D86: 132.9127373 | E86: 44.38085835 | F86: 5.3
B87: 12) | C87: 83. CN/V | D87: -0.7174026505 | E87: -0.8806548515 | F87: -0.4
C88: 84. CN/VV (PH) | D88: -4.901572969 | E88: -4.128891027 | F88: -1.3
C89: 85. CN/ČV | D89: -4.88061541 | E89: -2.929616609 | F89: -1.3
B90: 13) | C90: 86. V/VF | D90: 2.680861877 | E90: 4.068232547 | F90: 0.2
C91: 87. VV (PH)/VF | D91: 7.603352703 | E91: 8.156419228 | F91: 1.2
C92: 88. ČV/VF | D92: 7.753903889 | E92: 7.292137297 | F92: 1.2
B93: 14) | C93: 89. HZMDP/VF | D93: 26.20149819 | E93: 29.22447374 | F93: 2.1
C94: 90. ČZMDP/VF | D94: 124.6056686 | E94: 80.37362531 | F94: 5.1
C95: Celkový súčet | D95: 3745.67442 | E95: 1353.234704 | F95: 105.9

Sheet Prázdna šablóna úplnej verzie
D3: ČASŤ 1 | U3: ČASŤ 2
B5: UKAZ. | C5: N | D5: --- | E5: --- | F5: --- | G5: --- | H5: ---/--- | I5: ---/--- | J5: ---/--- | K5: Ø | L5: Medián | M5: ---/--- | N5: ---/--- | T5: UKAZ. | U5: --- | V5: --- | W5: --- | X5: --- | Y5: Ø | Z5: ---/--- | AA5: ---/--- | AB5: ---/--- | AC5: Ø | AD5: Medián | AE5: ---/--- | AF5: N | AG5: NX
B6: 1. A | C6: 2.6 | S6: 1a. Produktivita (V, VV (PH) a ČV) | T6: 1. V/A
B7: 2. VK | C7: 3 | T7: 2. V/VK
B8: 3. CZ | C8: 1.5 | T8: 3. V/CZ
B9: 4. SA | C9: 2.9 | T9: 4. V/SA
B10: 5. DHM | C10: 3 | T10: 5. V/DHM
B11: 6. DNM, DFM | C11: 2.2 | T11: 6. V/OA
B12: 7. OA | C12: 2 | T12: 7. V/ZÁS
B13: 8. ZÁS | C13: 1 | T13: 8. VV (PH)/A
B14: 9. POHĽAD | C14: 2.5 | T14: 9. VV (PH)/VK
B15: 10. PEŇ, KFM | C15: 2.5 | T15: 10. VV (PH)/CZ
B16: 11. VF | C16: 2.8 | T16: 11. VV (PH)/SA
B17: 12. MAT | C17: 1 | T17: 12. VV (PH)/DHM
B18: 13. EN | C18: 1 | T18: 13. VV (PH)/OA
B19: 14. ODP | C19: 4 | T19: 14. VV (PH)/ZÁS
B20: 15. MZDY | C20: 3 | T20: 15. ČV/A
B21: 16. FN | C21: 3.5 | T21: 16. ČV/VK
B22: 17. CN | C22: 2.6 | T22: 17. ČV/CZ
B23: 18. V | C23: 3 | T23: 18. ČV/SA
B24: 19. VV (PH) | C24: 4 | T24: 19. ČV/DHM
B25: 20. ČV | C25: 4 | T25: 20. ČV/OA
B26: 21. HZMDP | C26: 5 | T26: 21. ČV/ZÁS
B27: 22. ČZMDP | C27: 8 | S27: 1b. Rentabilita HZMDP a ČZMDP | T27: 22. HZMDP/A
T28: 23. HZMDP/VK
T29: 24. HZMDP/CZ
T30: 25. HZMDP/SA
T31: 26. HZMDP/DHM
T32: 27. HZMDP/OA
T33: 28. HZMDP/ZÁS
T34: 29. ČZMDP/A
T35: 30. ČZMDP/VK
T36: 31. ČZMDP/CZ
T37: 32. ČZMDP/SA
T38: 33. ČZMDP/DHM
T39: 34. ČZMDP/OA
T40: 35. ČZMDP/ZÁS
S41: 2. Štruktúra aktív | T41: 36. VK/A
T42: 37. CZ/A
T43: 38. SA/A
T44: 39. DHM/A
T45: 40. DNM, DFM/A
T46: 41. OA/A
T47: 42. ZÁS/A
T48: 43. POHĽAD/A
T49: 44. PEŇ, KFM/A
T50: 45. VF/A
S51: 3. Štruktúra OA | T51: 46. ZÁS/OA
T52: 47. POHĽAD/OA
T53: 48. PEŇ, KFM/OA
S54: 4. | T54: 49. CZ/POHĽAD
S55: 5. Diferencovaná výkonová rentabilita | T55: 50. HZMDP/V
T56: 51. HZMDP/VV (PH)
T57: 52. HZMDP/ČV
T58: 53. ČZMDP/V
T59: 54. ČZMDP/VV (PH)
T60: 55. ČZMDP/ČV
S61: 6. | T61: 56. ČZMDP/HZMDP
S62: 7. Mzdová produktivita | T62: 57. V/MZDY
T63: 58. VV (PH)/MZDY
T64: 59. ČV/MZDY
S65: 8. Mzdová rentabilita | T65: 60. HZMDP/MZDY
T66: 61. ČZMDP/MZDY
S67: 9. Nákladová štruktúra výnosov | T67: 62. MAT/V
T68: 63. MAT/VV (PH)
T69: 64. MAT/ČV
T70: 65. EN/V
T71: 66. EN/VV )PH)
T72: 67. EN/ČV
T73: 68. ODP/V
T74: 69. ODP/VV (PH)
T75: 70. ODP/ČV
T76: 71. MZDY/V
T77: 72. MZDY/VV (PH)
T78: 73. MZDY/ČV
T79: 74. FN/V
T80: 75. FN/VV (PH)
T81: 76. FN/ČV
S82: 10. Štruktúra nákladov | T82: 77. MAT/CN
T83: 78. EN/CN
T84: 79. ODP/CN
T85: 80. MZDY/CN
T86: 81. FN/CN
S87: 11. | T87: 82. ČZMDP/CN
S88: 12. Ukazovatele nákladovosti | T88: 83. CN/V
T89: 84. CN/VV (PH)
T90: 85. CN/ČV
S91: 13. Produktivita VF | T91: 86. V/VF
T92: 87. VV (PH)/VF
T93: 88. ČV/VF
S94: 14. Rentabilita VF | T94: 89. HZMDP/VF
T95: 90. ČZMDP/VF

Sheet 5. tabuľka (hidden)
B1: Tabuľka 5 Príklad III - Skupina 2 c. Štruktúra aktív a podiel výrobných fondov v aktívach
B3: Norma | D3: DP | E3: DP | F3: SP | G3: P | H3: SP | I3: P | J3: SN | K3: N | L3: N | M3: N | N3: N | O3: N | P3: N | Q3: N | R3: DP | S3: SP | T3: SP | U3: SP | V3: DP | W3: DP
A4: ZPI | B4: 0.3 | C4: 2 | D4: 1 | E4: 1 | F4: 1 | G4: 2 | H4: 2 | I4: 3 | J4: 3 | K4: -1 | L4: -1 | M4: -1 | N4: -2 | O4: -2 | P4: -3 | Q4: -3 | R4: 1 | S4: 1 | T4: 2 | U4: 2 | V4: 2 | W4: 1
A5: OP | B5: -0.6 | C5: -1 | D5: 1 | E5: 2 | F5: 3 | G5: 1 | H5: 3 | I5: 1 | J5: 2 | K5: -1 | L5: -2 | M5: -3 | N5: -1 | O5: -3 | P5: -1 | Q5: -2 | R5: 1 | S5: 2 | T5: 1 | U5: 2 | V5: 1 | W5: 2
A6: VF | B6: 0.2 | C6: 1 | D6: 1 | E6: 3 | F6: 2 | G6: 3 | H6: 1 | I6: 2 | J6: 1 | K6: -1 | L6: -3 | M6: -2 | N6: -3 | O6: -1 | P6: -2 | Q6: -1 | R6: 2 | S6: 1 | T6: 1 | U6: 1 | V6: 2 | W6: 2
B8: Norma | D8: N | E8: N | F8: N | G8: N | H8: N | I8: N | J8: N | K8: DP | L8: DN | M8: DN | N8: DN | O8: P | P8: VP | Q8: SN | R8: SN | S8: DN | T8: DN | U8: DP
A9: ZPI | B9: 0.3 | C9: 2 | D9: -1 | E9: -1 | F9: -1 | G9: -2 | H9: -2 | I9: -1 | J9: -1 | K9: 1 | L9: 1 | M9: -1 | N9: -1 | O9: 1 | P9: 2 | Q9: 1 | R9: 2 | S9: -1 | T9: -1 | U9: 1
A10: OP | B10: -0.6 | C10: -1 | D10: -1 | E10: -2 | F10: -1 | G10: -2 | H10: -1 | I10: -2 | J10: 1 | K10: -1 | L10: 1 | M10: 1 | N10: 2 | O10: -1 | P10: -1 | Q10: 2 | R10: 1 | S10: -1 | T10: 1 | U10: -1
A11: VF | B11: 0.2 | C11: 1 | D11: -2 | E11: -1 | F11: -2 | G11: -1 | H11: -2 | I11: -2 | J11: 1 | K11: 1 | L11: -1 | M11: 2 | N11: 1 | O11: 2 | P11: 1 | Q11: -1 | R11: -1 | S11: 1 | T11: -1 | U11: -1
B13: Norma | D13: DN | E13: DN | F13: N | G13: VN | H13: SP | I13: SP | J13: S | K13: DP | L13: SN | M13: P | N13: SN | O13: P | P13: SP | Q13: SN | R13: DN | S13: SP | T13: P | U13: N | V13: DN
A14: ZPI | B14: 0.3 | C14: 2 | D14: -1 | E14: -2 | F14: -1 | G14: -2 | H14: 1 | I14: 1 | J14: 0 | K14: 0 | L14: 0 | M14: 1 | N14: 0 | O14: 1 | P14: 1 | Q14: 0 | R14: 0 | S14: 1 | T14: 2 | U14: 1 | V14: 2
A15: OP | B15: -0.6 | C15: -1 | D15: -2 | E15: -1 | F15: 1 | G15: 1 | H15: -1 | I15: -2 | J15: 0 | K15: 0 | L15: 1 | M15: 0 | N15: 1 | O15: 0 | P15: 1 | Q15: 1 | R15: 2 | S15: 0 | T15: 0 | U15: 2 | V15: 1
A16: VF | B16: 0.2 | C16: 1 | D16: 1 | E16: 1 | F16: -2 | G16: -1 | H16: -2 | I16: -1 | J16: 0 | K16: 1 | L16: 0 | M16: 0 | N16: 1 | O16: 1 | P16: 0 | Q16: 2 | R16: 1 | S16: 2 | T16: 1 | U16: 0 | V16: 0
B18: Norma | D18: N | E18: DN | F18: N | G18: N | H18: N | I18: N | J18: N | K18: N | L18: N | M18: N | N18: N | O18: N | P18: P | Q18: P | R18: N | S18: DP | T18: N | U18: P
A19: ZPI | B19: 0.3 | C19: 2 | D19: 0 | E19: 0 | F19: -1 | G19: 0 | H19: -1 | I19: -1 | J19: 0 | K19: 0 | L19: -1 | M19: -2 | N19: -1 | O19: -2 | P19: 0 | Q19: 0 | R19: -1 | S19: 1 | T19: -1 | U19: 1
A20: OP | B20: -0.6 | C20: -1 | D20: 0 | E20: -1 | F20: 0 | G20: -1 | H20: 0 | I20: -1 | J20: -1 | K20: -2 | L20: 0 | M20: 0 | N20: -2 | O20: -1 | P20: -1 | Q20: 1 | R20: 0 | S20: 0 | T20: 1 | U20: -1
A21: VF | B21: 0.2 | C21: 1 | D21: -1 | E21: 0 | F21: 0 | G21: -1 | H21: -1 | I21: 0 | J21: -2 | K21: -1 | L21: -2 | M21: -1 | N21: 0 | O21: 0 | P21: 1 | Q21: -1 | R21: 1 | S21: -1 | T21: 0 | U21: 0
B24: Norma | D24: DP | E24: DP | F24: SP | G24: P | H24: SP | I24: P | J24: SN | K24: N | L24: N | M24: N | N24: N | O24: N | P24: N | Q24: N | R24: DP | S24: SP | T24: SP | U24: SP | V24: DP | W24: DP
A25: SA | B25: 0.3 | C25: 2 | D25: 1 | E25: 1 | F25: 1 | G25: 2 | H25: 2 | I25: 3 | J25: 3 | K25: -1 | L25: -1 | M25: -1 | N25: -2 | O25: -2 | P25: -3 | Q25: -3 | R25: 1 | S25: 1 | T25: 2 | U25: 2 | V25: 2 | W25: 1
A26: OA | B26: -0.6 | C26: -1 | D26: 1 | E26: 2 | F26: 3 | G26: 1 | H26: 3 | I26: 1 | J26: 2 | K26: -1 | L26: -2 | M26: -3 | N26: -1 | O26: -3 | P26: -1 | Q26: -2 | R26: 1 | S26: 2 | T26: 1 | U26: 2 | V26: 1 | W26: 2
A27: VF | B27: 0.2 | C27: 1 | D27: 1 | E27: 3 | F27: 2 | G27: 3 | H27: 1 | I27: 2 | J27: 1 | K27: -1 | L27: -3 | M27: -2 | N27: -3 | O27: -1 | P27: -2 | Q27: -1 | R27: 2 | S27: 1 | T27: 1 | U27: 1 | V27: 2 | W27: 2
B29: Norma | D29: N | E29: N | F29: N | G29: N | H29: N | I29: N | J29: N | K29: DP | L29: DN | M29: DN | N29: DN | O29: P | P29: VP | Q29: SN | R29: SN | S29: DN | T29: DN | U29: DP
A30: SA | B30: 0.3 | C30: 2 | D30: -1 | E30: -1 | F30: -1 | G30: -2 | H30: -2 | I30: -1 | J30: -1 | K30: 1 | L30: 1 | M30: -1 | N30: -1 | O30: 1 | P30: 2 | Q30: 1 | R30: 2 | S30: -1 | T30: -1 | U30: 1
A31: OA | B31: -0.6 | C31: -1 | D31: -1 | E31: -2 | F31: -1 | G31: -2 | H31: -1 | I31: -2 | J31: 1 | K31: -1 | L31: 1 | M31: 1 | N31: 2 | O31: -1 | P31: -1 | Q31: 2 | R31: 1 | S31: -1 | T31: 1 | U31: -1
A32: VF | B32: 0.2 | C32: 1 | D32: -2 | E32: -1 | F32: -2 | G32: -1 | H32: -2 | I32: -2 | J32: 1 | K32: 1 | L32: -1 | M32: 2 | N32: 1 | O32: 2 | P32: 1 | Q32: -1 | R32: -1 | S32: 1 | T32: -1 | U32: -1
B34: Norma | D34: DN | E34: DN | F34: N | G34: VN | H34: SP | I34: SP | J34: S | K34: DP | L34: SN | M34: P | N34: SN | O34: P | P34: SP | Q34: SN | R34: DN | S34: SP | T34: P | U34: N | V34: DN
A35: SA | B35: 0.3 | C35: 2 | D35: -1 | E35: -2 | F35: -1 | G35: -2 | H35: 1 | I35: 1 | J35: 0 | K35: 0 | L35: 0 | M35: 1 | N35: 0 | O35: 1 | P35: 1 | Q35: 0 | R35: 0 | S35: 1 | T35: 2 | U35: 1 | V35: 2
A36: OA | B36: -0.6 | C36: -1 | D36: -2 | E36: -1 | F36: 1 | G36: 1 | H36: -1 | I36: -2 | J36: 0 | K36: 0 | L36: 1 | M36: 0 | N36: 1 | O36: 0 | P36: 1 | Q36: 1 | R36: 2 | S36: 0 | T36: 0 | U36: 2 | V36: 1
A37: VF | B37: 0.2 | C37: 1 | D37: 1 | E37: 1 | F37: -2 | G37: -1 | H37: -2 | I37: -1 | J37: 0 | K37: 1 | L37: 0 | M37: 0 | N37: 1 | O37: 1 | P37: 0 | Q37: 2 | R37: 1 | S37: 2 | T37: 1 | U37: 0 | V37: 0
B39: Norma | D39: N | E39: DN | F39: N | G39: N | H39: N | I39: N | J39: N | K39: N | L39: N | M39: N | N39: N | O39: N | P39: P | Q39: P | R39: N | S39: DP | T39: N | U39: P
A40: SA | B40: 0.3 | C40: 2 | D40: 0 | E40: 0 | F40: -1 | G40: 0 | H40: -1 | I40: -1 | J40: 0 | K40: 0 | L40: -1 | M40: -2 | N40: -1 | O40: -2 | P40: 0 | Q40: 0 | R40: -1 | S40: 1 | T40: -1 | U40: 1
A41: OA | B41: -0.6 | C41: -1 | D41: 0 | E41: -1 | F41: 0 | G41: -1 | H41: 0 | I41: -1 | J41: -1 | K41: -2 | L41: 0 | M41: 0 | N41: -2 | O41: -1 | P41: -1 | Q41: 1 | R41: 0 | S41: 0 | T41: 1 | U41: -1
A42: VF | B42: 0.2 | C42: 1 | D42: -1 | E42: 0 | F42: 0 | G42: -1 | H42: -1 | I42: 0 | J42: -2 | K42: -1 | L42: -2 | M42: -1 | N42: 0 | O42: 0 | P42: 1 | Q42: -1 | R42: 1 | S42: -1 | T42: 0 | U42: 0

Sheet 6. tabuľka (hidden)
B1: Tabuľka 6 Príklad IV - Skupina 2 d. Štruktúra OP v A
B3: Norma | D3: N | E3: N | F3: N | G3: N | H3: N | I3: N | J3: N | K3: P | L3: P | M3: P | N3: P | O3: P | P3: P | Q3: P | R3: N | S3: N | T3: VN | U3: N | V3: N | W3: N
A4: ZÁS/A | B4: -1.6 | C4: -2 | D4: 1 | E4: 1 | F4: 1 | G4: 2 | H4: 2 | I4: 3 | J4: 3 | K4: -1 | L4: -1 | M4: -1 | N4: -2 | O4: -2 | P4: -3 | Q4: -3 | R4: 1 | S4: 1 | T4: 2 | U4: 2 | V4: 2 | W4: 1
A5: POHL/A | B5: -0.1 | C5: -1 | D5: 1 | E5: 2 | F5: 3 | G5: 1 | H5: 3 | I5: 1 | J5: 2 | K5: -1 | L5: -2 | M5: -3 | N5: -1 | O5: -3 | P5: -1 | Q5: -2 | R5: 1 | S5: 2 | T5: 1 | U5: 2 | V5: 1 | W5: 2
A6: PEN/A | B6: -0.1 | C6: -1 | D6: 1 | E6: 3 | F6: 2 | G6: 3 | H6: 1 | I6: 2 | J6: 1 | K6: -1 | L6: -3 | M6: -2 | N6: -3 | O6: -1 | P6: -2 | Q6: -1 | R6: 2 | S6: 1 | T6: 1 | U6: 1 | V6: 2 | W6: 2
B8: Norma | D8: P | E8: P | F8: VP | G8: P | H8: P | I8: P | J8: DP | K8: DN | L8: DN | M8: SP | N8: SP | O8: DN | P8: N | Q8: N | R8: N | S8: DP | T8: DP | U8: DN
A9: ZÁS/A | B9: -1.6 | C9: -2 | D9: -1 | E9: -1 | F9: -2 | G9: -2 | H9: -2 | I9: -1 | J9: -1 | K9: 1 | L9: 1 | M9: -1 | N9: -1 | O9: 1 | P9: 2 | Q9: 1 | R9: 2 | S9: -1 | T9: -1 | U9: 1
A10: POHL/A | B10: -0.1 | C10: -1 | D10: -1 | E10: -2 | F10: -1 | G10: -2 | H10: -1 | I10: -2 | J10: 1 | K10: -1 | L10: 1 | M10: 1 | N10: 2 | O10: -1 | P10: -1 | Q10: 2 | R10: 1 | S10: -1 | T10: 1 | U10: -1
A11: PEN/A | B11: -0.1 | C11: -1 | D11: -2 | E11: -1 | F11: -1 | G11: -1 | H11: -2 | I11: -2 | J11: 1 | K11: 1 | L11: -1 | M11: 2 | N11: 1 | O11: 2 | P11: 1 | Q11: -1 | R11: -1 | S11: 1 | T11: -1 | U11: -1
B13: Norma | D13: DP | E13: P | F13: DP | G13: P | H13: SN | I13: SN | J13: S | K13: DN | L13: DN | M13: DN | N13: DN | O13: DN | P13: DN | Q13: DN | R13: DN | S13: DN | T13: N | U13: N | V13: N
A14: ZÁS/A | B14: -1.6 | C14: -2 | D14: -1 | E14: -2 | F14: -1 | G14: -2 | H14: 1 | I14: 1 | J14: 0 | K14: 0 | L14: 0 | M14: 1 | N14: 0 | O14: 1 | P14: 1 | Q14: 0 | R14: 0 | S14: 1 | T14: 2 | U14: 1 | V14: 2
A15: POHL/A | B15: -0.1 | C15: -1 | D15: -2 | E15: -1 | F15: 1 | G15: 1 | H15: -1 | I15: -2 | J15: 0 | K15: 0 | L15: 1 | M15: 0 | N15: 1 | O15: 0 | P15: 1 | Q15: 1 | R15: 2 | S15: 0 | T15: 0 | U15: 2 | V15: 1
A16: PEN/A | B16: -0.1 | C16: -1 | D16: 1 | E16: 1 | F16: -2 | G16: -1 | H16: -2 | I16: -1 | J16: 0 | K16: 1 | L16: 0 | M16: 0 | N16: 1 | O16: 1 | P16: 0 | Q16: 2 | R16: 1 | S16: 2 | T16: 1 | U16: 0 | V16: 0
B18: Norma | D18: SP | E18: SP | F18: SP | G18: DP | H18: DP | I18: DP | J18: DP | K18: DP | L18: P | M18: P | N18: P | O18: P | P18: SP | Q18: SP | R18: P | S18: DN | T18: DP | U18: P
A19: ZÁS/A | B19: -1.6 | C19: -2 | D19: 0 | E19: 0 | F19: -1 | G19: 0 | H19: -1 | I19: -1 | J19: 0 | K19: 0 | L19: -1 | M19: -2 | N19: -1 | O19: -2 | P19: 0 | Q19: 0 | R19: -1 | S19: 1 | T19: -1 | U19: 1
A20: POHL/A | B20: -0.1 | C20: -1 | D20: 0 | E20: -1 | F20: 0 | G20: -1 | H20: 0 | I20: -1 | J20: -1 | K20: -2 | L20: 0 | M20: 0 | N20: -2 | O20: -1 | P20: -1 | Q20: 1 | R20: 0 | S20: 0 | T20: 1 | U20: -1
A21: PEN/A | B21: -0.1 | C21: -1 | D21: -1 | E21: 0 | F21: 0 | G21: -1 | H21: -1 | I21: 0 | J21: -2 | K21: -1 | L21: -2 | M21: -1 | N21: 0 | O21: 0 | P21: 1 | Q21: -1 | R21: 1 | S21: -1 | T21: 0 | U21: 0
B24: Norma | D24: N | E24: N | F24: N | G24: N | H24: N | I24: N | J24: N | K24: P | L24: P | M24: P | N24: P | O24: P | P24: P | Q24: P | R24: N | S24: N | T24: VN | U24: N | V24: N | W24: N
A25: ZÁS/A | B25: -1.6 | C25: -2 | D25: 1 | E25: 1 | F25: 1 | G25: 2 | H25: 2 | I25: 3 | J25: 3 | K25: -1 | L25: -1 | M25: -1 | N25: -2 | O25: -2 | P25: -3 | Q25: -3 | R25: 1 | S25: 1 | T25: 2 | U25: 2 | V25: 2 | W25: 1
A26: POHLED/A | B26: -0.1 | C26: -1 | D26: 1 | E26: 2 | F26: 3 | G26: 1 | H26: 3 | I26: 1 | J26: 2 | K26: -1 | L26: -2 | M26: -3 | N26: -1 | O26: -3 | P26: -1 | Q26: -2 | R26: 1 | S26: 2 | T26: 1 | U26: 2 | V26: 1 | W26: 2
A27: PEN, KFM/A | B27: -0.1 | C27: -1 | D27: 1 | E27: 3 | F27: 2 | G27: 3 | H27: 1 | I27: 2 | J27: 1 | K27: -1 | L27: -3 | M27: -2 | N27: -3 | O27: -1 | P27: -2 | Q27: -1 | R27: 2 | S27: 1 | T27: 1 | U27: 1 | V27: 2 | W27: 2
B29: Norma | D29: P | E29: P | F29: VP | G29: P | H29: P | I29: P | J29: DP | K29: DN | L29: DN | M29: SP | N29: SP | O29: DN | P29: N | Q29: N | R29: N | S29: DP | T29: DP | U29: DN
A30: ZÁS/A | B30: -1.6 | C30: -2 | D30: -1 | E30: -1 | F30: -2 | G30: -2 | H30: -2 | I30: -1 | J30: -1 | K30: 1 | L30: 1 | M30: -1 | N30: -1 | O30: 1 | P30: 2 | Q30: 1 | R30: 2 | S30: -1 | T30: -1 | U30: 1
A31: POHLED/A | B31: -0.1 | C31: -1 | D31: -1 | E31: -2 | F31: -1 | G31: -2 | H31: -1 | I31: -2 | J31: 1 | K31: -1 | L31: 1 | M31: 1 | N31: 2 | O31: -1 | P31: -1 | Q31: 2 | R31: 1 | S31: -1 | T31: 1 | U31: -1
A32: PEN, KFM/A | B32: -0.1 | C32: -1 | D32: -2 | E32: -1 | F32: -1 | G32: -1 | H32: -2 | I32: -2 | J32: 1 | K32: 1 | L32: -1 | M32: 2 | N32: 1 | O32: 2 | P32: 1 | Q32: -1 | R32: -1 | S32: 1 | T32: -1 | U32: -1
B34: Norma | D34: DP | E34: P | F34: DP | G34: P | H34: SN | I34: SN | J34: S | K34: DN | L34: DN | M34: DN | N34: DN | O34: DN | P34: DN | Q34: DN | R34: DN | S34: DN | T34: N | U34: N | V34: N
A35: ZÁS/A | B35: -1.6 | C35: -2 | D35: -1 | E35: -2 | F35: -1 | G35: -2 | H35: 1 | I35: 1 | J35: 0 | K35: 0 | L35: 0 | M35: 1 | N35: 0 | O35: 1 | P35: 1 | Q35: 0 | R35: 0 | S35: 1 | T35: 2 | U35: 1 | V35: 2
A36: POHLED/A | B36: -0.1 | C36: -1 | D36: -2 | E36: -1 | F36: 1 | G36: 1 | H36: -1 | I36: -2 | J36: 0 | K36: 0 | L36: 1 | M36: 0 | N36: 1 | O36: 0 | P36: 1 | Q36: 1 | R36: 2 | S36: 0 | T36: 0 | U36: 2 | V36: 1
A37: PEN, KFM/A | B37: -0.1 | C37: -1 | D37: 1 | E37: 1 | F37: -2 | G37: -1 | H37: -2 | I37: -1 | J37: 0 | K37: 1 | L37: 0 | M37: 0 | N37: 1 | O37: 1 | P37: 0 | Q37: 2 | R37: 1 | S37: 2 | T37: 1 | U37: 0 | V37: 0
B39: Norma | D39: SP | E39: SP | F39: SP | G39: DP | H39: DP | I39: DP | J39: DP | K39: DP | L39: P | M39: P | N39: P | O39: P | P39: SP | Q39: SP | R39: P | S39: DN | T39: DP | U39: P
A40: ZÁS/A | B40: -1.6 | C40: -2 | D40: 0 | E40: 0 | F40: -1 | G40: 0 | H40: -1 | I40: -1 | J40: 0 | K40: 0 | L40: -1 | M40: -2 | N40: -1 | O40: -2 | P40: 0 | Q40: 0 | R40: -1 | S40: 1 | T40: -1 | U40: 1
A41: POHLED/A | B41: -0.1 | C41: -1 | D41: 0 | E41: -1 | F41: 0 | G41: -1 | H41: 0 | I41: -1 | J41: -1 | K41: -2 | L41: 0 | M41: 0 | N41: -2 | O41: -1 | P41: -1 | Q41: 1 | R41: 0 | S41: 0 | T41: 1 | U41: -1
A42: PEN, KFM/A | B42: -0.1 | C42: -1 | D42: -1 | E42: 0 | F42: 0 | G42: -1 | H42: -1 | I42: 0 | J42: -2 | K42: -1 | L42: -2 | M42: -1 | N42: 0 | O42: 0 | P42: 1 | Q42: -1 | R42: 1 | S42: -1 | T42: 0 | U42: 0

Sheet 7. tabuľka (hidden)
B1: Tabuľka 7 Príklad V - Skupina 3. Štruktúra OP
B4: Norma | C4: N | D4: N | E4: N | F4: N | G4: N | H4: N | I4: VN | J4: P | K4: P | L4: P | M4: P | N4: P | O4: P | P4: P | Q4: N | R4: N | S4: N | T4: N | U4: N | V4: N
A5: ZÁS/OP | B5: -1 | C5: 1 | D5: 1 | E5: 1 | F5: 2 | G5: 2 | H5: 3 | I5: 3 | J5: -1 | K5: -1 | L5: -1 | M5: -2 | N5: -2 | O5: -3 | P5: -3 | Q5: 1 | R5: 1 | S5: 2 | T5: 2 | U5: 2 | V5: 1
A6: POHL/OP | B6: 0 | C6: 1 | D6: 2 | E6: 3 | F6: 1 | G6: 3 | H6: 1 | I6: 2 | J6: -1 | K6: -2 | L6: -3 | M6: -1 | N6: -3 | O6: -1 | P6: -2 | Q6: 1 | R6: 2 | S6: 1 | T6: 2 | U6: 1 | V6: 2
A7: PEN/OP | B7: 0 | C7: 1 | D7: 3 | E7: 2 | F7: 3 | G7: 1 | H7: 2 | I7: 1 | J7: -1 | K7: -3 | L7: -2 | M7: -3 | N7: -1 | O7: -2 | P7: -1 | Q7: 2 | R7: 1 | S7: 1 | T7: 1 | U7: 2 | V7: 2
B9: Norma | C9: P | D9: P | E9: P | F9: P | G9: P | H9: P | I9: SP | J9: DN | K9: DN | L9: SP | M9: SP | N9: DN | O9: N | P9: N | Q9: N | R9: DP | S9: DP | T9: DN
A10: ZÁS/OP | B10: -1 | C10: -1 | D10: -1 | E10: -2 | F10: -2 | G10: -2 | H10: -1 | I10: -1 | J10: 1 | K10: 1 | L10: -1 | M10: -1 | N10: 1 | O10: 2 | P10: 1 | Q10: 2 | R10: -1 | S10: -1 | T10: 1
A11: POHL/OP | B11: 0 | C11: -1 | D11: -2 | E11: -1 | F11: -2 | G11: -1 | H11: -2 | I11: 1 | J11: -1 | K11: 1 | L11: 1 | M11: 2 | N11: -1 | O11: -1 | P11: 2 | Q11: 1 | R11: -1 | S11: 1 | T11: -1
A12: PEN/OP | B12: 0 | C12: -2 | D12: -1 | E12: -1 | F12: -1 | G12: -2 | H12: -2 | I12: 1 | J12: 1 | K12: -1 | L12: 2 | M12: 1 | N12: 2 | O12: 1 | P12: -1 | Q12: -1 | R12: 1 | S12: -1 | T12: -1
B14: Norma | C14: P | D14: P | E14: DP | F14: DP | G14: SN | H14: SN | I14: S | J14: SN | K14: SN | L14: N | M14: DN | N14: N | O14: N | P14: SP | Q14: SP | R14: SN | S14: N | T14: SN | U14: N
A15: ZÁS/OP | B15: -1 | C15: -1 | D15: -2 | E15: -1 | F15: -2 | G15: 1 | H15: 1 | I15: 0 | J15: 0 | K15: 0 | L15: 1 | M15: 0 | N15: 1 | O15: 1 | P15: 0 | Q15: 0 | R15: 1 | S15: 2 | T15: 1 | U15: 2
A16: POHL/OP | B16: 0 | C16: -2 | D16: -1 | E16: 1 | F16: 1 | G16: -1 | H16: -2 | I16: 0 | J16: 0 | K16: 1 | L16: 0 | M16: 1 | N16: 0 | O16: 1 | P16: 1 | Q16: 2 | R16: 0 | S16: 0 | T16: 2 | U16: 1
A17: PEN/OP | B17: 0 | C17: 1 | D17: 1 | E17: -2 | F17: -1 | G17: -2 | H17: -1 | I17: 0 | J17: 1 | K17: 0 | L17: 0 | M17: 1 | N17: 1 | O17: 0 | P17: 2 | Q17: 1 | R17: 2 | S17: 1 | T17: 0 | U17: 0
B19: Norma | C19: P | D19: P | E19: VP | F19: P | G19: P | H19: P | I19: P | J19: P | K19: P | L19: P | M19: P | N19: P | O19: P | P19: P | Q19: P | R19: DN | S19: P | T19: DN
A20: ZÁS/OP | B20: -1 | C20: 0 | D20: 0 | E20: -1 | F20: 0 | G20: -1 | H20: -1 | I20: 0 | J20: 0 | K20: -1 | L20: -2 | M20: -1 | N20: -2 | O20: 0 | P20: 0 | Q20: -1 | R20: 1 | S20: -1 | T20: 1
A21: POHL/OP | B21: 0 | C21: 0 | D21: -1 | E21: 0 | F21: -1 | G21: 0 | H21: -1 | I21: -1 | J21: -2 | K21: 0 | L21: 0 | M21: -2 | N21: -1 | O21: -1 | P21: 1 | Q21: 0 | R21: 0 | S21: 1 | T21: -1
A22: PEN/OP | B22: 0 | C22: -1 | D22: 0 | E22: 0 | F22: -1 | G22: -1 | H22: 0 | I22: -2 | J22: -1 | K22: -2 | L22: -1 | M22: 0 | N22: 0 | O22: 1 | P22: -1 | Q22: 1 | R22: -1 | S22: 0 | T22: 0
B25: Norma | C25: N | D25: N | E25: N | F25: N | G25: N | H25: N | I25: VN | J25: P | K25: P | L25: P | M25: P | N25: P | O25: P | P25: P | Q25: N | R25: N | S25: N | T25: N | U25: N | V25: N
A26: ZÁS/OA | B26: -1 | C26: 1 | D26: 1 | E26: 1 | F26: 2 | G26: 2 | H26: 3 | I26: 3 | J26: -1 | K26: -1 | L26: -1 | M26: -2 | N26: -2 | O26: -3 | P26: -3 | Q26: 1 | R26: 1 | S26: 2 | T26: 2 | U26: 2 | V26: 1
A27: POHLED/OA | B27: 0 | C27: 1 | D27: 2 | E27: 3 | F27: 1 | G27: 3 | H27: 1 | I27: 2 | J27: -1 | K27: -2 | L27: -3 | M27: -1 | N27: -3 | O27: -1 | P27: -2 | Q27: 1 | R27: 2 | S27: 1 | T27: 2 | U27: 1 | V27: 2
A28: PEN, KFM/OA | B28: 0 | C28: 1 | D28: 3 | E28: 2 | F28: 3 | G28: 1 | H28: 2 | I28: 1 | J28: -1 | K28: -3 | L28: -2 | M28: -3 | N28: -1 | O28: -2 | P28: -1 | Q28: 2 | R28: 1 | S28: 1 | T28: 1 | U28: 2 | V28: 2
B30: Norma | C30: P | D30: P | E30: P | F30: P | G30: P | H30: P | I30: SP | J30: DN | K30: DN | L30: SP | M30: SP | N30: DN | O30: N | P30: N | Q30: N | R30: DP | S30: DP | T30: DN
A31: ZÁS/OA | B31: -1 | C31: -1 | D31: -1 | E31: -2 | F31: -2 | G31: -2 | H31: -1 | I31: -1 | J31: 1 | K31: 1 | L31: -1 | M31: -1 | N31: 1 | O31: 2 | P31: 1 | Q31: 2 | R31: -1 | S31: -1 | T31: 1
A32: POHLED/OA | B32: 0 | C32: -1 | D32: -2 | E32: -1 | F32: -2 | G32: -1 | H32: -2 | I32: 1 | J32: -1 | K32: 1 | L32: 1 | M32: 2 | N32: -1 | O32: -1 | P32: 2 | Q32: 1 | R32: -1 | S32: 1 | T32: -1
A33: PEN, KFM/OA | B33: 0 | C33: -2 | D33: -1 | E33: -1 | F33: -1 | G33: -2 | H33: -2 | I33: 1 | J33: 1 | K33: -1 | L33: 2 | M33: 1 | N33: 2 | O33: 1 | P33: -1 | Q33: -1 | R33: 1 | S33: -1 | T33: -1
B35: Norma | C35: P | D35: P | E35: DP | F35: DP | G35: SN | H35: SN | I35: S | J35: SN | K35: SN | L35: N | M35: DN | N35: N | O35: N | P35: SP | Q35: SP | R35: SN | S35: N | T35: SN | U35: N
A36: ZÁS/OA | B36: -1 | C36: -1 | D36: -2 | E36: -1 | F36: -2 | G36: 1 | H36: 1 | I36: 0 | J36: 0 | K36: 0 | L36: 1 | M36: 0 | N36: 1 | O36: 1 | P36: 0 | Q36: 0 | R36: 1 | S36: 2 | T36: 1 | U36: 2
A37: POHLED/OA | B37: 0 | C37: -2 | D37: -1 | E37: 1 | F37: 1 | G37: -1 | H37: -2 | I37: 0 | J37: 0 | K37: 1 | L37: 0 | M37: 1 | N37: 0 | O37: 1 | P37: 1 | Q37: 2 | R37: 0 | S37: 0 | T37: 2 | U37: 1
A38: PEN, KFM/OA | B38: 0 | C38: 1 | D38: 1 | E38: -2 | F38: -1 | G38: -2 | H38: -1 | I38: 0 | J38: 1 | K38: 0 | L38: 0 | M38: 1 | N38: 1 | O38: 0 | P38: 2 | Q38: 1 | R38: 2 | S38: 1 | T38: 0 | U38: 0
B40: Norma | C40: P | D40: P | E40: VP | F40: P | G40: P | H40: P | I40: P | J40: P | K40: P | L40: P | M40: P | N40: P | O40: P | P40: P | Q40: P | R40: DN | S40: P | T40: DN
A41: ZÁS/OA | B41: -1 | C41: 0 | D41: 0 | E41: -1 | F41: 0 | G41: -1 | H41: -1 | I41: 0 | J41: 0 | K41: -1 | L41: -2 | M41: -1 | N41: -2 | O41: 0 | P41: 0 | Q41: -1 | R41: 1 | S41: -1 | T41: 1
A42: POHLED/OA | B42: 0 | C42: 0 | D42: -1 | E42: 0 | F42: -1 | G42: 0 | H42: -1 | I42: -1 | J42: -2 | K42: 0 | L42: 0 | M42: -2 | N42: -1 | O42: -1 | P42: 1 | Q42: 0 | R42: 0 | S42: 1 | T42: -1
A43: PEN, KFM/OA | B43: 0 | C43: -1 | D43: 0 | E43: 0 | F43: -1 | G43: -1 | H43: 0 | I43: -2 | J43: -1 | K43: -2 | L43: -1 | M43: 0 | N43: 0 | O43: 1 | P43: -1 | Q43: 1 | R43: -1 | S43: 0 | T43: 0

Sheet 8. tabuľka (hidden)
B1: Tabuľka 8
B4: Produktivita mzdová | F4: VP | G4: P | H4: DP | I4: SP | J4: S | K4: SN | L4: DN | M4: N | N4: VN
B6: Produktivita výrobných fondov
B7: VP | F7: VP | G7: P | H7: P | I7: DP | J7: DP | K7: SP | L7: SP | M7: S | N7: S
B8: P | F8: P | G8: P | H8: DP | I8: DP | J8: SP | K8: SP | L8: S | M8: S | N8: S
B9: DP | F9: P | G9: DP | H9: DP | I9: SP | J9: SP | K9: S | L9: S | M9: S | N9: SN
B10: SP | F10: DP | G10: DP | H10: DP | I10: SP | J10: SP | K10: S | L10: S | M10: SN | N10: SN
B11: S | F11: DP | G11: SP | H11: S | I11: S | J11: S | K11: SN | L11: SN | M11: DN | N11: DN
B12: SN | F12: SP | G12: SP | H12: S | I12: S | J12: S | K12: SN | L12: SN | M12: DN | N12: DN
B13: DN | F13: SP | G13: S | H13: S | I13: S | J13: SN | K13: SN | L13: DN | M13: DN | N13: N
B14: N | F14: S | G14: S | H14: S | I14: SN | J14: SN | K14: DN | L14: DN | M14: N | N14: N
B15: VN | F15: S | G15: S | H15: SN | I15: SN | J15: DN | K15: DN | L15: N | M15: N | N15: VN
B19: Produktivita mzdová | F19: VP | G19: P | H19: DP | I19: SP | J19: S | K19: SN | L19: DN | M19: N | N19: VN
B20: Produktivita výrobných fondov
B22: VP | F22: VP | G22: P | H22: P | I22: DP | J22: DP | K22: SP | L22: SP | M22: S | N22: S
B23: P | F23: P | G23: P | H23: DP | I23: DP | J23: SP | K23: SP | L23: S | M23: S | N23: S
B24: DP | F24: P | G24: DP | H24: DP | I24: SP | J24: SP | K24: S | L24: S | M24: S | N24: SN
B25: SP | F25: DP | G25: DP | H25: DP | I25: SP | J25: SP | K25: S | L25: S | M25: SN | N25: SN
B26: S | F26: DP | G26: SP | H26: S | I26: S | J26: S | K26: SN | L26: SN | M26: DN | N26: DN
B27: SN | F27: SP | G27: SP | H27: S | I27: S | J27: S | K27: SN | L27: SN | M27: DN | N27: DN
B28: DN | F28: SP | G28: S | H28: S | I28: S | J28: SN | K28: SN | L28: DN | M28: DN | N28: N
B29: N | F29: S | G29: S | H29: S | I29: SN | J29: SN | K29: DN | L29: DN | M29: N | N29: N
B30: VN | F30: S | G30: S | H30: SN | I30: SN | J30: DN | K30: DN | L30: N | M30: N | N30: VN

Sheet Vývoj 1-podiel. ukaz.
B6: Názov skupiny/podskupiny | C6: Číslo poradia | D6: Názov podielového ukazovateľa | E6: Norma rastu (v %) | F6: Priemer | G6: Vyhodnotenie | I6: P = priaznivý vývoj
B7: 1aa) Produktivita meraná celkovými výkonmi z hľadiska bilančnej príslušnosti | C7: 1. | D7: V/A | E7: 0.4 | F7: 2.5 | G7: P | I7: N = nepriaznivý vývoj
I8: S = stagnujúci vývoj
B13: Komentár: Na základe 6 analyzovaných období obchodnej korporácie je možné zhodnotiť, že priemer v porovnaní s normou rastu sa podľa štandardizovaných pravidiel pre jednopodielový ukazovateľ, vývíja priaznivo. Podiel celkových výkonov voči aktívam spoločnosti evokuje vyhovujúci stav.

Sheet Vývoj 2-podiel. ukaz.
C5: Súčet dvojpodielových ukazovateľov v skupine = 1 | L5: Variácie pre zhodnotenie vývoja
C7: Názov skupiny/podskupiny | D7: Číslo poradia | E7: Názov podielového ukazovateľa | F7: Norma rastu (v %) | G7: Priemer | H7: Transformovaná norma | I7: Vyhodnotenie | L7: P | M7: N | N7: S
C8: 2a) Štruktúra pasív (A=P) | D8: 36. | E8: VK/A | F8: 0.4 | G8: 7.1 | H8: 1 | I8: P | L8: 1 | M8: -1 | N8: 0
D9: 37. | E9: CZ/A | F9: -1.1 | G9: -5.6 | H9: -1 | L9: -1 | M9: 1 | N9: 0
L11: P = priaznivý vývoj
L12: N = nepriaznivý vývoj
L13: S = stagnujúci vývoj
C18: Komentár: Na základe 6 analyzovaných období obchodnej korporácie je možné zhodnotiť, že priemer danej podskupiny v porovnaní s ročnu normou rastu sa podľa štandardizovaných pravidiel pre dvojpodielové ukazovatele, ktorých súčet je rovný 1, vývíja priaznivo.
C26: Súčet dvojpodielových ukazovateľov v skupine ≠ 1
C28: Názov skupiny/podskupiny | D28: Číslo poradia | E28: Názov podielového ukazovateľa | F28: Norma rastu (v %) | G28: Priemer | H28: Transformovaná norma | I28: Vyhodnotenie | K28: Kombinácia variáciii pre zhodnotenie vývoja
C29: 14) Rentabilita výrobných fondov | D29: 89. | E29: HZMDP/VF | F29: 2.1 | G29: 26.2 | H29: =1 -> 1 | I29: Rastie | K29: 0 | L29: 0 | M29: 1 | N29: 0 | O29: -1 | P29: 1 | Q29: 1 | R29: 2 | S29: -1 | T29: -1 | U29: -2 | V29: 1 | W29: -1
D30: 90. | E30: ČZMDP/VF | F30: 5.1 | G30: 124.6 | H30: 2 | I30: Rastie rýchlejšie | K30: 0 | L30: 1 | M30: 0 | N30: -1 | O30: 0 | P30: 1 | Q30: 2 | R30: 1 | S30: -1 | T30: -2 | U30: -1 | V30: -1 | W30: 1
K32: Stupne:
K33: 0 = stagnuje
K34: 1 = rastie | O34: -1 = klesá
K35: 2 = rastie rýchlejšie | O35: -2 = klesá rýchlejšie
K36: 3 = rastie najrýchlejším tempom | O36: -3 = klesá najrýchlejším tempom
C41: Komentár: Na základe 6 analyzovaných období obchodnej korporácie je možné zhodnotiť, že priemer danej podskupiny v porovnaní s ročnu normou rastu sa podľa štandardizovaných pravidiel pre dvojpodielové ukazovatele, vyvíja priaznivo. Obidva podielové ukazovatele rastú, avšak čistý zisk pre metódu MDP voči výrobnýcm fondom rastie rýchlejším tempom, ako hrubý zisk pre metódu MDP.

Sheet Vývoj 3-podiel. ukaz.
B6: Názov skupiny/podskupiny | C6: Číslo poradia | D6: Názov podielového ukazovateľa | E6: Norma rastu (v %) | F6: Priemer | G6: Transformovaná norma | H6: Vyhodnotenie | K6: Variácie podľa štandardizovanej tabuľky pre rozpis noriem skupín alebo podskupín
B7: 9a) Podiel spotreby materiálu vo výkonoch | C7: 62. | D7: MAT/V | E7: -1.9 | F7: -2.6 | G7: -1 | H7: P | K7: VP | L7: S | M7: VN | N7: N | O7: N | P7: N | Q7: N | R7: N | S7: DN | T7: DN | U7: P | V7: P | W7: P | X7: P | Y7: P | Z7: SP | AA7: DP | AB7: N | AC7: N
C8: 63. | D8: MAT/VV (PH) | E8: -2.9 | F8: -6.1 | G8: -2 | K8: -1 | L8: 0 | M8: 1 | N8: 1 | O8: 1 | P8: 1 | Q8: 2 | R8: 2 | S8: 3 | T8: 3 | U8: -1 | V8: -1 | W8: -1 | X8: -2 | Y8: -2 | Z8: -3 | AA8: -3 | AB8: 1 | AC8: 1
C9: 64. | D9: MAT/ČV | E9: -2.9 | F9: -6.2 | G9: -3 | K9: -2 | L9: 0 | M9: 2 | N9: 1 | O9: 2 | P9: 3 | Q9: 1 | R9: 3 | S9: 1 | T9: 2 | U9: -1 | V9: -2 | W9: -3 | X9: -1 | Y9: -3 | Z9: -1 | AA9: -2 | AB9: 1 | AC9: 2
K10: -2 | L10: 0 | M10: 2 | N10: 1 | O10: 3 | P10: 2 | Q10: 3 | R10: 1 | S10: 2 | T10: 1 | U10: -1 | V10: -3 | W10: -2 | X10: -3 | Y10: -1 | Z10: -2 | AA10: -1 | AB10: 2 | AC10: 1
K12: N | L12: N | M12: N | N12: VN | O12: P | P12: P | Q12: P | R12: P | S12: P | T12: VP | U12: S | V12: DN | W12: DN | X12: SN | Y12: SN | Z12: DN | AA12: SN | AB12: N | AC12: N
K13: 2 | L13: 2 | M13: 2 | N13: 1 | O13: -1 | P13: -1 | Q13: -2 | R13: -2 | S13: -2 | T13: -1 | U13: 0 | V13: 0 | W13: 0 | X13: 1 | Y13: 0 | Z13: 1 | AA13: 1 | AB13: 0 | AC13: 0
K14: 1 | L14: 2 | M14: 1 | N14: 2 | O14: -1 | P14: -2 | Q14: -1 | R14: -2 | S14: -1 | T14: -2 | U14: 0 | V14: 0 | W14: 1 | X14: 0 | Y14: 1 | Z14: 0 | AA14: 1 | AB14: 1 | AC14: 2
K15: 1 | L15: 1 | M15: 2 | N15: 2 | O15: -2 | P15: -1 | Q15: -1 | R15: -1 | S15: -2 | T15: -2 | U15: 0 | V15: 1 | W15: 0 | X15: 0 | Y15: 1 | Z15: 1 | AA15: 0 | AB15: 2 | AC15: 1
B16: Matica absolútnych ukazovateľov za sledované obdobia (v tis. Kč)
K17: DN | L17: DN | M17: DN | N17: SN | O17: DP | P17: DP | Q17: DP | R17: SP | S17: P | T17: DP | U17: DP | V17: DP | W17: SP | X17: SP | Y17: DP | Z17: SP | AA17: SP | AB17: SP | AC17: SP
E18: Hodnotiace stupne: | K18: 1 | L18: 2 | M18: 1 | N18: 2 | O18: 0 | P18: 0 | Q18: -1 | R18: -2 | S18: 0 | T18: -1 | U18: -1 | V18: 0 | W18: 0 | X18: -1 | Y18: -1 | Z18: -2 | AA18: 0 | AB18: 0 | AC18: -1
E19: VP – veľmi priaznivý vývoj | H19: SN – slabo nepriaznivý vývoj | K19: 0 | L19: 0 | M19: 2 | N19: 1 | O19: 0 | P19: -1 | Q19: 0 | R19: 0 | S19: -1 | T19: 0 | U19: -1 | V19: -1 | W19: -2 | X19: 0 | Y19: -2 | Z19: -1 | AA19: -1 | AB19: 1 | AC19: 0
E20: P – priaznivý vývoj | H20: DN – dosť nepriaznivý vývoj | K20: 2 | L20: 1 | M20: 0 | N20: 0 | O20: -1 | P20: 0 | Q20: 0 | R20: -1 | S20: -1 | T20: -1 | U20: 0 | V20: -2 | W20: -1 | X20: -2 | Y20: 0 | Z20: 0 | AA20: 1 | AB20: -1 | AC20: 1
E21: DP – dosť priaznivý vývoj | H21: N – nepriaznivý vývoj
E22: SP – slabo priaznivý vývoj | H22: VN – veľmi nepriaznivý vývoj | K22: DP | L22: SP | M22: SN
E23: S – vývoj stagnácie | K23: 1 | L23: -1 | M23: 1
K24: 0 | L24: 1 | M24: -1
K25: -1 | L25: 0 | M25: 0
B30: Komentár: Na základe 6 analyzovaných období obchodnej korporácie je možné zhodnotiť, že priemer danej podskupiny v porovnaní s ročnu normou rastu sa podľa štandardizovaných pravidiel pre podskupinu trojpodielových ukazovateľov vyvíja priaznivo.

Sheet TextData (hidden)
B1: 3
A2: Názvy | B2: =TRANSPOSE('Vývoj 3-podiel. ukaz.'!#REF!) -> 
A3: =TRANSPOSE('Vývoj 3-podiel. ukaz.'!A3:E3) -> 0 | B3: 0 | C3: 0 | D3: 0
A4: 0 | B4: 0 | C4: 0 | D4: 0
A5: 0 | B5: 0 | C5: 0 | D5: 0
A6: 0 | B6: 0 | C6: 0 | D6: 0
A7: 0 | B7: 0 | C7: 0 | D7: 0
A8: kombinace | F8: hodnocení
A9: 1 | B9: -3 | C9: -2 | D9: -1 | F9: nepříznívý vývoj
A10: 2 | B10: -2 | C10: -1 | D10: 0
A11: 3 | B11: -1 | C11: 0 | D11: 1
A12: 4 | B12: 0 | C12: 1 | D12: 2
A13: 5 | B13: 1 | C13: 2 | D13: 3
A14: 6 | B14: 2 | C14: 3 | D14: -3
A15: 7 | B15: 3 | C15: -3 | D15: -2
A16: 8 | B16: -3 | C16: -2 | D16: -1
A17: 9 | B17: -2 | C17: -1 | D17: 0
A18: 10 | B18: -1 | C18: 0 | D18: 1
A19: 11 | B19: 0 | C19: 1 | D19: 2
A20: 12 | B20: 1 | C20: 2 | D20: 3
A21: 13 | B21: 2 | C21: 3 | D21: -3
A22: 14 | B22: 3 | C22: -3 | D22: -2
A23: 15 | B23: -3 | C23: -2 | D23: -1
A24: 16 | B24: -2 | C24: -1 | D24: 0
A25: 17 | B25: -1 | C25: 0 | D25: 1
A26: 18 | B26: 0 | C26: 1 | D26: 2
A27: 19 | B27: 1 | C27: 2 | D27: 3
A28: 20 | B28: 2 | C28: 3 | D28: -3
A29: 21 | B29: 3 | C29: -3 | D29: -2
A30: 22 | B30: -3 | C30: -2 | D30: -1
A31: 23 | B31: -2 | C31: -1 | D31: 0
A32: 24 | B32: -1 | C32: 0 | D32: 1
A33: 25 | B33: 0 | C33: 1 | D33: 2
A34: 26 | B34: 1 | C34: 2 | D34: 3
A35: 27 | B35: 2 | C35: 3 | D35: -3
A36: 28 | B36: 3 | C36: -3 | D36: -2
A37: 29 | B37: -3 | C37: -2 | D37: -1
A38: 30 | B38: -2 | C38: -1 | D38: 0
A39: 31 | B39: -1 | C39: 0 | D39: 1
A40: 32 | B40: 0 | C40: 1 | D40: 2
A41: 33 | B41: 1 | C41: 2 | D41: 3
A42: 34 | B42: 2 | C42: 3 | D42: -3
A43: 35 | B43: 3 | C43: -3 | D43: -2
A44: 36 | B44: -3 | C44: -2 | D44: -1
A45: 37 | B45: -2 | C45: -1 | D45: 0
A46: 38 | B46: -1 | C46: 0 | D46: 1
A47: 39 | B47: 0 | C47: 1 | D47: 2
A48: 40 | B48: 1 | C48: 2 | D48: 3
A49: 41 | B49: 2 | C49: 3 | D49: -3
A50: 42 | B50: 3 | C50: -3 | D50: -2
A51: 43 | B51: -3 | C51: -2 | D51: -1
A52: 44 | B52: -2 | C52: -1 | D52: 0
A53: 45 | B53: -1 | C53: 0 | D53: 1
A54: 46 | B54: 0 | C54: 1 | D54: 2
A55: 47 | B55: 1 | C55: 2 | D55: 3
A56: 48 | B56: 2 | C56: 3 | D56: -3
A57: 49 | B57: 3 | C57: -3 | D57: -2
A58: 50 | B58: -3 | C58: -2 | D58: -1
A59: 51 | B59: -2 | C59: -1 | D59: 0
A60: 52 | B60: -1 | C60: 0 | D60: 1
A61: 53 | B61: 0 | C61: 1 | D61: 2
A62: 54 | B62: 1 | C62: 2 | D62: 3
A63: 55 | B63: 2 | C63: 3 | D63: -3
A64: 56 | B64: 3 | C64: -3 | D64: -2
A65: 57 | B65: -3 | C65: -2 | D65: -1
A66: 58 | B66: -2 | C66: -1 | D66: 0
A67: 59 | B67: -1 | C67: 0 | D67: 1
A68: 60 | B68: 0 | C68: 1 | D68: 2
A69: 61 | B69: 1 | C69: 2 | D69: 3
A70: 62 | B70: 2 | C70: 3 | D70: -3
A71: 63 | B71: 3 | C71: -3 | D71: -2
A72: 64 | B72: -3 | C72: -2 | D72: -1
A73: 65 | B73: -2 | C73: -1 | D73: 0
A74: 66 | B74: -1 | C74: 0 | D74: 1
A75: 67 | B75: 0 | C75: 1 | D75: 2
A76: 68 | B76: 1 | C76: 2 | D76: 3
A77: 69 | B77: 2 | C77: 3 | D77: -3
A78: 70 | B78: 3 | C78: -3 | D78: -2
A79: 71 | B79: -3 | C79: -2 | D79: -1
A80: 72 | B80: -2 | C80: -1 | D80: 0
A81: 73 | B81: -1 | C81: 0 | D81: 1
A82: 74 | B82: 0 | C82: 1 | D82: 2
A83: 75 | B83: 1 | C83: 2 | D83: 3
A84: 76 | B84: 2 | C84: 3 | D84: -3
A85: 77 | B85: 3 | C85: -3 | D85: -2
A86: 78 | B86: -3 | C86: -2 | D86: -1
A87: 79 | B87: -2 | C87: -1 | D87: 0
A88: 80 | B88: -1 | C88: 0 | D88: 1
A89: 81 | B89: 0 | C89: 1 | D89: 2
A90: 82 | B90: 1 | C90: 2 | D90: 3
A91: 83 | B91: 2 | C91: 3 | D91: -3
A92: 84 | B92: 3 | C92: -3 | D92: -2
A93: 85 | B93: -3 | C93: -2 | D93: -1
A94: 86 | B94: -2 | C94: -1 | D94: 0
A95: 87 | B95: -1 | C95: 0 | D95: 1
A96: 88 | B96: 0 | C96: 1 | D96: 2
A97: 89 | B97: 1 | C97: 2 | D97: 3
A98: 90 | B98: 2 | C98: 3 | D98: -3
A99: 91 | B99: 3 | C99: -3 | D99: -2
A100: 92 | B100: -3 | C100: -2 | D100: -1
A101: 93 | B101: -2 | C101: -1 | D101: 0
A102: 94 | B102: -1 | C102: 0 | D102: 1
A103: 95 | B103: 0 | C103: 1 | D103: 2
A104: 96 | B104: 1 | C104: 2 | D104: 3
A105: 97 | B105: 2 | C105: 3 | D105: -3
A106: 98 | B106: 3 | C106: -3 | D106: -2
A107: 99 | B107: -3 | C107: -2 | D107: -1
A108: 100 | B108: -2 | C108: -1 | D108: 0
A109: 101 | B109: -1 | C109: 0 | D109: 1
A110: 102 | B110: 0 | C110: 1 | D110: 2
A111: 103 | B111: 1 | C111: 2 | D111: 3
A112: 104 | B112: 2 | C112: 3 | D112: -3
A113: 105 | B113: 3 | C113: -3 | D113: -2
A114: 106 | B114: -3 | C114: -2 | D114: -1
A115: 107 | B115: -2 | C115: -1 | D115: 0
A116: 108 | B116: -1 | C116: 0 | D116: 1
A117: 109 | B117: 0 | C117: 1 | D117: 2
A118: 110 | B118: 1 | C118: 2 | D118: 3
A119: 111 | B119: 2 | C119: 3 | D119: -3
A120: 112 | B120: 3 | C120: -3 | D120: -2
A121: 113 | B121: -3 | C121: -2 | D121: -1
A122: 114 | B122: -2 | C122: -1 | D122: 0
A123: 115 | B123: -1 | C123: 0 | D123: 1
A124: 116 | B124: 0 | C124: 1 | D124: 2
A125: 117 | B125: 1 | C125: 2 | D125: 3
A126: 118 | B126: 2 | C126: 3 | D126: -3
A127: 119 | B127: 3 | C127: -3 | D127: -2
A128: 120 | B128: -3 | C128: -2 | D128: -1
A129: 121 | B129: -2 | C129: -1 | D129: 0
A130: 122 | B130: -1 | C130: 0 | D130: 1
A131: 123 | B131: 0 | C131: 1 | D131: 2
A132: 124 | B132: 1 | C132: 2 | D132: 3
A133: 125 | B133: 2 | C133: 3 | D133: -3
A134: 126 | B134: 3 | C134: -3 | D134: -2
A135: 127 | B135: -3 | C135: -2 | D135: -1
A136: 128 | B136: -2 | C136: -1 | D136: 0
A137: 129 | B137: -1 | C137: 0 | D137: 1
A138: 130 | B138: 0 | C138: 1 | D138: 2
A139: 131 | B139: 1 | C139: 2 | D139: 3
A140: 132 | B140: 2 | C140: 3 | D140: -3
A141: 133 | B141: 3 | C141: -3 | D141: -2
A142: 134 | B142: -3 | C142: -2 | D142: -1
A143: 135 | B143: -2 | C143: -1 | D143: 0
A144: 136 | B144: -1 | C144: 0 | D144: 1
A145: 137 | B145: 0 | C145: 1 | D145: 2
A146: 138 | B146: 1 | C146: 2 | D146: 3
A147: 139 | B147: 2 | C147: 3 | D147: -3
A148: 140 | B148: 3 | C148: -3 | D148: -2
A149: 141 | B149: -3 | C149: -2 | D149: -1
A150: 142 | B150: -2 | C150: -1 | D150: 0
A151: 143 | B151: -1 | C151: 0 | D151: 1
A152: 144 | B152: 0 | C152: 1 | D152: 2
A153: 145 | B153: 1 | C153: 2 | D153: 3
A154: 146 | B154: 2 | C154: 3 | D154: -3
A155: 147 | B155: 3 | C155: -3 | D155: -2
A156: 148 | B156: -3 | C156: -2 | D156: -1
A157: 149 | B157: -2 | C157: -1 | D157: 0
A158: 150 | B158: -1 | C158: 0 | D158: 1
A159: 151 | B159: 0 | C159: 1 | D159: 2
A160: 152 | B160: 1 | C160: 2 | D160: 3
A161: 153 | B161: 2 | C161: 3 | D161: -3
A162: 154 | B162: 3 | C162: -3 | D162: -2
A163: 155 | B163: -3 | C163: -2 | D163: -1
A164: 156 | B164: -2 | C164: -1 | D164: 0
A165: 157 | B165: -1 | C165: 0 | D165: 1
A166: 158 | B166: 0 | C166: 1 | D166: 2
A167: 159 | B167: 1 | C167: 2 | D167: 3
A168: 160 | B168: 2 | C168: 3 | D168: -3
A169: 161 | B169: 3 | C169: -3 | D169: -2
A170: 162 | B170: -3 | C170: -2 | D170: -1
A171: 163 | B171: -2 | C171: -1 | D171: 0
A172: 164 | B172: -1 | C172: 0 | D172: 1
A173: 165 | B173: 0 | C173: 1 | D173: 2
A174: 166 | B174: 1 | C174: 2 | D174: 3
A175: 167 | B175: 2 | C175: 3 | D175: -3
A176: 168 | B176: 3 | C176: -3 | D176: -2
A177: 169 | B177: -3 | C177: -2 | D177: -1
A178: 170 | B178: -2 | C178: -1 | D178: 0
A179: 171 | B179: -1 | C179: 0 | D179: 1
A180: 172 | B180: 0 | C180: 1 | D180: 2
A181: 173 | B181: 1 | C181: 2 | D181: 3
A182: 174 | B182: 2 | C182: 3 | D182: -3
A183: 175 | B183: 3 | C183: -3 | D183: -2
A184: 176 | B184: -3 | C184: -2 | D184: -1
A185: 177 | B185: -2 | C185: -1 | D185: 0
A186: 178 | B186: -1 | C186: 0 | D186: 1
A187: 179 | B187: 0 | C187: 1 | D187: 2
A188: 180 | B188: 1 | C188: 2 | D188: 3
A189: 181 | B189: 2 | C189: 3 | D189: -3
A190: 182 | B190: 3 | C190: -3 | D190: -2
A191: 183 | B191: -3 | C191: -2 | D191: -1
A192: 184 | B192: -2 | C192: -1 | D192: 0
A193: 185 | B193: -1 | C193: 0 | D193: 1
A194: 186 | B194: 0 | C194: 1 | D194: 2
A195: 187 | B195: 1 | C195: 2 | D195: 3
A196: 188 | B196: 2 | C196: 3 | D196: -3
A197: 189 | B197: 3 | C197: -3 | D197: -2
A198: 190 | B198: -3 | C198: -2 | D198: -1
A199: 191 | B199: -2 | C199: -1 | D199: 0
A200: 192 | B200: -1 | C200: 0 | D200: 1
... 151 more rows
